{"text_format":"3","workbook":"xlsx","n_sheets":5,"sheets":["Market Basket 0101.06","Non-MB Helmets & Shields","Non-Market Basket","Market Basket 0101.07","MB ASTM Helmets & Shields"],"not_rendered":{"defined_names":3},"read":"whole","date_system":"1900"}

{"sheet":"Market Basket 0101.06","index":0,"n_rows":196,"n_cols":13,"rows_kept":196}
[null,null,"Market Basket Products Listed on the NIJ CPL 0101.06 - Certified.   Active on the NIJ CPL."]
[null,"Contractor Name: Survival Armor"]
[null,"Product","Type","Manufacturer (Brand and Series)","Manufacturer Catalog #","NIJ-CPL Model Designation","Gender\n(M = Male, \nN = Neutral, \nF = Female)","NIJ Standard(s) / ASTM Standard","Threat Level","Ballistic Protection Warranty Period","MSRP","BID Price","% Discount"]
[null,"Ballistic-resistant Vest (including carrier)","Handgun Protection","Survival Armor-Paladin - Level II - Premium Concealable Body Armor - With 1 Vertex Carrier, Soft Trauma Pac (STP)","MULW-II","ULW-II","N"," 0101.06","II","5 Years",{"v":2346,"d":"$2,346.00"},{"v":914.94,"d":"$914.94"},{"$f":"(K4-L4)/K4*100%","v":{"v":0.61,"d":"61.00%"}}]
[null,"Ballistic-resistant Vest (including 2 carriers)","Handgun Protection","Survival Armor-Paladin - Level II - Premium Concealable Body Armor - With two Vertex Carriers, Soft Trauma Pac (STP)","MULW-II-2C","ULW-II","N"," 0101.06","II","5 Years",{"v":2714,"d":"$2,714.00"},{"v":1058.46,"d":"$1,058.46"},{"$f":"(K5-L5)/K5*100%","v":{"v":0.61,"d":"61.00%"}}]
[null,"Ballistic-resistant Vest (including carrier)","Handgun Protection","Survival Armor-Paladin - Level II - Premium Concealable Body Armor - Structured Female - With 1 Vantage Carrier, Soft Trauma Pac (STP)","FULW-II-2","ULW-FEM-II-2","F"," 0101.06","II","5 Years",{"v":2346,"d":"$2,346.00"},{"v":914.94,"d":"$914.94"},{"v":0.61,"d":"61.00%"}]
[null,"Ballistic-resistant Vest (including 2 carriers)","Handgun Protection","Survival Armor-Paladin - Level II - Premium Concealable Body Armor - Structured Female - With two Vantage Carriers, Soft Trauma Pac (STP) ","FULW-II-2-2C","ULW-FEM-II-2","F"," 0101.06","II","5 Years",{"v":2714,"d":"$2,714.00"},{"v":1058.46,"d":"$1,058.46"},{"v":0.61,"d":"61.00%"}]
[null,"Ballistic-resistant Vest (including carrier)","Handgun Protection","Survival Armor-Paladin - Level IIIA - Premium Concealable Body Armor - With 1 Vertex Carrier, Soft Trauma Pac (STP)","MULW-IIIA","ULW-IIIA","N"," 0101.06","IIIA","5 Years",{"v":2919,"d":"$2,919.00"},{"v":1138.41,"d":"$1,138.41"},{"v":0.61,"d":"61.00%"}]
[null,"Ballistic-resistant Vest (including 2 carriers)","Handgun Protection","Survival Armor-Paladin - Level IIIA - Premium Concealable Body Armor - With two Vertex Carriers, Soft Trauma Pac (STP)","MULW-IIIA-2C","ULW-IIIA","N"," 0101.06","IIIA","5 Years",{"v":3287,"d":"$3,287.00"},{"v":1288.95,"d":"$1,288.95"},{"v":0.607864313964101,"d":"60.79%"}]
[null,"Ballistic-resistant Vest (including carrier)","Handgun Protection","Survival Armor-Paladin - Level IIIA - Premium Concealable Body Armor - Structured Female - With 1 Vantage Carrier, Soft Trauma Pac (STP)","FULW-IIIA","ULW-FEM-IIIA","F"," 0101.06","IIIA","5 Years",{"v":2919,"d":"$2,919.00"},{"v":1138.41,"d":"$1,138.41"},{"v":0.61,"d":"61.00%"}]
[null,"Ballistic-resistant Vest (including 2 carriers)","Handgun Protection","Survival Armor-Paladin - Level IIIA - Premium Concealable Body Armor - Structured Female - With two Vantage Carriers, Soft Trauma Pac (STP)","FULW-IIIA-2C","ULW-FEM-IIIA","F"," 0101.06","IIIA","5 Years",{"v":3287,"d":"$3,287.00"},{"v":1281.93,"d":"$1,281.93"},{"v":0.61,"d":"61.00%"}]
[null,"Ballistic-resistant Vest (including carrier)","Handgun Protection","Survival Armor-FALCONflex - Level II - Flexible Concealable Body Armor - With 1 Vertex Carrier, Soft Trauma Pac (STP)","MFC-II","FC-II","N"," 0101.06","II","5 Years",{"v":2224,"d":"$2,224.00"},{"v":867.36,"d":"$867.36"},{"v":0.61,"d":"61.00%"}]
[null,"Ballistic-resistant Vest (including 2 carriers)","Handgun Protection","Survival Armor-FALCONflex - Level II - Flexible Concealable Body Armor - With two Vertex Carriers, Soft Trauma Pac (STP)","MFC-II-2C","FC-II","N"," 0101.06","II","5 Years",{"v":2592,"d":"$2,592.00"},{"v":1010.88,"d":"$1,010.88"},{"v":0.61,"d":"61.00%"}]
[null,"Ballistic-resistant Vest (including carrier)","Handgun Protection","Survival Armor-FALCONflex - Level II - Flexible Concealable Body Armor - Structured Female -  With 1 Vantage Carrier, Soft Trauma Pac (STP)","FFC-II","FC-FEM-II","F","0101.06","II","5 Years",{"v":2224,"d":"$2,224.00"},{"v":867.36,"d":"$867.36"},{"v":0.61,"d":"61.00%"}]
[null,"Ballistic-resistant Vest (including 2 carriers)","Handgun Protection","Survival Armor-FALCONflex - Level II - Flexible Concealable Body Armor - Structured Female -  With two Vantage Carriers, Soft Trauma Pac (STP)","FFC-II-2C","FC-FEM-II","F","0101.06","II","5 Years",{"v":2592,"d":"$2,592.00"},{"v":1010.88,"d":"$1,010.88"},{"v":0.61,"d":"61.00%"}]
[null,"Ballistic-resistant Vest (including carrier)","Handgun Protection","Survival Armor-FALCONflex - Level IIIA - Flexible Concealable Body Armor - With 1 Vertex Carrier, Soft Trauma Pac (STP)","MFC-IIIA","FC-IIIA","N","0101.06","IIIA","5 Years",{"v":2599,"d":"$2,599.00"},{"v":1013.61,"d":"$1,013.61"},{"v":0.61,"d":"61.00%"}]
[null,"Ballistic-resistant Vest (including 2 carriers)","Handgun Protection","Survival Armor-FALCONflex - Level IIIA - Flexible Concealable Body Armor - With two Vertex Carriers, Soft Trauma Pac (STP)","MFC-IIIA-2C","FC-IIIA","N","0101.06","IIIA","5 Years",{"v":2967,"d":"$2,967.00"},{"v":1157.13,"d":"$1,157.13"},{"v":0.61,"d":"61.00%"}]
[null,"Ballistic-resistant Vest (including carrier)","Handgun Protection","Survival Armor-FALCONflex - Level IIIA - Flexible Concealable Body Armor - Structured Female -  With 1 Vantage Carrier, Soft Trauma Pac (STP)","FFC-IIIA","FC-FEM-IIIA","F","0101.06","IIIA","5 Years",{"v":2599,"d":"$2,599.00"},{"v":1013.61,"d":"$1,013.61"},{"v":0.61,"d":"61.00%"}]
[null,"Ballistic-resistant Vest (including 2 carriers)","Handgun Protection","Survival Armor-FALCONflex - Level IIIA - Flexible Concealable Body Armor - Structured Female -  With two Vantage Carriers, Soft Trauma Pac (STP)","FFC-IIIA-2C","FC-FEM-IIIA","F","0101.06","IIIA","5 Years",{"v":2967,"d":"$2,967.00"},{"v":1157.13,"d":"$1,157.13"},{"v":0.61,"d":"61.00%"}]
[null,"Ballistic-resistant Vest (including carrier)","Handgun Protection","Survival Armor-Plexus - Level II - Premium Concealable Body Armor - With 1 Vertex Carrier, Soft Trauma Pac (STP)","MBAV-II ","BAV-II","N","0101.06","II","5 Years",{"v":1955,"d":"$1,955.00"},{"v":762.45,"d":"$762.45"},{"v":0.61,"d":"61.00%"}]
[null,"Ballistic-resistant Vest (including 2 carriers)","Handgun Protection","Survival Armor-Plexus - Level II - Premium Concealable Body Armor - With two Vertex Carriers, Soft Trauma Pac (STP)","MBAV-II -2C","BAV-II","N","0101.06","II","5 Years",{"v":2323,"d":"$2,323.00"},{"v":905.97,"d":"$905.97"},{"v":0.61,"d":"61.00%"}]
[null,"Ballistic-resistant Vest (including carrier)","Handgun Protection","Survival Armor-Plexus - Level II - Premium Concealable Body Armor - Structured Female - With 1 Vantage Carrier, Soft Trauma Pac (STP)","FBAV-FEM-II","BAV-FEM-II","F","0101.06","II","5 Years",{"v":1955,"d":"$1,955.00"},{"v":762.45,"d":"$762.45"},{"v":0.61,"d":"61.00%"}]
[null,"Ballistic-resistant Vest (including 2 carriers)","Handgun Protection","Survival Armor-Plexus - Level II - Premium Concealable Body Armor - Structured Female - With two Vantage Carriers, Soft Trauma Pac (STP)","FBAV-FEM-II-2C","BAV-FEM-II","F","0101.06","II","5 Years",{"v":2323,"d":"$2,323.00"},{"v":905.97,"d":"$905.97"},{"v":0.61,"d":"61.00%"}]
[null,"Ballistic-resistant Vest (including carrier)","Handgun Protection","Survival Armor-Plexus - Level IIIA - Premium Concealable Body Armor - With 1 Vertex Carrier, Soft Trauma Pac (STP)","MBAV-IIIA","BAV-IIIA","N","0101.06","IIIA","5 Years",{"v":2325,"d":"$2,325.00"},{"v":906.75,"d":"$906.75"},{"v":0.61,"d":"61.00%"}]
[null,"Ballistic-resistant Vest (including 2 carriers)","Handgun Protection","Survival Armor-Plexus - Level IIIA - Premium Concealable Body Armor - With two Vertex Carriers, Soft Trauma Pac (STP)","MBAV-IIIA-2C","BAV-IIIA","N","0101.06","IIIA","5 Years",{"v":2693,"d":"$2,693.00"},{"v":1050.27,"d":"$1,050.27"},{"v":0.61,"d":"61.00%"}]
[null,"Ballistic-resistant Vest (including carrier)","Handgun Protection","Survival Armor-Plexus - Level IIIA - Premium Concealable Body Armor - Structured Female - With 1 Vantage Carrier, Soft Trauma Pac (STP)","FBAV-IIIA","BAV-FEM-IIIA","F","0101.06","IIIA","5 Years",{"v":2325,"d":"$2,325.00"},{"v":906.75,"d":"$906.75"},{"v":0.61,"d":"61.00%"}]
[null,"Ballistic-resistant Vest (including 2 carriers)","Handgun Protection","Survival Armor-Plexus - Level IIIA - Premium Concealable Body Armor - Structured Female - With two Vantage Carriers, Soft Trauma Pac (STP)","FBAV-IIIA-2C","BAV-FEM-IIIA","F","0101.06","IIIA","5 Years",{"v":2693,"d":"$2,693.00"},{"v":1050.27,"d":"$1,050.27"},{"v":0.61,"d":"61.00%"}]
[null,"Ballistic-resistant Vest (including carrier)","Handgun Protection","Survival Armor-Paragon⁷ - Level IIIA - Choice Comfort Concealable Body Armor - With 1 Vertex Carrier, Soft Trauma Pac (STP)","MLWX-IIIA","LWX-IIIA","N","0101.06","IIIA","5 Years",{"v":2474,"d":"$2,474.00"},{"v":964.86,"d":"$964.86"},{"v":0.61,"d":"61.00%"}]
[null,"Ballistic-resistant Vest (including 2 carriers)","Handgun Protection","Survival Armor-Paragon⁷ - Level IIIA - Choice Comfort Concealable Body Armor - With 2 Vertex Carriers, Soft Trauma Pac (STP)","MLWX-IIIA-2C","LWX-IIIA","N","0101.06","IIIA","5 Years",{"v":2842,"d":"$2,842.00"},{"v":1108.38,"d":"$1,108.38"},{"v":0.61,"d":"61.00%"}]
[null,"Ballistic-resistant Vest (including carrier)","Handgun Protection","Survival Armor-Phoenix - Level II - Comfort Concealable Body Armor - With 1 Vertex Carrier, Soft Trauma Pac (STP)","MLC-II","LC-II","N","0101.06","II","5 Years",{"v":1692,"d":"$1,692.00"},{"v":659.88,"d":"$659.88"},{"v":0.61,"d":"61.00%"}]
[null,"Ballistic-resistant Vest (including 2 carriers)","Handgun Protection","Survival Armor-Phoenix - Level II - Comfort Concealable Body Armor - With two Vertex Carriers, Soft Trauma Pac (STP)","MLC-II-2C","LC-II","N","0101.06","II","5 Years",{"v":2060,"d":"$2,060.00"},{"v":803.4,"d":"$803.40"},{"v":0.61,"d":"61.00%"}]
[null,"Ballistic-resistant Vest (including carrier)","Handgun Protection","Survival Armor-Phoenix - Level II - Comfort Concealable Body Armor - Structured Female - With 1 Vantage Carrier, Soft Trauma Pac (STP)","FLC-II","LC-FEM-II","F","0101.06","II","5 Years",{"v":1692,"d":"$1,692.00"},{"v":659.88,"d":"$659.88"},{"v":0.61,"d":"61.00%"}]
[null,"Ballistic-resistant Vest (including 2 carriers)","Handgun Protection","Survival Armor-Phoenix - Level II - Comfort Concealable Body Armor - Structured Female - With two Vantage Carriers, Soft Trauma Pac (STP)","FLC-II-2C","LC-FEM-II","F","0101.06","II","5 Years",{"v":2060,"d":"$2,060.00"},{"v":803.4,"d":"$803.40"},{"v":0.61,"d":"61.00%"}]
[null,"Ballistic-resistant Vest (including carrier)","Handgun Protection","Survival Armor-Phoenix⁷ - Level II - Comfort Concealable Body Armor - With 1 Vertex Carrier, Soft Trauma Pac (STP)","MLCX-II","LCX-II","N","0101.06","II","5 Years",{"v":1623,"d":"$1,623.00"},{"v":632.97,"d":"$632.97"},{"v":0.61,"d":"61.00%"}]
[null,"Ballistic-resistant Vest (including 2 carriers)","Handgun Protection","Survival Armor-Phoenix⁷ - Level II - Comfort Concealable Body Armor - With 2 Vertex Carriers, Soft Trauma Pac (STP)","MLCX-II-2C","LCX-II","N","0101.06","II","5 Years",{"v":2042,"d":"$2,042.00"},{"v":796.38,"d":"$796.38"},{"v":0.61,"d":"61.00%"}]
[null,"Ballistic-resistant Vest (including carrier)","Handgun Protection","Survival Armor-Phoenix - Level IIIA - Comfort Concealable Body Armor - With 1 Vertex Carrier, Soft Trauma Pac (STP)","MLT-3A","LT-3A","N","0101.06","IIIA","5 Years",{"v":1980,"d":"$1,980.00"},{"v":772.2,"d":"$772.20"},{"v":0.61,"d":"61.00%"}]
[null,"Ballistic-resistant Vest (including 2 carriers)","Handgun Protection","Survival Armor-Phoenix - Level IIIA - Comfort Concealable Body Armor - With two Vertex Carriers, Soft Trauma Pac (STP)","MLT-3A-2C","LT-3A","N","0101.06","IIIA","5 Years",{"v":2348,"d":"$2,348.00"},{"v":915.72,"d":"$915.72"},{"v":0.61,"d":"61.00%"}]
[null,"Ballistic-resistant Vest (including carrier)","Handgun Protection","Survival Armor-Performance - Level II- Concealable Body armor - With 1 Vertex or Vantage Carrier, Soft Trauma Pac (STP)","MML-II","ML3000-II","N","0101.06","II","5 Years",{"v":1288,"d":"$1,288.00"},{"v":502.32,"d":"$502.32"},{"v":0.6100000000000001,"d":"61.00%"}]
[null,"Ballistic-resistant Vest (including 2 carriers)","Handgun Protection","Survival Armor-Performance - Level II- Concealable Body armor - With two Vertex or Vantage Carriers, Soft Trauma Pac (STP)","MML-II-2C","ML3000-II","N","0101.06","II","5 Years",{"v":1656,"d":"$1,656.00"},{"v":645.84,"d":"$645.84"},{"v":0.61,"d":"61.00%"}]
[null,"Ballistic-resistant Vest (including carrier)","Handgun Protection","Survival Armor-Performance -Level IIIA - Concealable Body armor - With 1 Vertex or Vantage Carrier, Soft Trauma Pac (STP)","MHML-IIIA","HML3000-IIIA","N","0101.06","IIIA","5 Years",{"v":1430,"d":"$1,430.00"},{"v":557.7,"d":"$557.70"},{"v":0.61,"d":"61.00%"}]
[null,"Ballistic-resistant Vest (including 2 carriers)","Handgun Protection","Survival Armor-Performance -Level IIIA - Concealable Body armor - With two Vertex or Vantage Carriers, Soft Trauma Pac (STP)","MHML-IIIA-2C","HML3000-IIIA","N","0101.06","IIIA","5 Years",{"v":1798,"d":"$1,798.00"},{"v":701.22,"d":"$701.22"},{"v":0.61,"d":"61.00%"}]
[null,"Ballistic-resistant Vest (including carrier)","Handgun Protection","Survival Armor-Performance - Level 3A -Concealable Body armor - With 1 Vertex or Vantage Carrier, Soft Trauma Pac (STP)","MHML-3A","HML300-IIIA","N","0101.06","IIIA","5 Years",{"v":1430,"d":"$1,430.00"},{"v":557.7,"d":"$557.70"},{"v":0.61,"d":"61.00%"}]
[null,"Ballistic-resistant Vest (including 2 carriers)","Handgun Protection","Survival Armor-Performance - Level 3A -Concealable Body armor - With two Vertex or Vantage Carriers, Soft Trauma Pac (STP)","MHML-3A-2C","HML300-IIIA","N","0101.06","IIIA","5 Years",{"v":1798,"d":"$1,798.00"},{"v":701.22,"d":"$701.22"},{"v":0.61,"d":"61.00%"}]
[null,"Ballistic-resistant Vest (including carrier)","Handgun Protection","Survival Armor-THREAT Carrier with Paladin II Ballistics (One Size)","THREAT-ULW-II","ULW-II","N","0101.06","II","5 Years",{"v":3863,"d":"$3,863.00"},{"v":1506.5700000000002,"d":"$1,506.57"},{"v":0.61,"d":"61.00%"}]
[null,"Ballistic-resistant Vest (including carrier)","Handgun Protection","Survival Armor-THREAT Carrier with Paladin IIIA Ballistics (One Size)","THREAT-ULW-IIIA","ULW-IIIA","N","0101.06","IIIA","5 Years",{"v":4783,"d":"$4,783.00"},{"v":1865.3700000000001,"d":"$1,865.37"},{"v":0.61,"d":"61.00%"}]
[null,"Ballistic-resistant Vest (including carrier)","Handgun Protection","Survival Armor-THREAT Carrier with FALCONflex II Ballistics (One Size)","THREAT-FC-II","FC-II","N","0101.06","II","5 Years",{"v":3373,"d":"$3,373.00"},{"v":1315.47,"d":"$1,315.47"},{"v":0.6099999999999999,"d":"61.00%"}]
[null,"Ballistic-resistant Vest (including carrier)","Handgun Protection","Survival Armor-THREAT Carrier with FALCONflex IIIA Ballistics (One Size)","THREAT-FC-IIIA","FC-IIIA","N","0101.06","IIIA","5 Years",{"v":4103,"d":"$4,103.00"},{"v":1600.17,"d":"$1,600.17"},{"v":0.61,"d":"61.00%"}]
[null,"Ballistic-resistant Vest (including carrier)","Handgun Protection","Survival Armor-THREAT Carrier with Plexus II Ballistics (One Size)","THREAT-BAV-II","BAV-II","N","0101.06","II","5 Years",{"v":3035,"d":"$3,035.00"},{"v":1183.65,"d":"$1,183.65"},{"v":0.61,"d":"61.00%"}]
[null,"Ballistic-resistant Vest (including carrier)","Handgun Protection","Survival Armor-THREAT Carrier with Plexus IIIA Ballistics (One Size)","THREAT-BAV-IIIA","BAV-IIIA","N","0101.06","IIIA","5 Years",{"v":3557,"d":"$3,557.00"},{"v":1387.23,"d":"$1,387.23"},{"v":0.61,"d":"61.00%"}]
[null,"Ballistic-resistant Vest (including carrier)","Handgun Protection","Survival Armor-THREAT Carrier with Phoenix6 II Ballistics (One Size)","THREAT-LC-II","LC-II","N","0101.06","II","5 Years",{"v":2422,"d":"$2,422.00"},{"v":944.58,"d":"$944.58"},{"v":0.61,"d":"61.00%"}]
[null,"Ballistic-resistant Vest (including carrier)","Handgun Protection","Survival Armor-THREAT Carrier with Phoenix6 IIIA Ballistics (One Size)","THREAT-LT-3A","LT-3A","N","0101.06","IIIA","5 Years",{"v":2938,"d":"$2,938.00"},{"v":1145.82,"d":"$1,145.82"},{"v":0.61,"d":"61.00%"}]
[null,"Ballistic-resistant Vest (including carrier)","Handgun Protection","Survival Armor-THREAT Carrier with Performance6 II Ballistics (One Size)","THREAT-ML-II","ML 3000-II","N","0101.06","II","5 Years",{"v":2159,"d":"$2,159.00"},{"v":842.01,"d":"$842.01"},{"v":0.61,"d":"61.00%"}]
[null,"Ballistic-resistant Vest (including carrier)","Handgun Protection","Survival Armor-THREAT Carrier with Performance6 IIIA Ballistics (One Size)","THREAT-HML-3A","HML 3000-IIIA","N","0101.06","IIIA","5 Years",{"v":2379,"d":"$2,379.00"},{"v":927.8100000000001,"d":"$927.81"},{"v":0.61,"d":"61.00%"}]
[null,"Ballistic-resistant Vest (including carrier)","Handgun Protection","Survival Armor-Rex 70 Tactical Carrier with Paladin IIIA Ballistics ","ReX70-ULW-IIIA","ULW-IIIA","N","0101.06","IIIA","5 Years",{"v":6839,"d":"$6,839.00"},{"v":2667.21,"d":"$2,667.21"},{"v":0.61,"d":"61.00%"}]
[null,"Ballistic-resistant Vest (including carrier)","Handgun Protection","Survival Armor-Rex 70 Tactical Carrier with FALCONflex IIIA Ballistics  ","ReX70-FC-IIIA","FC-IIIA","N","0101.06","IIIA","5 Years",{"v":6511,"d":"$6,511.00"},{"v":2539.29,"d":"$2,539.29"},{"v":0.61,"d":"61.00%"}]
[null,"Ballistic-resistant Vest (including carrier)","Handgun Protection","Survival Armor-Rex 70 Tactical Carrier with Plexus IIIA Ballistics  ","ReX70-BAV-IIIA","BAV-IIIA","N","0101.06","IIIA","5 Years",{"v":6182,"d":"$6,182.00"},{"v":2410.98,"d":"$2,410.98"},{"v":0.61,"d":"61.00%"}]
[null,"Ballistic-resistant Vest (including carrier)","Handgun Protection","Survival Armor-Rex 70 Tactical Carrier with Phoenix6 IIIA Ballistics  ","ReX70-LT-3A","LT-3A","N","0101.06","IIIA","5 Years",{"v":5708,"d":"$5,708.00"},{"v":2226.12,"d":"$2,226.12"},{"v":0.61,"d":"61.00%"}]
[null,"Ballistic-resistant Vest (including carrier)","Handgun Protection","Survival Armor-Rex 70 Tactical Carrier with Performance6 IIIA Ballistics  ","ReX70-HML-3A","HML 3000-IIIA","N","0101.06","IIIA","5 Years",{"v":4915,"d":"$4,915.00"},{"v":1916.8500000000001,"d":"$1,916.85"},{"v":0.6099999999999999,"d":"61.00%"}]
[null,"Ballistic-resistant Vest (including carrier)","Handgun Protection","Survival Armor-Aegis Tactical Carrier with Paladin IIIA Ballistics  ","Aegis-ULW-IIIA","ULW-IIIA","N","0101.06","IIIA","5 Years",{"v":6752,"d":"$6,752.00"},{"v":2633.28,"d":"$2,633.28"},{"v":0.6099999999999999,"d":"61.00%"}]
[null,"Ballistic-resistant Vest (including carrier)","Handgun Protection","Survival Armor-Aegis Tactical Carrier with FALCONflex IIIA Ballistics  ","Aegis-FC-IIIA","FC-IIIA","N","0101.06","IIIA","5 Years",{"v":6367,"d":"$6,367.00"},{"v":2483.13,"d":"$2,483.13"},{"v":0.61,"d":"61.00%"}]
[null,"Ballistic-resistant Vest (including carrier)","Handgun Protection","Survival Armor-Aegis Tactical Carrier with Plexus IIIA Ballistics  ","Aegis-BAV-IIIA","BAV-IIIA","N","0101.06","IIIA","5 Years",{"v":5974,"d":"$5,974.00"},{"v":2329.86,"d":"$2,329.86"},{"v":0.61,"d":"61.00%"}]
[null,"Ballistic-resistant Vest (including carrier)","Handgun Protection","Survival Armor-Aegis Tactical Carrier with Phoenix6 IIIA Ballistics  ","Aegis-LT-3A","LT-3A","N","0101.06","IIIA","5 Years",{"v":5324,"d":"$5,324.00"},{"v":2076.36,"d":"$2,076.36"},{"v":0.61,"d":"61.00%"}]
[null,"Ballistic-resistant Vest (including carrier)","Handgun Protection","Survival Armor-Aegis Tactical Carrier w with Performance6 IIIA Ballistics  ","Aegis-HML-3A","HML 3000-IIIA","N","0101.06","IIIA","5 Years",{"v":4788,"d":"$4,788.00"},{"v":1867.3200000000002,"d":"$1,867.32"},{"v":0.61,"d":"61.00%"}]
[null,"Ballistic-resistant Vest (including carrier)","Handgun Protection","Survival Armor-Aegis PC Tactical Carrier with Paladin IIIA Ballistics; (Includes Cummerbund Ballistics)  ","AegisPC-ULW-IIIA","ULW-IIIA","N","0101.06","IIIA","5 Years",{"v":6717,"d":"$6,717.00"},{"v":2619.63,"d":"$2,619.63"},{"v":0.61,"d":"61.00%"}]
[null,"Ballistic-resistant Vest (including carrier)","Handgun Protection","Survival Armor-Aegis PC Tactical Carrier with FALCONflex IIIA Ballistics; (Includes Cummerbund Ballistics)  ","AegisPC-FC-IIIA","FC-IIIA","N","0101.06","IIIA","5 Years",{"v":6243,"d":"$6,243.00"},{"v":2434.77,"d":"$2,434.77"},{"v":0.61,"d":"61.00%"}]
[null,"Ballistic-resistant Vest (including carrier)","Handgun Protection","Survival Armor-Aegis PC Tactical Carrier with Plexus IIIA Ballistics; (Includes Cummerbund Ballistics)  ","AegisPC-BAV-IIIA","BAV-IIIA","N","0101.06","IIIA","5 Years",{"v":6025,"d":"$6,025.00"},{"v":2349.75,"d":"$2,349.75"},{"v":0.61,"d":"61.00%"}]
[null,"Ballistic-resistant Vest (including carrier)","Handgun Protection","Survival Armor-Aegis PC Tactical Carrier with Phoenix6 IIIA Ballistics; (Includes Cummerbund Ballistics)  ","AegisPC-LT-3A","LT-3A","N","0101.06","IIIA","5 Years",{"v":5340,"d":"$5,340.00"},{"v":2082.6,"d":"$2,082.60"},{"v":0.61,"d":"61.00%"}]
[null,"Ballistic-resistant Vest (including carrier)","Handgun Protection","Survival Armor-Aegis PC Tactical Carrier with Performance6 IIIA Ballistics; (Includes Cummerbund Ballistics)  ","AegisPC-HML-3A","HML 3000-IIIA","N","0101.06","IIIA","5 Years",{"v":4707,"d":"$4,707.00"},{"v":1835.73,"d":"$1,835.73"},{"v":0.61,"d":"61.00%"}]
[null,"Ballistic-resistant Vest (including carrier)","Handgun Protection","Survival Armor-X50 Tactical Carrier with Paladin IIIA Ballistics  ","X50-ULW-IIIA","ULW-IIIA","N","0101.06","IIIA","5 Years",{"v":6462,"d":"$6,462.00"},{"v":2520.1800000000003,"d":"$2,520.18"},{"v":0.61,"d":"61.00%"}]
[null,"Ballistic-resistant Vest (including carrier)","Handgun Protection","Survival Armor-X50 Tactical Carrier with FALCONflex IIIA Ballistics  ","X50-FC-IIIA","FC-IIIA","N","0101.06","IIIA","5 Years",{"v":6143,"d":"$6,143.00"},{"v":2395.77,"d":"$2,395.77"},{"v":0.61,"d":"61.00%"}]
[null,"Ballistic-resistant Vest (including carrier)","Handgun Protection","Survival Armor-X50 Tactical Carrier with Plexus IIIA Ballistics  ","X50-BAV-IIIA","BAV-IIIA","N","0101.06","IIIA","5 Years",{"v":5905,"d":"$5,905.00"},{"v":2302.9500000000003,"d":"$2,302.95"},{"v":0.61,"d":"61.00%"}]
[null,"Ballistic-resistant Vest (including carrier)","Handgun Protection","Survival Armor-X50 Tactical Carrier with Phoenix6 IIIA Ballistics  ","X50-LT-3A","LT-3A ","N","0101.06","IIIA","5 Years",{"v":5406,"d":"$5,406.00"},{"v":2108.34,"d":"$2,108.34"},{"v":0.61,"d":"61.00%"}]
[null,"Ballistic-resistant Vest (including carrier)","Handgun Protection","Survival Armor-X50 Tactical Carrier with Performance6 IIIA Ballistics  ","X50-HML-3A","HML 3000-IIIA ","N","0101.06","IIIA","5 Years",{"v":4769,"d":"$4,769.00"},{"v":1859.91,"d":"$1,859.91"},{"v":0.61,"d":"61.00%"}]
[null,"Ballistic-resistant Vest (including carrier)","Handgun Protection","Survival Armor-X50 PC Tactical Carrier with Paladin IIIA Ballistics; (Includes Cummerbund Ballistics)  ","X50PC-ULW-IIIA","ULW-IIIA","N","0101.06","IIIA","5 Years",{"v":6358,"d":"$6,358.00"},{"v":2479.62,"d":"$2,479.62"},{"v":0.61,"d":"61.00%"}]
[null,"Ballistic-resistant Vest (including carrier)","Handgun Protection","Survival Armor-X50 PC Tactical Carrier with FALCONflex IIIA Ballistics; (Includes Cummerbund Ballistics)  ","X50PC-FC-IIIA","FC-IIIA","N","0101.06","IIIA","5 Years",{"v":5924,"d":"$5,924.00"},{"v":2310.36,"d":"$2,310.36"},{"v":0.61,"d":"61.00%"}]
[null,"Ballistic-resistant Vest (including carrier)","Handgun Protection","Survival Armor-X50 PC Tactical Carrier with Plexus IIIA Ballistics; (Includes Cummerbund Ballistics)  ","X50PC-BAV-IIIA","BAV-IIIA","N","0101.06","IIIA","5 Years",{"v":5917,"d":"$5,917.00"},{"v":2307.63,"d":"$2,307.63"},{"v":0.61,"d":"61.00%"}]
[null,"Ballistic-resistant Vest (including carrier)","Handgun Protection","Survival Armor-X50 PC Tactical Carrier with Phoenix6 IIIA Ballistics; (Includes Cummerbund Ballistics)  ","X50PC-LT-3A","LT-3A","N","0101.06","IIIA","5 Years",{"v":5405,"d":"$5,405.00"},{"v":2107.9500000000003,"d":"$2,107.95"},{"v":0.61,"d":"61.00%"}]
[null,"Ballistic-resistant Vest (including carrier)","Handgun Protection","Survival Armor-X50 PC Tactical Carrier with Performance6  IIIA Ballistics; (Includes Cummerbund Ballistics)  ","X50PC-HML-3A","HML 3000-IIIA","N","0101.06","IIIA","5 Years",{"v":4582,"d":"$4,582.00"},{"v":1786.98,"d":"$1,786.98"},{"v":0.61,"d":"61.00%"}]
[null,"Ballistic-resistant Vest (including carrier)","Handgun Protection","Survival Armor-Warrior Tactical Carrier With Paladin IIIA Ballistics ","Warrior-ULW-IIIA","ULW-IIIA","N","0101.06","IIIA","5 Years",{"v":5582,"d":"$5,582.00"},{"v":2176.98,"d":"$2,176.98"},{"v":0.61,"d":"61.00%"}]
[null,"Ballistic-resistant Vest (including carrier)","Handgun Protection","Survival Armor-Warrior Tactical Carrier With FALCONflex IIIA Ballistics ","Warrior-FC-IIIA","FC-IIIA","N","0101.06","IIIA","5 Years",{"v":4782,"d":"$4,782.00"},{"v":1864.98,"d":"$1,864.98"},{"v":0.61,"d":"61.00%"}]
[null,"Ballistic-resistant Vest (including carrier)","Handgun Protection","Survival Armor-Warrior Tactical Carrier With Plexus IIIA Ballistics ","Warrior-BAV-IIIA","BAV-IIIA","N","0101.06","IIIA","5 Years",{"v":4724,"d":"$4,724.00"},{"v":1842.3600000000001,"d":"$1,842.36"},{"v":0.61,"d":"61.00%"}]
[null,"Ballistic-resistant Vest (including carrier)","Handgun Protection","Survival Armor-Warrior Tactical Carrier With Phoenix6 IIIA Ballistics ","Warrior-LT-3A","LT-3A ","N","0101.06","IIIA","5 Years",{"v":4519,"d":"$4,519.00"},{"v":1762.41,"d":"$1,762.41"},{"v":0.61,"d":"61.00%"}]
[null,"Ballistic-resistant Vest (including carrier)","Handgun Protection","Survival Armor-Warrior Tactical Carrier With Performance6 IIIA Ballistics ","Warrior-HML-3A","HML 3000-IIIA ","N","0101.06","IIIA","5 Years",{"v":3892,"d":"$3,892.00"},{"v":1517.88,"d":"$1,517.88"},{"v":0.61,"d":"61.00%"}]
[null,"Ballistic-resistant Vest (including carrier)","Handgun Protection","Survival Armor-ASRV Tactical Carrier With Paladin IIIA Ballistics ","ASRV-ULW-IIIA","ULW-IIIA","N","0101.06","IIIA","5 Years",{"v":4516,"d":"$4,516.00"},{"v":1761.24,"d":"$1,761.24"},{"v":0.6100000000000001,"d":"61.00%"}]
[null,"Ballistic-resistant Vest (including carrier)","Handgun Protection","Survival Armor-ASRV Tactical Carrier With FALCONflex IIIA Ballistics ","ASRV-FC-IIIA","FC-IIIA","N","0101.06","IIIA","5 Years",{"v":3876,"d":"$3,876.00"},{"v":1511.64,"d":"$1,511.64"},{"v":0.6099999999999999,"d":"61.00%"}]
[null,"Ballistic-resistant Vest (including carrier)","Handgun Protection","Survival Armor-ASRV Tactical Carrier with Plexus IIIA Ballistics ","ASRV-BAV-IIIA","BAV-IIIA","N","0101.06","IIIA","5 Years",{"v":3755,"d":"$3,755.00"},{"v":1464.45,"d":"$1,464.45"},{"v":0.6100000000000001,"d":"61.00%"}]
[null,"Ballistic-resistant Vest (including carrier)","Handgun Protection","Survival Armor-ASRV Tactical Carrier With Phoenix6 IIIA Ballistics ","ASRV-LT-3A","LT-3A ","N","0101.06","IIIA","5 Years",{"v":3505,"d":"$3,505.00"},{"v":1366.95,"d":"$1,366.95"},{"v":0.6100000000000001,"d":"61.00%"}]
[null,"Ballistic-resistant Vest (including carrier)","Handgun Protection","Survival Armor-ASRV Tactical Carrier With Performance6 IIIA Ballistics ","ASRV-HML-3A","HML 3000-IIIA ","N","0101.06","IIIA","5 Years",{"v":2781,"d":"$2,781.00"},{"v":1084.5900000000001,"d":"$1,084.59"},{"v":0.61,"d":"61.00%"}]
[null,"Ballistic-resistant Vest (including carrier)","Handgun Protection","Survival Armor-D-TAC Tactical Carrier With Paladin IIIA Ballistics ","D-TAC-ULW-IIIA","ULW-IIIA","N","0101.06","IIIA","5 Years",{"v":6974,"d":"$6,974.00"},{"v":2719.86,"d":"$2,719.86"},{"v":0.6099999999999999,"d":"61.00%"}]
[null,"Ballistic-resistant Vest (including carrier)","Handgun Protection","Survival Armor-D-TAC Tactical Carrier With FALCONflex IIIA Ballistics ","D-TAC-FC-IIIA","FC-IIIA","N","0101.06","IIIA","5 Years",{"v":5568,"d":"$5,568.00"},{"v":2171.52,"d":"$2,171.52"},{"v":0.61,"d":"61.00%"}]
[null,"Ballistic-resistant Vest (including carrier)","Handgun Protection","Survival Armor-D-TAC Tactical Carrier With Plexus IIIA Ballistics ","D-TAC-BAV-IIIA","BAV-IIIA","N","0101.06","IIIA","5 Years",{"v":5500,"d":"$5,500.00"},{"v":2145,"d":"$2,145.00"},{"v":0.61,"d":"61.00%"}]
[null,"Ballistic-resistant Vest (including carrier)","Handgun Protection","Survival Armor-D-TAC Tactical Carrier With Phoenix6 IIIA Ballistics ","D-TAC-LT-3A","LT-3A ","N","0101.06","IIIA","5 Years",{"v":5353,"d":"$5,353.00"},{"v":2087.67,"d":"$2,087.67"},{"v":0.61,"d":"61.00%"}]
[null,"Ballistic-resistant Vest (including carrier)","Handgun Protection","Survival Armor-D-TAC Tactical Carrier With Performance6 IIIA Ballistics ","D-TAC-HML-3A","HML 3000-IIIA ","N","0101.06","IIIA","5 Years",{"v":4739,"d":"$4,739.00"},{"v":1848.21,"d":"$1,848.21"},{"v":0.61,"d":"61.00%"}]
[null,"Ballistic-resistant Vest (including carrier)","Handgun Protection","Survival Armor-Covert Overt - Multi-Use Outer Carrier with Concealable option, includes Paladin IIIA Ballistics","Covert Overt-ULW-IIIA","ULW-IIIA","N","0101.06","IIIA","5 Years",{"v":6710,"d":"$6,710.00"},{"v":2616.9,"d":"$2,616.90"},{"v":0.61,"d":"61.00%"}]
[null,"Ballistic-resistant Vest (including carrier)","Handgun Protection","Survival Armor-Covert Overt - Multi-Use Outer Carrier with Concealable option, includes FALCONflex IIIA Ballistics","Covert Overt-FC-IIIA","FC-IIIA","N","0101.06","IIIA","5 Years",{"v":5554,"d":"$5,554.00"},{"v":2166.06,"d":"$2,166.06"},{"v":0.61,"d":"61.00%"}]
[null,"Ballistic-resistant Vest (including carrier)","Handgun Protection","Survival Armor-Covert Overt - Multi-Use Outer Carrier with Concealable option, includes Plexus IIIA Ballistics","Covert Overt-BAV-IIIA","BAV-IIIA","N","0101.06","IIIA","5 Years",{"v":5449,"d":"$5,449.00"},{"v":2125.11,"d":"$2,125.11"},{"v":0.61,"d":"61.00%"}]
[null,"Ballistic-resistant Vest (including carrier)","Handgun Protection","Survival Armor-Covert Overt - Multi-Use Outer Carrier with Concealable option, includes Phoenix⁶ IIIA Ballistics","Covert Overt-LT-3A","LT-3A ","N","0101.06","IIIA","5 Years",{"v":5325,"d":"$5,325.00"},{"v":2076.75,"d":"$2,076.75"},{"v":0.61,"d":"61.00%"}]
[null,"Ballistic-resistant Vest (including carrier)","Handgun Protection","Survival Armor-Covert Overt - Multi-Use Outer Carrier with Concealable option, includes Performance⁶ IIIA Ballistics","Covert Overt-HML-3A","HML 3000-IIIA ","N","0101.06","IIIA","5 Years",{"v":4681,"d":"$4,681.00"},{"v":1825.5900000000001,"d":"$1,825.59"},{"v":0.61,"d":"61.00%"}]
[null,"Ballistic-resistant Vest (including carrier)","Handgun Protection","Survival Armor-International Tac Tactical Carrier With Paladin IIIA Ballistics ","IntnlTac-ULW-IIIA","ULW-IIIA","N","0101.06","IIIA","5 Years",{"v":3963,"d":"$3,963.00"},{"v":1545.5700000000002,"d":"$1,545.57"},{"v":0.61,"d":"61.00%"}]
[null,"Ballistic-resistant Vest (including carrier)","Handgun Protection","Survival Armor-International Tac Tactical Carrier With FALCONflex IIIA Ballistics ","IntnlTac-FC-IIIA","FC-IIIA","N","0101.06","IIIA","5 Years",{"v":3648,"d":"$3,648.00"},{"v":1422.72,"d":"$1,422.72"},{"v":0.6099999999999999,"d":"61.00%"}]
[null,"Ballistic-resistant Vest (including carrier)","Handgun Protection","Survival Armor-International Tac Tactical Carrier With Plexus IIIA Ballistics ","IntnlTac-BAV-IIIA","BAV-IIIA","N","0101.06","IIIA","5 Years",{"v":3115,"d":"$3,115.00"},{"v":1214.8500000000001,"d":"$1,214.85"},{"v":0.61,"d":"61.00%"}]
[null,"Ballistic-resistant Vest (including carrier)","Handgun Protection","Survival Armor-International Tac Tactical Carrier With Phoenix6 IIIA Ballistics ","IntnlTac-LT-3A","LT-3A ","N","0101.06","IIIA","5 Years",{"v":2901,"d":"$2,901.00"},{"v":1131.39,"d":"$1,131.39"},{"v":0.61,"d":"61.00%"}]
[null,"Ballistic-resistant Vest (including carrier)","Handgun Protection","Survival Armor-International Tac Tactical Carrier With Performance6 IIIA Ballistics ","IntnlTac-HML-3A","HML 3000-IIIA ","N","0101.06","IIIA","5 Years",{"v":2248,"d":"$2,248.00"},{"v":876.72,"d":"$876.72"},{"v":0.61,"d":"61.00%"}]
[null,"Ballistic-resistant Vest (including carrier)","Handgun Protection","Survival Armor-Policia Militar Tactical Carrier With Paladin IIIA Ballistics ","POLMIL-ULW-IIIA","ULW-IIIA","N","0101.06","IIIA","5 Years",{"v":3072,"d":"$3,072.00"},{"v":1198.08,"d":"$1,198.08"},{"v":0.61,"d":"61.00%"}]
[null,"Ballistic-resistant Vest (including carrier)","Handgun Protection","Survival Armor-Policia Militar Tactical Carrier With FALCONflex IIIA Ballistics ","POLMIL-FC-IIIA","FC-IIIA","N","0101.06","IIIA","5 Years",{"v":2688,"d":"$2,688.00"},{"v":1048.32,"d":"$1,048.32"},{"v":0.61,"d":"61.00%"}]
[null,"Ballistic-resistant Vest (including carrier)","Handgun Protection","Survival Armor-Policia Militar Tactical Carrier With Plexus IIIA Ballistics ","POLMIL-BAV-IIIA","BAV-IIIA","N","0101.06","IIIA","5 Years",{"v":2563,"d":"$2,563.00"},{"v":999.57,"d":"$999.57"},{"v":0.61,"d":"61.00%"}]
[null,"Ballistic-resistant Vest (including carrier)","Handgun Protection","Survival Armor-Policia Militar Tactical Carrier With Phoenix6 IIIA Ballistics ","POLMIL-LT-3A","LT-3A","N","0101.06","IIIA","5 Years",{"v":2483,"d":"$2,483.00"},{"v":968.37,"d":"$968.37"},{"v":0.6100000000000001,"d":"61.00%"}]
[null,"Ballistic-resistant Vest (including carrier)","Handgun Protection","Survival Armor-Policia Militar Tactical Carrier With Performance IIIA Ballistics ","POLMIL-HML-3A","HML 3000-IIIA","N","0101.06","IIIA","5 Years",{"v":2123,"d":"$2,123.00"},{"v":827.97,"d":"$827.97"},{"v":0.61,"d":"61.00%"}]
[null,"Ballistic-resistant Vest (including carrier)","Handgun Protection","Survival Armor-Underway Flotation Vest with Paladin II Ballistics ","UND-PC-ULW-II","ULW-II","N","0101.06","II","5 Years",{"v":3269,"d":"$3,269.00"},{"v":1274.91,"d":"$1,274.91"},{"v":0.61,"d":"61.00%"}]
[null,"Ballistic-resistant Vest (including carrier)","Handgun Protection","Survival Armor-Underway Flotation Vest with Paladin IIIA Ballistics ","UND-PC-ULW-IIIA","ULW-IIIA","N","0101.06","IIIA","5 Years",{"v":3611,"d":"$3,611.00"},{"v":1408.29,"d":"$1,408.29"},{"v":0.61,"d":"61.00%"}]
[null,"Ballistic-resistant Vest (including carrier)","Handgun Protection","Survival Armor-Underway Flotation Vest with Plexus II Ballistics ","UND-PC-BAV-II","BAV-II","N","0101.06","II","5 Years",{"v":2966,"d":"$2,966.00"},{"v":1156.74,"d":"$1,156.74"},{"v":0.61,"d":"61.00%"}]
[null,"Ballistic-resistant Vest (including carrier)","Handgun Protection","Survival Armor-Underway Flotation Vest with Plexus IIIA Ballistics ","UND-PC-BAV-IIIA","BAV-IIIA","N","0101.06","IIIA","5 Years",{"v":3158,"d":"$3,158.00"},{"v":1231.6200000000001,"d":"$1,231.62"},{"v":0.61,"d":"61.00%"}]
[null,"Ballistic-resistant Vest (including carrier)","Handgun Protection","Survival Armor-Underway Flotation Vest with Phoenix6 II Ballistics ","UND-PC-LC-II","LC-II","N","0101.06","II","5 Years",{"v":2711,"d":"$2,711.00"},{"v":1057.29,"d":"$1,057.29"},{"v":0.61,"d":"61.00%"}]
[null,"Ballistic-resistant Vest (including carrier)","Handgun Protection","Survival Armor-Underway Flotation Vest with Phoenix6 IIIA Ballistics ","UND-PC-LT-3A","LT-3A","N","0101.06","IIIA","5 Years",{"v":2875,"d":"$2,875.00"},{"v":1121.25,"d":"$1,121.25"},{"v":0.61,"d":"61.00%"}]
[null,"Ballistic-resistant Vest (including carrier)","Handgun Protection","Survival Armor-Trident Flotation Vest Level IIIA-37ft. Lbs. of flotation without collar, 74ft. Lbs. of flotation with collar (One Size/Black)","TRID‐HML‐3A","HML 3000-IIIA","N","0101.06","IIIA","5 Years",{"v":5389,"d":"$5,389.00"},{"v":2101.71,"d":"$2,101.71"},{"v":0.61,"d":"61.00%"}]
[null,"Ballistic-resistant rifle plate(s) (including carrier)","Rifle Protection","Survival Armor-Shooters Kit (1) IMPC Plate Carrier - (2) Parapet 10\"x12\" Level IV Ballistic Plates (Shooters Cut Only)","IMPC-PAR10X12-IV","4S17","N","0101.06","IV","10 Years",{"v":1444,"d":"$1,444.00"},{"v":563.16,"d":"$563.16"},{"v":0.61,"d":"61.00%"}]
[null,"Ballistic-resistant rifle plate(s) (including carrier)","Rifle Protection","Survival Armor-Shooters Kit - (1) IMPC Plate Carrier - (2) Cyberdyne 10\"x12\" Level III+ Ballistic Plates (Shooters Cut Only) - (1) Carry Bag","SHKT-IMPC-1","AR1000","N","0101.06","III","10 Years",{"v":1521,"d":"$1,521.00"},{"v":593.19,"d":"$593.19"},{"v":0.61,"d":"61.00%"}]
[null,"Ballistic-resistant rifle plate(s) (including carrier)","Rifle Protection","Survival Armor-Shooters Kit - (1) IMPC Plate Carrier - (2) Cyberdyne 10\"X12\" Level III+ Ballistic Plates (Shooters Cut Only) - (1) PASGT Level IIIA helmet w/Standard 4 Point Mesh Harness (1) Carry Bag","SHKT-IMPC-2","AR1000","N","0101.06","III","10 Years",{"v":2492,"d":"$2,492.00"},{"v":971.88,"d":"$971.88"},{"v":0.61,"d":"61.00%"}]
[null,"Ballistic-resistant rifle plate(s) (including carrier)","Rifle Protection","Survival Armor-Shooters Kit - (1) IMPC Plate Carrier - (2) Parapet 10\"x12\" Level IV Ballistic Plates (Shooters Cut Only) - (1) Carry Bag","SHKT-IMPC-3","4S17","N","0101.06","IV","10 Years",{"v":1738,"d":"$1,738.00"},{"v":677.82,"d":"$677.82"},{"v":0.6099999999999999,"d":"61.00%"}]
[null,"Ballistic-resistant rifle plate(s) (including carrier)","Rifle Protection","Survival Armor-Shooters Kit - (1) IMPC Plate Carrier - (2) Parapet 10\"X12\" Level IV Ballistic Plates (Shooters Cut Only) - (1) PASGT Level IIIA helmet w/Standard 4 Point Mesh Harness (1) Carry Bag ","SHKT-IMPC-4","4S17","N","0101.06","IV","10 Years",{"v":2707,"d":"$2,707.00"},{"v":1055.73,"d":"$1,055.73"},{"v":0.61,"d":"61.00%"}]
[null,"Ballistic-resistant rifle plate(s) (including carrier)","Rifle Protection","Survival Armor-Shooters Kit - (1) MRPC Plate Carrier - (2) Cyberdyne 10\"x12\" Level III+ Ballistic Plates - (1) Carry Bag (For available carrier sizes and colors refer to the MSRP List)","SHKT-MRPC-1","AR1000","N","0101.06","III","10 Years",{"v":1568,"d":"$1,568.00"},{"v":611.52,"d":"$611.52"},{"v":0.61,"d":"61.00%"}]
[null,"Ballistic-resistant rifle plate(s) (including carrier)","Rifle Protection","Survival Armor-Shooters Kit - (1) MRPC Plate Carrier - (2) Cyberdyne 10\"X12\" Level III+ Ballistic Plates - (1) PASGT helmet Level IIIA w/4 Point Mesh Harness, and 7 Pads (1) Carry Bag","SHKT-MRPC-2","AR1000","N","0101.06","III","10 Years",{"v":2550,"d":"$2,550.00"},{"v":994.5,"d":"$994.50"},{"v":0.61,"d":"61.00%"}]
[null,"Ballistic-resistant rifle plate(s) (including carrier)","Rifle Protection","Survival Armor-Shooters Kit - (1) MRPC Plate Carrier - (2) Parapet 10\"x12\" Level IV Ballistic Plates - (1) Carry Bag","SHKT-MRPC-3","4S17","N","0101.06","IV","10 Years",{"v":1785,"d":"$1,785.00"},{"v":696.15,"d":"$696.15"},{"v":0.61,"d":"61.00%"}]
[null,"Ballistic-resistant rifle plate(s) (including carrier)","Rifle Protection","Survival Armor-Shooters Kit - (1) MRPC Plate Carrier - (2) Parapet 10\"X12\" Level IV Ballistic Plates - (1)  PASGT helmet Level IIIA w/4 Point Mesh Harness, and 7 Pads (1) Carry Bag","SHKT-MRPC-4","4S17","N","0101.06","IV","10 Years",{"v":2588,"d":"$2,588.00"},{"v":1009.32,"d":"$1,009.32"},{"v":0.61,"d":"61.00%"}]
[null,"Ballistic-resistant Stand-alone Plate","Rifle Protection","Survival Armor-6\" X 6\" - SA-3SA-Fusilier Level III Ballistic Plate - Stand Alone - Full Cut-Single Curve - NIJ 0101.06 Certified","SA-3SA-FUSLR-6X6","LON-III-P","N","0101.06","III","10 Years",{"v":474,"d":"$474.00"},{"v":184.86,"d":"$184.86"},{"v":0.61,"d":"61.00%"}]
[null,"Ballistic-resistant Stand-alone Plate","Rifle Protection","Survival Armor-6\" X 8\" - SA-3SA-Fusilier Level III Ballistic Plate - Stand Alone - Full Cut-Single Curve - NIJ 0101.06 Certified","SA-3SA-FUSLR-6X8","LON-III-P","N","0101.06","III","10 Years",{"v":570,"d":"$570.00"},{"v":222.3,"d":"$222.30"},{"v":0.61,"d":"61.00%"}]
[null,"Ballistic-resistant Stand-alone Plate","Rifle Protection","Survival Armor-8\" X 10\" - SA-3SA-Fusilier Level III Ballistic Plate - Stand Alone - Shooters Cut-Single Curve - NIJ 0101.06 Certified","SA-3SA-FUSLR-8X10-S","LON-III-P","N","0101.06","III","10 Years",{"v":960,"d":"$960.00"},{"v":374.40000000000003,"d":"$374.40"},{"v":0.6099999999999999,"d":"61.00%"}]
[null,"Ballistic-resistant Stand-alone Plate","Rifle Protection","Survival Armor-8\" X 10\" - SA-3SA-Fusilier Level III Ballistic Plate - Stand Alone - Full Cut-Single Curve - NIJ 0101.06 Certified","SA-3SA-FUSLR-8X10-F","LON-III-P","N","0101.06","III","10 Years",{"v":960,"d":"$960.00"},{"v":374.40000000000003,"d":"$374.40"},{"v":0.6099999999999999,"d":"61.00%"}]
[null,"Ballistic-resistant Stand-alone Plate","Rifle Protection","Survival Armor-10\" x 12\" - SA-3SA-Fusilier Level III Ballistic Plate - Stand Alone - Shooters Cut - Single Curve - NIJ 0101.06 Certified","SA-3SA-FUSLR-10X12-S","LON-III-P","N","0101.06","III","10 Years",{"v":1008,"d":"$1,008.00"},{"v":393.12,"d":"$393.12"},{"v":0.61,"d":"61.00%"}]
[null,"Ballistic-resistant Stand-alone Plate","Rifle Protection","Survival Armor-10\" x 12\" - SA-3SA-Fusilier Level III Ballistic Plate - Stand Alone - Full Cut - Single Curve - NIJ 0101.06 Certified","SA-3SA-FUSLR-10X12-F","LON-III-P","N","0101.06","III","10 Years",{"v":1008,"d":"$1,008.00"},{"v":393.12,"d":"$393.12"},{"v":0.61,"d":"61.00%"}]
[null,"Ballistic-resistant Stand-alone Plate","Rifle Protection","Survival Armor-SAPI-S - 8.75\" x 11.75\"- SA-3SA-Fusilier Level III Ballistic Plate -  Stand Alone - Single Curve - NIJ 0101.06 Certified","SA-3SA-FUSLR-SSAPI-S","LON-III-P","N","0101.06","III","10 Years",{"v":861,"d":"$861.00"},{"v":335.79,"d":"$335.79"},{"v":0.6100000000000001,"d":"61.00%"}]
[null,"Ballistic-resistant Stand-alone Plate","Rifle Protection","Survival Armor-SAPI-M - 9.5\" x 12.5\"- SA-3SA-Fusilier Level III Ballistic Plate -  Stand Alone - Single Curve Level III","SA-3SA-FUSLR-SAPI-M","LON-III-P","N","0101.06","III","10 Years",{"v":985,"d":"$985.00"},{"v":384.15000000000003,"d":"$384.15"},{"v":0.6099999999999999,"d":"61.00%"}]
[null,"Ballistic-resistant Stand-alone Plate","Rifle Protection","Survival Armor-SAPI-L - 10.125\" x 13.25\"-  SA-3SA-Fusilier Level III Ballistic Plate -  Stand Alone - Single Curve Level III","SA-3SA-FUSLR-SAPI-L","LON-III-P","N","0101.06","III","10 Years",{"v":1161,"d":"$1,161.00"},{"v":452.79,"d":"$452.79"},{"v":0.61,"d":"61.00%"}]
[null,"Ballistic-resistant Stand-alone Plate","Rifle Protection","Survival Armor-SAPI-XL - 11\" x 14\"-  SA-3SA-Fusilier Level III Ballistic Plate -  Stand Alone - Single Curve Level III","SA-3SA-FUSLR-SAPI-XL","LON-III-P","N","0101.06","III","10 Years",{"v":1193,"d":"$1,193.00"},{"v":465.27000000000004,"d":"$465.27"},{"v":0.61,"d":"61.00%"}]
[null,"Ballistic-resistant Stand-alone Plate","Rifle Protection","Survival Armor-5\" x 7\" Cyberdyne Level III Ballistic Plate - Single Curve - Stand Alone NIJ 0101.06 Certified Steel Rhino Extreme Spall Coated Full Cut","HA-SA-AR15X7F","AR1000","N","0101.06","III","10 Years",{"v":270,"d":"$270.00"},{"v":105.3,"d":"$105.30"},{"v":0.61,"d":"61.00%"}]
[null,"Ballistic-resistant Stand-alone Plate","Rifle Protection","Survival Armor-5\" x 8\" Cyberdyne Level III Ballistic Plate - Single Curve - Stand Alone NIJ 0101.06 Certified Steel Rhino Extreme Spall Coated Full Cut","HA-SA-AR15X8F","AR1000","N","0101.06","III","10 Years",{"v":270,"d":"$270.00"},{"v":105.3,"d":"$105.30"},{"v":0.61,"d":"61.00%"}]
[null,"Ballistic-resistant Stand-alone Plate","Rifle Protection","Survival Armor-6\" x 6\" Cyberdyne Level III Ballistic Plate - Single Curve - Stand Alone - NIJ 0101.06 Certified Steel Rhino Extreme Spall Coated Full Cut","HA-SA-AR16X6F","AR1000","N","0101.06","III","10 Years",{"v":270,"d":"$270.00"},{"v":105.3,"d":"$105.30"},{"v":0.61,"d":"61.00%"}]
[null,"Ballistic-resistant Stand-alone Plate","Rifle Protection","Survival Armor-6\" x 8\" Cyberdyne Level III Ballistic Plate - Single Curve - Stand Alone - NIJ 0101.06 Certified Steel Rhino Extreme Spall Coated Full Cut","HA-SA-AR16X8F","AR1000","N","0101.06","III","10 Years",{"v":307,"d":"$307.00"},{"v":119.73,"d":"$119.73"},{"v":0.61,"d":"61.00%"}]
[null,"Ballistic-resistant Stand-alone Plate","Rifle Protection","Survival Armor-8\" x 10\" Cyberdyne Level III Ballistic Plate - Single Curve - Stand Alone - NIJ 0101.06 Certified Steel Rhino Extreme Spall Coated Full Cut","HA-SA-AR18X10F","AR1000","N","0101.06","III","10 Years",{"v":408,"d":"$408.00"},{"v":159.12,"d":"$159.12"},{"v":0.61,"d":"61.00%"}]
[null,"Ballistic-resistant Stand-alone Plate","Rifle Protection","Survival Armor-8\" x 10\" Cyberdyne Level III Ballistic Plate - Single Curve - Stand Alone - NIJ 0101.06 Certified Steel Rhino Extreme Spall Coated Shooters Cut","HA-SA-AR18X10S","AR1000","N","0101.06","III","10 Years",{"v":408,"d":"$408.00"},{"v":159.12,"d":"$159.12"},{"v":0.61,"d":"61.00%"}]
[null,"Ballistic-resistant Stand-alone Plate","Rifle Protection","Survival Armor-10\" x 12\" Cyberdyne Level III Ballistic Plate - Single Curve - Stand Alone - NIJ 0101.06 Certified Steel Rhino Extreme Spall Coated Full Cut","HA-SA-AR110X12F","AR1000","N","0101.06","III","10 Years",{"v":643,"d":"$643.00"},{"v":250.77,"d":"$250.77"},{"v":0.61,"d":"61.00%"}]
[null,"Ballistic-resistant Stand-alone Plate","Rifle Protection","Survival Armor-10\" x 12\" Cyberdyne Level III Ballistic Plate - Single Curve - Stand Alone - NIJ 0101.06 Certified Steel Rhino Extreme Spall Coated Shooters Cut","HA-SA-AR110X12S","AR1000","N","0101.06","III","10 Years",{"v":643,"d":"$643.00"},{"v":250.77,"d":"$250.77"},{"v":0.61,"d":"61.00%"}]
[null,"Ballistic-resistant Stand-alone Plate","Rifle Protection","Survival Armor-10\" x 12\" Cyberdyne Level III Ballistic Plate - Single Curve - Stand Alone - NIJ 0101.06 Certified Steel Rhino Extreme Spall Coated Swimmers Cut","HA-SA-AR110X12SW","AR1000","N","0101.06","III","10 Years",{"v":657,"d":"$657.00"},{"v":256.23,"d":"$256.23"},{"v":0.61,"d":"61.00%"}]
[null,"Ballistic-resistant Stand-alone Plate","Rifle Protection","Survival Armor-Survival Armor-SAPI-XS - 7.25\" x 11.5\"  Cyberdyne Level III Ballistic Plate - Single Curve - Stand Alone - NIJ 0101.06 Certified Steel Rhino Extreme Spall Coated ","HA-SA-AR1-SAPI-XS","AR1000","N","0101.06","III","10 Years",{"v":425,"d":"$425.00"},{"v":165.75,"d":"$165.75"},{"v":0.61,"d":"61.00%"}]
[null,"Ballistic-resistant Stand-alone Plate","Rifle Protection","Survival Armor-SAPI-S - 8.75\" x 11.75\"  Cyberdyne Level III Ballistic Plate - Single Curve - Stand Alone - NIJ 0101.06 Certified Steel Rhino Extreme Spall Coated ","HA-SA-AR1-SAPI-S","AR1000","N","0101.06","III","10 Years",{"v":589,"d":"$589.00"},{"v":229.71,"d":"$229.71"},{"v":0.61,"d":"61.00%"}]
[null,"Ballistic-resistant Stand-alone Plate","Rifle Protection","Survival Armor-SAPI-M - 9.5\" x 12.5\"  Cyberdyne Level III Ballistic Plate - Single Curve - Stand Alone - NIJ 0101.06 Certified Steel Rhino Extreme Spall Coated ","HA-SA-AR1-SAPI-M","AR1000","N","0101.06","III","10 Years",{"v":640,"d":"$640.00"},{"v":249.60000000000002,"d":"$249.60"},{"v":0.61,"d":"61.00%"}]
[null,"Ballistic-resistant Stand-alone Plate","Rifle Protection","Survival Armor-SAPI-L - 10.125\" x 13.25\"  Cyberdyne Level III Ballistic Plate - Single Curve - Stand Alone - NIJ 0101.06 Certified Steel Rhino Extreme Spall Coated ","HA-SA-AR1-SAPI-L","AR1000","N","0101.06","III","10 Years",{"v":683,"d":"$683.00"},{"v":266.37,"d":"$266.37"},{"v":0.61,"d":"61.00%"}]
[null,"Ballistic-resistant Stand-alone Plate","Rifle Protection","Survival Armor-SAPI-XL -11\" x 14\"  Cyberdyne Level III Ballistic Plate - Single Curve - Stand Alone - NIJ 0101.06 Certified Steel Rhino Extreme Spall Coated","HA-SA-AR1-SAPI-XL","AR1000","N","0101.06","III","10 Years",{"v":744,"d":"$744.00"},{"v":290.16,"d":"$290.16"},{"v":0.61,"d":"61.00%"}]
[null,"Ballistic-resistant Stand-alone Plate","Rifle Protection","Survival Armor-6\" x 6\" SA-Rampart Level III Ballistic Plate - Single Curve - Stand Alone - NIJ 0101.06 Certified-Tested to Special Threat M855, and the new M855A1 (US Army Round) Full Cut ","HA-SA-RMPTS-III-0606F","H3101M","N","0101.06","III","10 Years",{"v":605,"d":"$605.00"},{"v":235.95000000000002,"d":"$235.95"},{"v":0.6099999999999999,"d":"61.00%"}]
[null,"Ballistic-resistant Stand-alone Plate","Rifle Protection","Survival Armor-6\" x 8\" SA-Rampart Level III Ballistic Plate - Single Curve - Stand Alone - NIJ 0101.06 Certified-Tested to Special Threat M855, and the new M855A1 (US Army Round) Full Cut ","HA-SA-RMPTS-III-0608F","H3101M","N","0101.06","III","10 Years",{"v":635,"d":"$635.00"},{"v":247.65,"d":"$247.65"},{"v":0.61,"d":"61.00%"}]
[null,"Ballistic-resistant Stand-alone Plate","Rifle Protection","8\" x 10\" SA-Rampart Level III Ballistic Plate - Multi Curve - Stand Alone - NIJ 0101.06 Certified-Tested to Special Threat M855, and the new M855A1 (US Army Round) Full Cut ","HA-SA-RMPTM-III-0810F","H3101M","N","0101.06","III","10 Years",{"v":946,"d":"$946.00"},{"v":368.94,"d":"$368.94"},{"v":0.61,"d":"61.00%"}]
[null,"Ballistic-resistant Stand-alone Plate","Rifle Protection","Survival Armor-8\" x 10\" SA-Rampart Level III Ballistic Plate - Multi Curve - Stand Alone - NIJ 0101.06 Certified-Tested to Special Threat M855, and the new M855A1 (US Army Round) Shooters Cut ","HA-SA-RMPTM-III-0810S","H3101M","N","0101.06","III","10 Years",{"v":946,"d":"$946.00"},{"v":368.94,"d":"$368.94"},{"v":0.61,"d":"61.00%"}]
[null,"Ballistic-resistant Stand-alone Plate","Rifle Protection","Survival Armor-10\" X 12\" SA-Rampart Level III Ballistic Plate - Multi Curve - Stand Alone - NIJ 0101.06 Certified-Tested to Special Threat M855, and the new M855A1 (US Army Round) Full Cut","HA-SA-RMPTM-III-1012F","H3101M","N","0101.06","III","10 Years",{"v":1235,"d":"$1,235.00"},{"v":481.65000000000003,"d":"$481.65"},{"v":0.6099999999999999,"d":"61.00%"}]
[null,"Ballistic-resistant Stand-alone Plate","Rifle Protection","Survival Armor-10\" x 12\" SA-Rampart Level III Ballistic Plate - Multi Curve - Stand Alone - NIJ 0101.06 Certified-Tested to Special Threat M855, and the new M855A1 (US Army Round) Shooters Cut","HA-SA-RMPTM-III-1012S","H3101M","N","0101.06","III","10 Years",{"v":1235,"d":"$1,235.00"},{"v":481.65000000000003,"d":"$481.65"},{"v":0.6099999999999999,"d":"61.00%"}]
[null,"Ballistic-resistant Stand-alone Plate","Rifle Protection","Survival Armor-7.25\" x 11.5\"  SA-Rampart Level III Ballistic Plate - Multi Curve - Stand Alone - NIJ 0101.06 Certified-Tested to Special Threat M855, and the new M855A1 (US Army Round)-Survival Armor-SAPI-XS Cut","HA-SA-RMPTM-III-SAPI-XS","H3101M","N","0101.06","III","10 Years",{"v":876,"d":"$876.00"},{"v":341.64,"d":"$341.64"},{"v":0.61,"d":"61.00%"}]
[null,"Ballistic-resistant Stand-alone Plate","Rifle Protection","Survival Armor-8.75\" x 11.75\"  SA-Rampart Level III Ballistic Plate - Multi Curve - Stand Alone - NIJ 0101.06 Certified-Tested to Special Threat M855, and the new M855A1 (US Army Round)-SAPI-S Cut","HA-SA-RMPTM-III-SAPI-S","H3101M","N","0101.06","III","10 Years",{"v":960,"d":"$960.00"},{"v":374.40000000000003,"d":"$374.40"},{"v":0.6099999999999999,"d":"61.00%"}]
[null,"Ballistic-resistant Stand-alone Plate","Rifle Protection","Survival Armor-9.5\" x 12.5\" - SA-Rampart Level III Ballistic Plate - Multi Curve - Stand Alone - NIJ 0101.06 Certified-Tested to Special Threat M855, and the new M855A1 (US Army Round)-SAPI-M Cut","HA-SA-RMPTM-III-SAPI-M","H3101M","N","0101.06","III","10 Years",{"v":1066,"d":"$1,066.00"},{"v":415.74,"d":"$415.74"},{"v":0.61,"d":"61.00%"}]
[null,"Ballistic-resistant Stand-alone Plate","Rifle Protection","Survival Armor-10.125\" x 13.25 - SA-Rampart Level III Ballistic Plate - Multi Curve - Stand Alone - NIJ 0101.06 Certified-Tested to Special Threat M855, and the new M855A1 (US Army Round)-Survival Armor-SAPI-L Cut","HA-SA-RMPTM-III-SAPI-L","H3101M","N","0101.06","III","10 Years",{"v":1251,"d":"$1,251.00"},{"v":487.89000000000004,"d":"$487.89"},{"v":0.6099999999999999,"d":"61.00%"}]
[null,"Ballistic-resistant Stand-alone Plate","Rifle Protection","Survival Armor-11\" x 14\" - SA-Rampart Level III Ballistic Plate - Multi Curve - Stand Alone - NIJ 0101.06 Certified-Tested to Special Threat M855, and the new M855A1 (US Army Round)-Survival Armor-SAPI-XL Cut","HA-SA-RMPTM-III-SAPI-XL","H3101M","N","0101.06","III","10 Years",{"v":1297,"d":"$1,297.00"},{"v":505.83000000000004,"d":"$505.83"},{"v":0.61,"d":"61.00%"}]
[null,"Ballistic-resistant Stand-alone Plate","Rifle Protection","Survival Armor-5\" x 7\" Parapet Level IV Ballistic Plate - Single Curve - Stand Alone - NIJ 0101.06 Certified Full Cut","HA-SA4S175X7F","4S17","N","0101.06","IV","10 Years",{"v":571,"d":"$571.00"},{"v":222.69,"d":"$222.69"},{"v":0.61,"d":"61.00%"}]
[null,"Ballistic-resistant Stand-alone Plate","Rifle Protection","Survival Armor-5\" x 8\" Parapet Level IV Ballistic Plate - Single Curve - Stand Alone - NIJ 0101.06 Certified Full Cut","HA-SA4S175X8F","4S17","N","0101.06","IV","10 Years",{"v":571,"d":"$571.00"},{"v":222.69,"d":"$222.69"},{"v":0.61,"d":"61.00%"}]
[null,"Ballistic-resistant Stand-alone Plate","Rifle Protection","Survival Armor-6\" x 6\" Parapet Level IV Ballistic Plate - Single Curve - Stand Alone - NIJ 0101.06 Certified Full Cut","HA-SA4S176X6F","4S17","N","0101.06","IV","10 Years",{"v":571,"d":"$571.00"},{"v":222.69,"d":"$222.69"},{"v":0.61,"d":"61.00%"}]
[null,"Ballistic-resistant Stand-alone Plate","Rifle Protection","Survival Armor-6\" x 8\" Parapet Level IV Ballistic Plate - Single Curve - Stand Alone - NIJ 0101.06 Certified Full Cut","HA-SA4S176X8F","4S17","N","0101.06","IV","10 Years",{"v":571,"d":"$571.00"},{"v":222.69,"d":"$222.69"},{"v":0.61,"d":"61.00%"}]
[null,"Ballistic-resistant Stand-alone Plate","Rifle Protection","Survival Armor-8\" x 10\" Parapet Level IV Ballistic Plate - Single Curve - Stand Alone - NIJ 0101.06 Certified Full Cut","HA-SA4S178X10F","4S17","N","0101.06","IV","10 Years",{"v":615,"d":"$615.00"},{"v":239.85,"d":"$239.85"},{"v":0.61,"d":"61.00%"}]
[null,"Ballistic-resistant Stand-alone Plate","Rifle Protection","Survival Armor-8\" x 10\" Parapet Level IV Ballistic Plate - Single Curve - Stand Alone - NIJ 0101.06 Certified Shooters Cut","HA-SA4S178X10S","4S17","N","0101.06","IV","10 Years",{"v":615,"d":"$615.00"},{"v":239.85,"d":"$239.85"},{"v":0.61,"d":"61.00%"}]
[null,"Ballistic-resistant Stand-alone Plate","Rifle Protection","Survival Armor-10\" x 12\" Parapet Level IV Ballistic Plate - Single Curve - Stand Alone - NIJ 0101.06 Certified Full Cut","HA-SA4S1710X12F","4S17","N","0101.06","IV","10 Years",{"v":657,"d":"$657.00"},{"v":256.23,"d":"$256.23"},{"v":0.61,"d":"61.00%"}]
[null,"Ballistic-resistant Stand-alone Plate","Rifle Protection","Survival Armor-10\" x 12\" Parapet Level IV Ballistic Plate - Single Curve - Stand Alone - NIJ 0101.06 Certified Shooters Cut","HA-SA4S1710X12S","4S17","N","0101.06","IV","10 Years",{"v":657,"d":"$657.00"},{"v":256.23,"d":"$256.23"},{"v":0.61,"d":"61.00%"}]
[null,"Ballistic-resistant Stand-alone Plate","Rifle Protection","Survival Armor-10\" x 12\" Parapet Level IV Ballistic Plate - Single Curve - Stand Alone - NIJ 0101.06 Certified Swimmers Cut","HA-SA4S1710X12SW","4S17","N","0101.06","IV","10 Years",{"v":681,"d":"$681.00"},{"v":265.59000000000003,"d":"$265.59"},{"v":0.61,"d":"61.00%"}]
[null,"Ballistic-resistant Stand-alone Plate","Rifle Protection","Survival Armor-10\" x 12\" Parapet Level IV Ballistic Plate - Multi Curve - Stand Alone - NIJ 0101.06 Certified Shooters Cut","HA-SA4S1710X12SC-M","4S17","N","0101.06","IV","10 Years",{"v":697,"d":"$697.00"},{"v":271.83,"d":"$271.83"},{"v":0.61,"d":"61.00%"}]
[null,"Ballistic-resistant Stand-alone Plate","Rifle Protection","Survival Armor-SAPI-XS - 7.25\" x 11.5\"-Parapet Level IV Ballistic Plate - Multi Curve - Stand Alone - NIJ 0101.06 Certified ","HA-SA4S17M-SAPI-XS","4S17","N","0101.06","IV","10 Years",{"v":631,"d":"$631.00"},{"v":246.09,"d":"$246.09"},{"v":0.61,"d":"61.00%"}]
[null,"Ballistic-resistant Stand-alone Plate","Rifle Protection","Survival Armor-SAPI-S - 8.75\" x 11.75\"-Parapet Level IV Ballistic Plate - Multi Curve - Stand Alone - NIJ 0101.06 Certified ","HA-SA4S17M-SAPI-S","4S17","N","0101.06","IV","10 Years",{"v":702,"d":"$702.00"},{"v":273.78000000000003,"d":"$273.78"},{"v":0.61,"d":"61.00%"}]
[null,"Ballistic-resistant Stand-alone Plate","Rifle Protection","Survival Armor-SAPI-M - 9.5\" x 12.5\"-Parapet Level IV Ballistic Plate - Multi Curve - Stand Alone - NIJ 0101.06 Certified ","HA-SA4S17M-SAPI-M","4S17","N","0101.06","IV","10 Years",{"v":735,"d":"$735.00"},{"v":286.65000000000003,"d":"$286.65"},{"v":0.61,"d":"61.00%"}]
[null,"Ballistic-resistant Stand-alone Plate","Rifle Protection","Survival Armor-SAPI-L - 10.125\" x 13.25\"-Parapet Level IV Ballistic Plate - Multi Curve - Stand Alone - NIJ 0101.06 Certified ","HA-SA4S17M-SAPI-L","4S17","N","0101.06","IV","10 Years",{"v":799,"d":"$799.00"},{"v":311.61,"d":"$311.61"},{"v":0.61,"d":"61.00%"}]
[null,"Ballistic-resistant Stand-alone Plate","Rifle Protection","Survival Armor-SAPI-XL - 11\" x 14\"-Parapet Level IV Ballistic Plate - Multi Curve - Stand Alone - NIJ 0101.06 Certified ","HA-SA4S17M-SAPI-XL","4S17","N","0101.06","IV","10 Years",{"v":932,"d":"$932.00"},{"v":363.48,"d":"$363.48"},{"v":0.61,"d":"61.00%"}]
[null,"In Conjunction With (ICW) Armor (soft armor and ICW plate)","Rifle Protection","n/a",null,null,"M or N","0101.06","III",null,{"v":0,"d":"$0.00"},{"v":0,"d":"$0.00"},{"$error":"#DIV/0!"}]
[null,"In Conjunction With (ICW) Armor (soft armor and ICW plate)","Rifle Protection","n/a",null,null,"M or N","0101.06","IV",null,{"v":0,"d":"$0.00"},{"v":0,"d":"$0.00"},{"$error":"#DIV/0!"}]
[null,"Stab-resistant Vest (including carrier)","Spike Protection","Survival Armor-THREAT Carrier with NIJ 0115.00 Standard PeaceKeeper - Shank Resistant Level 1 Spike One Size ","THREAT-SKS-1","SKS-1","N","0115.00","1/Spike","5 Years",{"v":2269,"d":"$2,269.00"},{"v":884.9100000000001,"d":"$884.91"},{"v":0.61,"d":"61.00%"}]
[null,"Stab-resistant Vest (including carrier)","Spike Protection","Survival Armor-THREAT Carrier with NIJ 0115.00 Standard PeaceKeeper - Shank Resistant Level 2 Spike One Size","THREAT-SKS-2","SKS-2","N","0115.00","2/Spike","5 Years",{"v":2594,"d":"$2,594.00"},{"v":1011.6600000000001,"d":"$1,011.66"},{"v":0.61,"d":"61.00%"}]
[null,"Stab-resistant Vest (including carrier)","Spike Protection","Survival Armor-THREAT Carrier with NIJ 0115.00 Standard PeaceKeeper - Shank Resistant Level 3 Spike One Size ","THREAT-SKS-3","SKS-3","N","0115.00","3/Spike","5 Years",{"v":2716,"d":"$2,716.00"},{"v":1059.24,"d":"$1,059.24"},{"v":0.61,"d":"61.00%"}]
[null,"Stab-resistant Vest (including carrier)","Spike Protection","Survival Armor-Spike 1 - PeaceKeeper- NIJ 0115.00 Standard - Shank Resistant with one Concealable Carrier ","SKS-1","SKS-1","N","0115.00","1/Spike","5 Years",{"v":1352,"d":"$1,352.00"},{"v":527.28,"d":"$527.28"},{"v":0.61,"d":"61.00%"}]
[null,"Stab-resistant Vest (including carrier)","Spike Protection","Survival Armor-Spike 1 -PeaceKeeper-  NIJ 0115.00 Standard - Shank Resistant with two Concealable Carriers ","SKS-1-2C","SKS-1","N","0115.00","1/Spike","5 Years",{"v":1720,"d":"$1,720.00"},{"v":670.8000000000001,"d":"$670.80"},{"v":0.6099999999999999,"d":"61.00%"}]
[null,"Stab-resistant Vest (including carrier)","Spike Protection","Survival Armor-Spike 2 - PeaceKeeper- NIJ 0115.00 Standard - Shank Resistant with one Concealable Carrier ","SKS-2","SKS-2","N","0115.00","2/Spike","5 Years",{"v":1583,"d":"$1,583.00"},{"v":617.37,"d":"$617.37"},{"v":0.61,"d":"61.00%"}]
[null,"Stab-resistant Vest (including carrier)","Spike Protection","Survival Armor-Spike 2 - PeaceKeeper- NIJ 0115.00 Standard - Shank Resistant with two Concealable Carriers ","SKS-2-2C","SKS-2","N","0115.00","2/Spike","5 Years",{"v":1951,"d":"$1,951.00"},{"v":760.89,"d":"$760.89"},{"v":0.6100000000000001,"d":"61.00%"}]
[null,"Stab-resistant Vest (including carrier)","Spike Protection","Survival Armor-Spike 3 -PeaceKeeper-  NIJ 0115.00 Standard - Shank Resistant with one Concealable Carrier ","SKS-3","SKS-3","N","0115.00","3/Spike","5 Years",{"v":1649,"d":"$1,649.00"},{"v":643.11,"d":"$643.11"},{"v":0.61,"d":"61.00%"}]
[null,"Stab-resistant Vest (including 2 carriers)","Spike Protection","Survival Armor-Spike 3 - PeaceKeeper- NIJ 0115.00 Standard - Shank Resistant with two Concealable Carriers ","SKS-3-2C","SKS-3","N","0115.00","3/Spike","5 Years",{"v":2017,"d":"$2,017.00"},{"v":786.63,"d":"$786.63"},{"v":0.61,"d":"61.00%"}]
[null,"Stab-resistant Vest (including carrier)","Edged Blade Protection","n/a",null,null,"M or N","0115.00","1/Edged Blade",null,{"v":0,"d":"$0.00"},{"v":0,"d":"$0.00"},{"$error":"#DIV/0!"}]
[null,"Stab-resistant Vest (including 2 carriers)","Spike-Edged Blade","n/a",null,null,"F","0115.00","3/Spike- 3/Edged Blade",null,{"v":0,"d":"$0.00"},{"v":0,"d":"$0.00"},{"$f":"(K187-L187)/K187*100%","v":{"$error":"#DIV/0!"}}]
[null,"Combination Vest (including carrier)","Handgun-Spike","Survival Armor-PeaceKeeper- Combination NIJ-0101.06 Level II armor with Spike 2 NIJ-0115.00 Correction - Shank Resistant Dual Certification - with one Male Concealable Carrier Soft Trauma Pac (STP)","MBIIS2-2-RC","BIIS2-2","N","0101.06-0115.00","II/2 ","5 Years",{"v":2917,"d":"$2,917.00"},{"v":1137.63,"d":"$1,137.63"},{"$f":"(K188-L188)/K188*100%","v":{"v":0.61,"d":"61.00%"}}]
[null,"Combination Vest (including 2 carriers)","Handgun-Spike","Survival Armor-PeaceKeeper- Combination NIJ-0101.06 Level II armor with Spike 2 NIJ-0115.00 Correction - Shank Resistant Dual Certification - with two Male concealable Carriers Soft Trauma Pac (STP)","MBIIS2-2-RC-2C","BIIS2-2","N","0101.06-0115.00","II/2 ","5 Years",{"v":3285,"d":"$3,285.00"},{"v":1281.15,"d":"$1,281.15"},{"$f":"(K189-L189)/K189*100%","v":{"v":0.61,"d":"61.00%"}}]
[null,"Combination Vest (including carrier)","Handgun-Spike","Survival Armor-PeaceKeeper- Combination NIJ-0101.06 Level II armor with Spike 2 NIJ-0115.00 Correction - Shank Resistant Dual Certification -with one FeMAle Carrier Soft Trauma Pac (STP)","FBF2-S2-RC","BF2-S2","F","0101.06-0115.00","II/2 ","5 Years",{"v":2891,"d":"$2,891.00"},{"v":1127.49,"d":"$1,127.49"},{"v":0.61,"d":"61.00%"}]
[null,"Combination Vest (including 2 carriers)","Handgun-Spike","Survival Armor-PeaceKeeper- Combination NIJ-0101.06 Level II armor with Spike 2 NIJ-0115.00 Correction - Shank Resistant Dual Certification - with two Female Concealable Carriers, Soft Trauma Pac (STP)","FBF2-S2-RC-2C","BF2-S2","F","0101.06-0115.00","II/2 ","5 Years",{"v":3259,"d":"$3,259.00"},{"v":1271.01,"d":"$1,271.01"},{"$f":"(K191-L191)/K191*100%","v":{"v":0.61,"d":"61.00%"}}]
[null,"Combination Vest (including carrier)","Handgun-Spike","Survival Armor-PeaceKeeper- Combination NIJ-0101.06 Level IIIA armor with Spike 3 NIJ-0115.00 Correction - Shank Resistant Dual Certification  - with one Male Concealable Carrier, Soft Trauma Pac (STP)","MB3AS3-6-RC","B3AS3-6","N","0101.06-0115.00","IIIA/3","5 Years",{"v":2834,"d":"$2,834.00"},{"v":1105.26,"d":"$1,105.26"},{"v":0.61,"d":"61.00%"}]
[null,"Combination Vest (including 2 carriers)","Handgun-Spike","Survival Armor-PeaceKeeper- Combination NIJ-0101.06 Level IIIA armor with Spike 3 NIJ-0115.00 Correction - Shank Resistant Dual Certification  - with two Male or Female Concealable Carriers, Soft Trauma Pac (STP)","MB3AS3-6-RC-2C","B3AS3-6","N","0101.06-0115.00","IIIA/3","5 Years",{"v":3202,"d":"$3,202.00"},{"v":1248.78,"d":"$1,248.78"},{"$f":"(K193-L193)/K193*100%","v":{"v":0.61,"d":"61.00%"}}]
[null,"Combination Vest (including carrier)","Handgun-Spike","Survival Armor-Survival Armor-THREAT Combination NIJ-0101.06 Level II armor with Spike 2 NIJ-0115.00 Correction - Shank Resistant Dual Certification (One Size)","THREAT-BIIS2-2","BIIS2-2","N","0101.06-0115.00","II/2 ","5 Years",{"v":4538,"d":"$4,538.00"},{"v":1769.8200000000002,"d":"$1,769.82"},{"$f":"(K194-L194)/K194*100%","v":{"v":0.61,"d":"61.00%"}}]
[null,"Combination Vest (including 2 carriers)","Handgun-Spike","Survival Armor-Survival Armor-THREAT Combination NIJ-0101.06 Level IIIA armor with Spike 3 NIJ-0115.00 Correction - Shank Resistant Dual Certification (One Size)","THREAT-B3AS3-6","B3AS3-6","N","0101.06-0115.00","IIIA/3","5 Years",{"v":4740,"d":"$4,740.00"},{"v":1848.6000000000001,"d":"$1,848.60"},{"$f":"(K195-L195)/K195*100%","v":{"v":0.6099999999999999,"d":"61.00%"}}]
[{"$nulls":6}," "]

{"sheet":"Non-MB Helmets & Shields","index":1,"n_rows":153,"n_cols":11,"rows_kept":153,"merged":[[2,2,2,3]]}
[null,"Non-Market Basket Helmets & Shields:  Items that are not on  Verified Products List or Certified Products List. Products are not verified or certified. "]
[]
[null,"This list is included until 12/31/2026."]
[null,"Contractor Name: Survival Armor"]
[null,"Product","Type","Manufacturer (Brand and Series) ","Manufactuere Catalog #","Gender\n(M = Male, \nN = Neutral, \nF = Female)","MSRP","BID Price","% Discount","Notes","Reply"]
[null,"Shields"]
[null,"Ballistic Shield","Handgun Protection","Survival Armor-Confined Space Assault Shield 22″ x 48″ Level IIIA combined with Mil-Spec Fragmentation Protection Overlapping plate pockets Custom sizes available Stores easily in trunk Loop to shorten for climbing stairs Padded handles","CSAS","n/a",{"v":4707,"d":"$4,707.00"},{"v":1835.73,"d":"$1,835.73"},{"$f":"(G7-H7)/G7*100%","v":{"v":0.61,"d":"61.00%"}}]
[null,"Ballistic Shield","Handgun Protection","Survival Armor-School Resource Officer Shield 22” x 55” over all 22” x 20” Rigid upper with 4” x 10 viewport 22” x 35” Flexible lower Double handles with foam padding Fastec buckles to shorten for climbing stairs 11” x 4” loop for ID flap Seamless Strike Face","SRS","n/a",{"v":7108,"d":"$7,108.00"},{"v":2772.12,"d":"$2,772.12"},{"$f":"(G8-H8)/G8*100%","v":{"v":0.61,"d":"61.00%"}}]
[null,"Ballistic Shield","Handgun Protection","Survival Armor-Level IIIA-20\" x 34\" Standard Ballistic Shield with Viewport and Ergonomically designed Horizontal Handle, lightweight, and tested for Special Threats. Small-12.8 lbs.","STDUS3A-SHD-VP-2034","n/a",{"v":4632,"d":"$4,632.00"},{"v":1806.48,"d":"$1,806.48"},{"$f":"(G9-H9)/G9*100%","v":{"v":0.61,"d":"61.00%"}}]
[null,"Ballistic Shield","Handgun Protection","Survival Armor-Level IIIA-24\" x 36\" Standard Ballistic Shield with Viewport and Ergonomically designed Horizontal Handle, lightweight, and tested for Special Threats. Medium-16.9 bs.","STDUS3A-SHD-VP-2436","n/a",{"v":5302,"d":"$5,302.00"},{"v":2067.78,"d":"$2,067.78"},{"$f":"(G10-H10)/G10*100%","v":{"v":0.61,"d":"61.00%"}}]
[null,"Ballistic Shield","Handgun Protection","Survival Armor-Level IIIA-24\" x48\" Standard Ballistic Shield with Viewport and Ergonomically designed Horizontal Handle, lightweight, and tested for Special Threats. Large-19.5 lbs.","STDUS3A-SHD-VP-24X48","n/a",{"v":6285,"d":"$6,285.00"},{"v":2451.15,"d":"$2,451.15"},{"v":0.61,"d":"61.00%"}]
[null,"Ballistic Shield","Handgun Protection","Survival Armor-Level IIIA SPECTER Body Shield Ballistic Protection Against Handgun Rounds, Flat, 16X29\" NIJ Standard Tested 0108.01to meet or exceed ballistic resistance as specified by the testing protocol, UHMWPE based material layup; .50\" thick, Removeable and washable cover made of Heavy Duty Cordura; Ergonomically designed lightweight ambidextrous handle.","SPEC3AF16X29","n/a",{"v":3574,"d":"$3,574.00"},{"v":1393.8600000000001,"d":"$1,393.86"},{"v":0.61,"d":"61.00%"}]
[null,"Ballistic Shield","Handgun Protection","Survival Armor-Level IIIA SPECTER Body Shield Ballistic Protection Against Handgun Rounds, Flat, 18X24\"; NIJ Standard Tested 0108.01to meet or exceed ballistic resistance as specified by the testing protocol, UHMWPE based material layup; .50\" thick, Removeable and washable cover made of Heavy Duty  Cordura; Ergonomically designed lightweight ambidextrous handle.","SPEC3AF18X24","n/a",{"v":3344,"d":"$3,344.00"},{"v":1304.16,"d":"$1,304.16"},{"v":0.61,"d":"61.00%"}]
[null,"Ballistic Shield","Handgun Protection","Survival Armor-Level IIIA SPECTER Body Shield Ballistic Protection Against Handgun Rounds, Flat, 18\" x 34\"; NIJ Standard Tested 0108.01to meet or exceed ballistic resistance as specified by the testing protocol, UHMWPE based material layup; .50\" thick, Removeable and washable cover made of Heavy Duty  Cordura; Ergonomically designed lightweight ambidextrous handle.","SPEC3AF 18X34","n/a",{"v":3583,"d":"$3,583.00"},{"v":1397.3700000000001,"d":"$1,397.37"},{"v":0.61,"d":"61.00%"}]
[null,"Ballistic Shield","Handgun Protection","Survival Armor-Level IIIA SPECTER Body Shield Ballistic Protection Against Handgun Rounds, Flat, 20\" x 31\"; NIJ Standard Tested 0108.01to meet or exceed ballistic resistance as specified by the testing protocol, UHMWPE based material layup; .50\" thick, Removeable and washable cover made of Heavy Duty  Cordura; Ergonomically designed lightweight ambidextrous handle.","SPEC3AF 20X31","n/a",{"v":3617,"d":"$3,617.00"},{"v":1410.63,"d":"$1,410.63"},{"v":0.61,"d":"61.00%"}]
[null,"Ballistic Shield","Handgun Protection","Survival Armor-Level IIIA SPECTER Body Shield Ballistic Protection Against Handgun Rounds, Flat, 20\" x 34\"; NIJ Standard Tested 0108.01to meet or exceed ballistic resistance as specified by the testing protocol, UHMWPE based material layup; .50\" thick, Removeable and washable cover made of Heavy Duty  Cordura; Ergonomically designed lightweight ambidextrous handle,","SPEC3AF 20X34","n/a",{"v":3926,"d":"$3,926.00"},{"v":1531.14,"d":"$1,531.14"},{"v":0.6099999999999999,"d":"61.00%"}]
[null,"Ballistic Shield","Handgun Protection","Survival Armor-Level IIIA SPECTER Body Shield Ballistic Protection Against Handgun Rounds, Flat, 20\" x 40\"; NIJ Standard Tested 0108.01to meet or exceed ballistic resistance as specified by the testing protocol, UHMWPE based material layup; .50\" thick, Removeable and washable cover made of Heavy Duty  Cordura; Ergonomically designed lightweight ambidextrous handle.","SPEC3AF 20X40","n/a",{"v":3724,"d":"$3,724.00"},{"v":1452.3600000000001,"d":"$1,452.36"},{"v":0.61,"d":"61.00%"}]
[null,"Ballistic Shield","Handgun Protection","Survival Armor-Level IIIA SPECTER Body Shield Ballistic Protection Against Handgun Rounds, Flat, 24\" x 36\"; NIJ Standard Tested 0108.01to meet or exceed ballistic resistance as specified by the testing protocol, UHMWPE based material layup; .50\" thick, Removeable and washable cover made of Heavy Duty  Cordura; Ergonomically designed lightweight ambidextrous handle,","SPEC3AF 24X36","n/a",{"v":4990,"d":"$4,990.00"},{"v":1946.1000000000001,"d":"$1,946.10"},{"v":0.6099999999999999,"d":"61.00%"}]
[null,"Ballistic Shield","Handgun Protection","Survival Armor-Level IIIA SPECTER Body Shield Ballistic Protection Against Handgun Rounds, Flat, 24\" x 48\"; NIJ Standard Tested 0108.01to meet or exceed ballistic resistance as specified by the testing protocol, UHMWPE based material layup; .50\" thick, Removeable and washable cover made of Heavy Duty  Cordura; Ergonomically designed lightweight ambidextrous handle.","SPEC3AF 24X48","n/a",{"v":5840,"d":"$5,840.00"},{"v":2277.6,"d":"$2,277.60"},{"v":0.61,"d":"61.00%"}]
[null,"Ballistic Shield","Handgun Protection","Survival Armor-Level IIIA SPECTER Body Shield Ballistic Protection Against Handgun Rounds, Flat, 24\" x 51\"; NIJ Standard Tested 0108.01to meet or exceed ballistic resistance as specified by the testing protocol, UHMWPE based material layup; .50\" thick, Removeable and washable cover made of Heavy Duty  Cordura; Ergonomically designed lightweight ambidextrous handle.","SPEC3AF 24X51","n/a",{"v":5799,"d":"$5,799.00"},{"v":2261.61,"d":"$2,261.61"},{"v":0.61,"d":"61.00%"}]
[null,"Ballistic Shield","Handgun Protection","Survival Armor-WRAITH Ballistic Shield - Level IIIA - Stand Alone, Flat, No Viewport,18X24\" with upgraded ergonomically designed ambidextrous handle lightweight and easy grip, includes a quick release shoulder strap and carry bag. (5 year warranty on ballistic materials, 1 year on exterior cover & workmanship)","WRAITH3A-1824-F","n/a",{"v":4289,"d":"$4,289.00"},{"v":1672.71,"d":"$1,672.71"},{"v":0.61,"d":"61.00%"}]
[null,"Ballistic Shield","Handgun Protection","Survival Armor-WRAITH Ballistic Shield - Level IIIA - Stand Alone, Flat, No Viewport, 20X34\" with upgraded ergonomically designed ambidextrous handle lightweight and easy grip, includes a quick release shoulder strap and carry bag. (5 year warranty on ballistic materials, 1 year on exterior cover & workmanship)","WRAITH3A-2034-F","n/a",{"v":5789,"d":"$5,789.00"},{"v":2257.71,"d":"$2,257.71"},{"v":0.61,"d":"61.00%"}]
[null,"Ballistic Shield","Handgun Protection","Survival Armor-WRAITH Ballistic Shield - Level IIIA - Stand Alone, Flat, No Viewport, 20X40\" with upgraded ergonomically designed ambidextrous handle lightweight and easy grip, includes a quick release shoulder strap and carry bag. (5 year warranty on ballistic materials, 1 year on exterior cover & workmanship)","WRAITH3A-2040-F","n/a",{"v":6169,"d":"$6,169.00"},{"v":2405.9100000000003,"d":"$2,405.91"},{"v":0.61,"d":"61.00%"}]
[null,"Ballistic Shield","Handgun Protection","Survival Armor-WRAITH Ballistic Shield - Level IIIA - Stand Alone, Flat, No Viewport, 24X36\" with upgraded ergonomically designed ambidextrous handle lightweight and easy grip, includes a quick release shoulder strap and carry bag. (5 year warranty on ballistic materials, 1 year on exterior cover & workmanship)","WRAITH3A-2436-F","n/a",{"v":7039,"d":"$7,039.00"},{"v":2745.21,"d":"$2,745.21"},{"v":0.61,"d":"61.00%"}]
[null,"Ballistic Shield","Handgun Protection","Survival Armor-WRAITH Ballistic Shield - Level IIIA - Stand Alone, Flat, No Viewport, 24X48\" with upgraded ergonomically designed ambidextrous handle lightweight and easy grip, includes a quick release shoulder strap and carry bag. (5 year warranty on ballistic materials, 1 year on exterior cover & workmanship)","WRAITH3A-2448-F","n/a",{"v":7915,"d":"$7,915.00"},{"v":3086.85,"d":"$3,086.85"},{"v":0.61,"d":"61.00%"}]
[null,"Ballistic Shield","Handgun Protection","Survival Armor-WRAITH Ballistic Shield - Level IIIA - Stand Alone, Flat, No Viewport, 24X51\" with upgraded ergonomically designed ambidextrous handle lightweight and easy grip, includes a quick release shoulder strap and carry bag. (5 year warranty on ballistic materials, 1 year on exterior cover & workmanship)","WRAITH3A-2451-F","n/a",{"v":7902,"d":"$7,902.00"},{"v":3081.78,"d":"$3,081.78"},{"v":0.6099999999999999,"d":"61.00%"}]
[null,"Ballistic Shield","Handgun Protection","Survival Armor-WRAITH Ballistic Shield - Level IIIA - Stand Alone, Flat, With Viewport, 20X34\" with upgraded ergonomically designed ambidextrous handle lightweight and easy grip, includes a quick release shoulder strap and carry bag. (5 year warranty on ballistic materials, 1 year on exterior cover & workmanship)","WRAITH3A-2034-F-VP","n/a",{"v":5764,"d":"$5,764.00"},{"v":2247.96,"d":"$2,247.96"},{"$f":"(G27-H27)/G27*100%","v":{"v":0.61,"d":"61.00%"}}]
[null,"Ballistic Shield","Handgun Protection","Survival Armor-WRAITH Ballistic Shield - Level IIIA - Stand Alone, Flat, With Viewport, 20X40\" with upgraded ergonomically designed ambidextrous handle lightweight and easy grip, includes a quick release shoulder strap and carry bag. (5 year warranty on ballistic materials, 1 year on exterior cover & workmanship)","WRAITH3A-2040-F-VP","n/a",{"v":7786,"d":"$7,786.00"},{"v":3036.54,"d":"$3,036.54"},{"$f":"(G28-H28)/G28*100%","v":{"v":0.61,"d":"61.00%"}}]
[null,"Ballistic Shield","Handgun Protection","Survival Armor-WRAITH Ballistic Shield - Level IIIA - Stand Alone, Flat, With Viewport, 24X36\" with upgraded ergonomically designed ambidextrous handle lightweight and easy grip, includes a quick release shoulder strap and carry bag. (5 year warranty on ballistic materials, 1 year on exterior cover & workmanship)","WRAITH3A-2436-F-VP","n/a",{"v":8840,"d":"$8,840.00"},{"v":3447.6,"d":"$3,447.60"},{"v":0.61,"d":"61.00%"}]
[null,"Ballistic Shield","Handgun Protection","Survival Armor-WRAITH Ballistic Shield - Level IIIA - Stand Alone, Flat, With Viewport, 24X48\" with upgraded ergonomically designed ambidextrous handle lightweight and easy grip, includes a quick release shoulder strap and carry bag. (5 year warranty on ballistic materials, 1 year on exterior cover & workmanship)","WRAITH3A-2448-F-VP","n/a",{"v":9617,"d":"$9,617.00"},{"v":3750.63,"d":"$3,750.63"},{"v":0.61,"d":"61.00%"}]
[null,"Ballistic Shield","Handgun Protection","Survival Armor-WRAITH Ballistic Shield - Level IIIA - Stand Alone, Flat, With Viewport, 24X51\" with upgraded ergonomically designed ambidextrous handle lightweight and easy grip, includes a quick release shoulder strap and carry bag. (5 year warranty on ballistic materials, 1 year on exterior cover & workmanship)","WRAITH3A-2451-F-VP","n/a",{"v":9673,"d":"$9,673.00"},{"v":3772.4700000000003,"d":"$3,772.47"},{"v":0.61,"d":"61.00%"}]
[null,"Ballistic Shield","Handgun Protection","Survival Armor-WRAITH Ballistic Shield - Level IIIA - Stand Alone, Single Curved, No Viewport,18X24\" with upgraded ergonomically designed ambidextrous handle lightweight and easy grip, includes a quick release shoulder strap and carry bag. (5 year warranty on ballistic materials, 1 year on exterior cover & workmanship)","WRAITH3A-1824-SC","n/a",{"v":4289,"d":"$4,289.00"},{"v":1672.71,"d":"$1,672.71"},{"v":0.61,"d":"61.00%"}]
[null,"Ballistic Shield","Handgun Protection","Survival Armor-WRAITH Ballistic Shield - Level IIIA - Stand Alone, Single Curved, No Viewport, 20X34\" with upgraded ergonomically designed ambidextrous handle lightweight and easy grip, includes a quick release shoulder strap and carry bag. (5 year warranty on ballistic materials, 1 year on exterior cover & workmanship)","WRAITH3A-2034-SC","n/a",{"v":5789,"d":"$5,789.00"},{"v":2257.71,"d":"$2,257.71"},{"v":0.61,"d":"61.00%"}]
[null,"Ballistic Shield","Handgun Protection","Survival Armor-WRAITH Ballistic Shield - Level IIIA - Stand Alone, Single Curved, No Viewport, 20X40\" with upgraded ergonomically designed ambidextrous handle lightweight and easy grip, includes a quick release shoulder strap and carry bag. (5 year warranty on ballistic materials, 1 year on exterior cover & workmanship)","WRAITH3A-2040-SC","n/a",{"v":6169,"d":"$6,169.00"},{"v":2405.9100000000003,"d":"$2,405.91"},{"v":0.61,"d":"61.00%"}]
[null,"Ballistic Shield","Handgun Protection","Survival Armor-WRAITH Ballistic Shield - Level IIIA - Stand Alone, Single Curved, No Viewport, 24X36\" with upgraded ergonomically designed ambidextrous handle lightweight and easy grip, includes a quick release shoulder strap and carry bag. (5 year warranty on ballistic materials, 1 year on exterior cover & workmanship)","WRAITH3A-2436-SC","n/a",{"v":7038,"d":"$7,038.00"},{"v":2744.82,"d":"$2,744.82"},{"v":0.61,"d":"61.00%"}]
[null,"Ballistic Shield","Handgun Protection","Survival Armor-WRAITH Ballistic Shield - Level IIIA - Stand Alone, Single Curved, No Viewport, 24X48\" with upgraded ergonomically designed ambidextrous handle lightweight and easy grip, includes a quick release shoulder strap and carry bag. (5 year warranty on ballistic materials, 1 year on exterior cover & workmanship)","WRAITH3A-2448-SC","n/a",{"v":7915,"d":"$7,915.00"},{"v":3086.85,"d":"$3,086.85"},{"v":0.61,"d":"61.00%"}]
[null,"Ballistic Shield","Handgun Protection","Survival Armor-WRAITH Ballistic Shield - Level IIIA - Stand Alone, Single Curved, No Viewport, 24X51\" with upgraded ergonomically designed ambidextrous handle lightweight and easy grip, includes a quick release shoulder strap and carry bag. (5 year warranty on ballistic materials, 1 year on exterior cover & workmanship)","WRAITH3A-2451-SC","n/a",{"v":7902,"d":"$7,902.00"},{"v":3081.78,"d":"$3,081.78"},{"v":0.6099999999999999,"d":"61.00%"}]
[null,"Ballistic Shield","Handgun Protection","Survival Armor-WRAITH Ballistic Shield - Level IIIA - Stand Alone, Single Curved With Viewport, 20X34\" with upgraded ergonomically designed ambidextrous handle lightweight and easy grip, includes a quick release shoulder strap and carry bag. (5 year warranty on ballistic materials, 1 year on exterior cover & workmanship)","WRAITH3A-2034-SC-VP","n/a",{"v":7432,"d":"$7,432.00"},{"v":2898.48,"d":"$2,898.48"},{"v":0.6100000000000001,"d":"61.00%"}]
[null,"Ballistic Shield","Handgun Protection","Survival Armor-WRAITH Ballistic Shield - Level IIIA - Stand Alone, Single Curved With Viewport, 20X40\" with upgraded ergonomically designed ambidextrous handle lightweight and easy grip, includes a quick release shoulder strap and carry bag. (5 year warranty on ballistic materials, 1 year on exterior cover & workmanship)","WRAITH3A-2040-SC-VP","n/a",{"v":7786,"d":"$7,786.00"},{"v":3036.54,"d":"$3,036.54"},{"v":0.61,"d":"61.00%"}]
[null,"Ballistic Shield","Handgun Protection","Survival Armor-WRAITH Ballistic Shield - Level IIIA - Stand Alone, Single Curved With Viewport, 24X36\" with upgraded ergonomically designed ambidextrous handle lightweight and easy grip, includes a quick release shoulder strap and carry bag. (5 year warranty on ballistic materials, 1 year on exterior cover & workmanship)","WRAITH3A-2436-SC-VP","n/a",{"v":8758,"d":"$8,758.00"},{"v":3415.62,"d":"$3,415.62"},{"v":0.61,"d":"61.00%"}]
[null,"Ballistic Shield","Handgun Protection","Survival Armor-WRAITH Ballistic Shield - Level IIIA - Stand Alone, Single Curved With Viewport, 24X48\" with upgraded ergonomically designed ambidextrous handle lightweight and easy grip, includes a quick release shoulder strap and carry bag. (5 year warranty on ballistic materials, 1 year on exterior cover & workmanship)","WRAITH3A-2448-SC-VP","n/a",{"v":9887,"d":"$9,887.00"},{"v":3855.9300000000003,"d":"$3,855.93"},{"v":0.61,"d":"61.00%"}]
[null,"Ballistic Shield","Handgun Protection","Survival Armor-WRAITH Ballistic Shield - Level IIIA - Stand Alone, Single Curved With Viewport, 24X51\" with upgraded ergonomically designed ambidextrous handle lightweight and easy grip, includes a quick release shoulder strap and carry bag. (5 year warranty on ballistic materials, 1 year on exterior cover & workmanship)","WRAITH3A-2451-SC-VP","n/a",{"v":9764,"d":"$9,764.00"},{"v":3807.96,"d":"$3,807.96"},{"v":0.61,"d":"61.00%"}]
[null,"Ballistic Shield","Riffle Protection","Survival Armor-WRAITH Ballistic Shield - Level III - Stand Alone, Flat, No Viewport, 18X24\" with upgraded ergonomically designed ambidextrous handle lightweight and easy grip, includes a quick release shoulder strap and carry bag. (5 year warranty on ballistic materials, 1 year on exterior cover & workmanship)","WRAITH3-1824-F","n/a",{"v":8943,"d":"$8,943.00"},{"v":3487.77,"d":"$3,487.77"},{"v":0.61,"d":"61.00%"}]
[null,"Ballistic Shield","Handgun Protection","Survival Armor-WRAITH Ballistic Shield - Level III - Stand Alone, Flat, No Viewport, 20X34\" with upgraded ergonomically designed ambidextrous handle lightweight and easy grip, includes a quick release shoulder strap and carry bag. (5 year warranty on ballistic materials, 1 year on exterior cover & workmanship)","WRAITH3-2034-F","n/a",{"v":13374,"d":"$13,374.00"},{"v":5215.860000000001,"d":"$5,215.86"},{"v":0.61,"d":"61.00%"}]
[null,"Ballistic Shield","Riffle Protection","Survival Armor-WRAITH Ballistic Shield - Level III - Stand Alone, Flat, No Viewport, 20X40\" with upgraded ergonomically designed ambidextrous handle lightweight and easy grip, includes a quick release shoulder strap and carry bag. (5 year warranty on ballistic materials, 1 year on exterior cover & workmanship)","WRAITH3-2040-F","n/a",{"v":12848,"d":"$12,848.00"},{"v":5010.72,"d":"$5,010.72"},{"$f":"(G45-H45)/G45*100%","v":{"v":0.61,"d":"61.00%"}}]
[null,"Ballistic Shield","Riffle Protection","Survival Armor-WRAITH Ballistic Shield - Level III - Stand Alone, Flat, No Viewport, 24X36\" with upgraded ergonomically designed ambidextrous handle lightweight and easy grip, includes a quick release shoulder strap and carry bag. (5 year warranty on ballistic materials, 1 year on exterior cover & workmanship)","WRAITH3-2436-F","n/a",{"v":16802,"d":"$16,802.00"},{"v":6552.780000000001,"d":"$6,552.78"},{"$f":"(G46-H46)/G46*100%","v":{"v":0.61,"d":"61.00%"}}]
[null,"Ballistic Shield","Riffle Protection","Survival Armor-WRAITH Ballistic Shield - Level III - Stand Alone, Flat, No Viewport, 24X48\" with upgraded ergonomically designed ambidextrous handle lightweight and easy grip, includes a quick release shoulder strap and carry bag. (5 year warranty on ballistic materials, 1 year on exterior cover & workmanship)","WRAITH3-2448-F","n/a",{"v":19532,"d":"$19,532.00"},{"v":7617.4800000000005,"d":"$7,617.48"},{"v":0.61,"d":"61.00%"}]
[null,"Ballistic Shield","Riffle Protection","Survival Armor-WRAITH Ballistic Shield - Level III - Stand Alone, Flat, No Viewport, 24X51\" with upgraded ergonomically designed ambidextrous handle lightweight and easy grip, includes a quick release shoulder strap and carry bag. (5 year warranty on ballistic materials, 1 year on exterior cover & workmanship)","WRAITH3-2451-F","n/a",{"v":19411,"d":"$19,411.00"},{"v":7570.29,"d":"$7,570.29"},{"v":0.61,"d":"61.00%"}]
[null,"Ballistic Shield","Riffle Protection","Survival Armor-WRAITH Ballistic Shield - Level III - Stand Alone, Flat, With Viewport, 20X34\" with upgraded ergonomically designed ambidextrous handle lightweight and easy grip, includes a quick release shoulder strap and carry bag. (5 year warranty on ballistic materials, 1 year on exterior cover & workmanship)","WRAITH3-2034-F-VP","n/a",{"v":11835,"d":"$11,835.00"},{"v":4615.650000000001,"d":"$4,615.65"},{"v":0.61,"d":"61.00%"}]
[null,"Ballistic Shield","Riffle Protection","Survival Armor-WRAITH Ballistic Shield - Level III - Stand Alone, Flat, With Viewport, 20X40\" with upgraded ergonomically designed ambidextrous handle lightweight and easy grip, includes a quick release shoulder strap and carry bag. (5 year warranty on ballistic materials, 1 year on exterior cover & workmanship)","WRAITH3-2040-F-VP","n/a",{"v":14694,"d":"$14,694.00"},{"v":5730.66,"d":"$5,730.66"},{"v":0.61,"d":"61.00%"}]
[null,"Ballistic Shield","Riffle Protection","Survival Armor-WRAITH Ballistic Shield - Level III - Stand Alone, Flat, With Viewport, 24X36\" with upgraded ergonomically designed ambidextrous handle lightweight and easy grip, includes a quick release shoulder strap and carry bag. (5 year warranty on ballistic materials, 1 year on exterior cover & workmanship)","WRAITH3-2436-F-VP","n/a",{"v":18607,"d":"$18,607.00"},{"v":7256.7300000000005,"d":"$7,256.73"},{"v":0.61,"d":"61.00%"}]
[null,"Ballistic Shield","Riffle Protection","Survival Armor-WRAITH Ballistic Shield - Level III - Stand Alone, Flat, With Viewport, 24X48\" with upgraded ergonomically designed ambidextrous handle lightweight and easy grip, includes a quick release shoulder strap and carry bag. (5 year warranty on ballistic materials, 1 year on exterior cover & workmanship)","WRAITH3-2448-F-VP","n/a",{"v":21408,"d":"$21,408.00"},{"v":8349.12,"d":"$8,349.12"},{"v":0.61,"d":"61.00%"}]
[null,"Ballistic Shield","Riffle Protection","Survival Armor-WRAITH Ballistic Shield - Level III - Stand Alone, Flat, With Viewport, 24X51\" with upgraded ergonomically designed ambidextrous handle lightweight and easy grip, includes a quick release shoulder strap and carry bag. (5 year warranty on ballistic materials, 1 year on exterior cover & workmanship)","WRAITH3-2451-F-VP","n/a",{"v":21495,"d":"$21,495.00"},{"v":8383.050000000001,"d":"$8,383.05"},{"v":0.61,"d":"61.00%"}]
[null,"Ballistic Shield","Riffle Protection","Survival Armor-WRAITH Ballistic Shield - Level III - Stand Alone, Single Curved , No Viewport, 18X24\" with upgraded ergonomically designed ambidextrous handle lightweight and easy grip, includes a quick release shoulder strap and carry bag. (5 year warranty on ballistic materials, 1 year on exterior cover & workmanship)","WRAITH3-1824-SC","n/a",{"v":8943,"d":"$8,943.00"},{"v":3487.77,"d":"$3,487.77"},{"v":0.61,"d":"61.00%"}]
[null,"Ballistic Shield","Riffle Protection","Survival Armor-WRAITH Ballistic Shield - Level III - Stand Alone, Single Curved , No Viewport, 20X34\" with upgraded ergonomically designed ambidextrous handle lightweight and easy grip, includes a quick release shoulder strap and carry bag. (5 year warranty on ballistic materials, 1 year on exterior cover & workmanship)","WRAITH3-2034-SC","n/a",{"v":13374,"d":"$13,374.00"},{"v":5215.860000000001,"d":"$5,215.86"},{"v":0.61,"d":"61.00%"}]
[null,"Ballistic Shield","Riffle Protection","Survival Armor-WRAITH Ballistic Shield - Level III - Stand Alone, Single Curved , No Viewport, 20X40\" with upgraded ergonomically designed ambidextrous handle lightweight and easy grip, includes a quick release shoulder strap and carry bag. (5 year warranty on ballistic materials, 1 year on exterior cover & workmanship)","WRAITH3-2040-SC","n/a",{"v":12849,"d":"$12,849.00"},{"v":5011.110000000001,"d":"$5,011.11"},{"v":0.61,"d":"61.00%"}]
[null,"Ballistic Shield","Riffle Protection","Survival Armor-WRAITH Ballistic Shield - Level III - Stand Alone, Single Curved , No Viewport, 24X36\" with upgraded ergonomically designed ambidextrous handle lightweight and easy grip, includes a quick release shoulder strap and carry bag. (5 year warranty on ballistic materials, 1 year on exterior cover & workmanship)","WRAITH3-2436-SC","n/a",{"v":16802,"d":"$16,802.00"},{"v":6552.780000000001,"d":"$6,552.78"},{"v":0.61,"d":"61.00%"}]
[null,"Ballistic Shield","Riffle Protection","Survival Armor-WRAITH Ballistic Shield - Level III - Stand Alone, Single Curved , No Viewport, 24X48\" with upgraded ergonomically designed ambidextrous handle lightweight and easy grip, includes a quick release shoulder strap and carry bag. (5 year warranty on ballistic materials, 1 year on exterior cover & workmanship)","WRAITH3-2448-SC","n/a",{"v":19532,"d":"$19,532.00"},{"v":7617.4800000000005,"d":"$7,617.48"},{"v":0.61,"d":"61.00%"}]
[null,"Ballistic Shield","Riffle Protection","Survival Armor-WRAITH Ballistic Shield - Level III - Stand Alone, Single Curved , No Viewport, 24X51\" with upgraded ergonomically designed ambidextrous handle lightweight and easy grip, includes a quick release shoulder strap and carry bag. (5 year warranty on ballistic materials, 1 year on exterior cover & workmanship)","WRAITH3-2451-SC","n/a",{"v":19411,"d":"$19,411.00"},{"v":7570.29,"d":"$7,570.29"},{"v":0.61,"d":"61.00%"}]
[null,"Ballistic Shield","Riffle Protection","Survival Armor-WRAITH Ballistic Shield - Level III - Stand Alone, Single Curved, With Viewport, 20X34\" with upgraded ergonomically designed ambidextrous handle lightweight and easy grip, includes a quick release shoulder strap and carry bag. (5 year warranty on ballistic materials, 1 year on exterior cover & workmanship)","WRAITH3-2034-SC-VP","n/a",{"v":11834,"d":"$11,834.00"},{"v":4615.26,"d":"$4,615.26"},{"v":0.61,"d":"61.00%"}]
[null,"Ballistic Shield","Riffle Protection","Survival Armor-WRAITH Ballistic Shield - Level III - Stand Alone, Single Curved, With Viewport, 20X40\" with upgraded ergonomically designed ambidextrous handle lightweight and easy grip, includes a quick release shoulder strap and carry bag. (5 year warranty on ballistic materials, 1 year on exterior cover & workmanship)","WRAITH3-2040-SC-VP","n/a",{"v":14694,"d":"$14,694.00"},{"v":5730.66,"d":"$5,730.66"},{"v":0.61,"d":"61.00%"}]
[null,"Ballistic Shield","Riffle Protection","Survival Armor-WRAITH Ballistic Shield - Level III - Stand Alone, Single Curved, With Viewport, 24X36\" with upgraded ergonomically designed ambidextrous handle lightweight and easy grip, includes a quick release shoulder strap and carry bag. (5 year warranty on ballistic materials, 1 year on exterior cover & workmanship)","WRAITH3-2436-SC-VP","n/a",{"v":18608,"d":"$18,608.00"},{"v":7257.12,"d":"$7,257.12"},{"v":0.6100000000000001,"d":"61.00%"}]
[null,"Ballistic Shield","Riffle Protection","Survival Armor-WRAITH Ballistic Shield - Level III - Stand Alone, Single Curved, With Viewport, 24X48\" with upgraded ergonomically designed ambidextrous handle lightweight and easy grip, includes a quick release shoulder strap and carry bag. (5 year warranty on ballistic materials, 1 year on exterior cover & workmanship)","WRAITH3-2448-SC-VP","n/a",{"v":21408,"d":"$21,408.00"},{"v":8349.12,"d":"$8,349.12"},{"v":0.61,"d":"61.00%"}]
[null,"Ballistic Shield","Riffle Protection","Survival Armor-WRAITH Ballistic Shield - Level III - Stand Alone, Single Curved, With Viewport, 24X51\" with upgraded ergonomically designed ambidextrous handle lightweight and easy grip, includes a quick release shoulder strap and carry bag. (5 year warranty on ballistic materials, 1 year on exterior cover & workmanship)","WRAITH3-2451-SC-VP","n/a",{"v":21495,"d":"$21,495.00"},{"v":8383.050000000001,"d":"$8,383.05"},{"v":0.61,"d":"61.00%"}]
[null,"Ballistic Shield","Riffle Protection","Survival Armor-Olympian Level III Ballistic Shield - stand-alone - with Viewport protection against  rifle rounds and lesser threats, Flat, 20\" x 30\"; NIJ Standard Tested 0108.01 to meet or exceed ballistic resistance as specified by the testing protocol, UHMWPE based material layup; .50\" thick, Quick release neck strap, molded rubber strap, and shield carrying bag included; Ergonomically designed lightweight ambidextrous handle.Ballistic Viewport 2.5” x 8.5”","OLYMP3-2030-F-VP","n/a",{"v":23000,"d":"$23,000.00"},{"v":8970,"d":"$8,970.00"},{"v":0.61,"d":"61.00%"}]
[null,"Ballistic Shield","Riffle Protection","Survival Armor-Olympian Level III Ballistic Shield - stand-alone - with Viewport and Light; protection against  rifle rounds and lesser threats, Flat, 20\" x 30\"; NIJ Standard Tested 0108.01 to meet or exceed ballistic resistance as specified by the testing protocol, UHMWPE based material layup; .50\" thick, Quick release neck strap, molded rubber strap, and shield carrying bag included; Ergonomically designed lightweight ambidextrous handle.Ballistic Viewport 2.5” x 8.5”","OLYMP3-2030-F-VP-LT","n/a",{"v":29000,"d":"$29,000.00"},{"v":11310,"d":"$11,310.00"},{"v":0.61,"d":"61.00%"}]
[{"$nulls":6},{"v":0,"d":"$0.00"},{"v":0,"d":"$0.00"},{"$f":"(G67-H67)/G67*100%","v":{"$error":"#DIV/0!"}}]
[]
[null,"Helmets"]
[{"$nulls":6},{"v":0,"d":"$0.00"},{"v":0,"d":"$0.00"},{"$f":"(G70-H70)/G70*100%","v":{"$error":"#DIV/0!"}}]
[null,"Helmets","Handgun Protection","Survival Armor-SA-301P4 PASGT helmet w/Modified 4 Point ACH H Suspension w/7 Pads Level IIIA NIJ 0106.01 Sizes: Small, Medium, Large or XLarge  ","HA-SA-301P4","n/a",{"v":1217,"d":"$1,217.00"},{"v":474.63,"d":"$474.63"},{"$f":"(G71-H71)/G71*100%","v":{"v":0.61,"d":"61.00%"}}]
[null,"Helmets","Handgun Protection","Survival Armor-SA PASGT helmet w/4 Point Mesh Harness Level IIIA NIJ 0106.01 Sizes: Small, Medium, Large, or Xlarge  ","HA-SA-PASGT","n/a",{"v":1231,"d":"$1,231.00"},{"v":480.09000000000003,"d":"$480.09"},{"$f":"(G72-H72)/G72*100%","v":{"v":0.61,"d":"61.00%"}}]
[null,"Helmets","Handgun Protection","Survival Armor-SA PASGT helmet w/4 Point Mesh Harness, and 7 Pads Level IIIA NIJ 0106.01 Sizes: Small, Medium, Large, or Xlarge  ","HA-SA-PASGT+7P","n/a",{"v":1376,"d":"$1,376.00"},{"v":536.64,"d":"$536.64"},{"v":0.61,"d":"61.00%"}]
[null,"Helmets","Handgun Protection","Survival Armor-SA-MICHLEO Standard Helmet Full Cut (Mesh Harness) Level IIIA NIJ 0106.01 Sizes: Small, Medium, Large, or Xlarge  ","HA-SA-MICHLEO-SC","n/a",{"v":1422,"d":"$1,422.00"},{"v":554.58,"d":"$554.58"},{"v":0.61,"d":"61.00%"}]
[null,"Helmets","Handgun Protection","Survival Armor-SA-MICHLEO Standard Helmet Mid- Cut (Mesh Harness) Level IIIA NIJ 0106.01 Sizes: Small, Medium, Large, or Xlarge  ","HA-SA-MICHLEO-MC","n/a",{"v":1422,"d":"$1,422.00"},{"v":554.58,"d":"$554.58"},{"v":0.61,"d":"61.00%"}]
[null,"Helmets","Handgun Protection","Survival Armor-SA-MICHLEO Standard Helmet High-Cut (Mesh Harness) Level IIIA NIJ 0106.01 Sizes: Small, Medium, Large, or Xlarge  ","HA-SA-MICHLEO-HC","n/a",{"v":1422,"d":"$1,422.00"},{"v":554.58,"d":"$554.58"},{"v":0.61,"d":"61.00%"}]
[null,"Helmets","Handgun Protection","Survival Armor-SA-MICHMIL  Standard Helmet Full-Cut (Advance Harness/7 Pads) Level IIIA NIJ 0106.01 Sizes: Small, Medium, Large, or Xlarge  ","HA-SA-MICHADV-SC","n/a",{"v":1545,"d":"$1,545.00"},{"v":602.5500000000001,"d":"$602.55"},{"v":0.61,"d":"61.00%"}]
[null,"Helmets","Handgun Protection","Survival Armor-SA-MICHMIL  Standard Helmet  Mid-Cut (Advance Harness/7 Pads) Level IIIA NIJ 0106.01 Sizes: Small, Medium, Large, or Xlarge  ","HA-SA-MICHADV-MC","n/a",{"v":1545,"d":"$1,545.00"},{"v":602.5500000000001,"d":"$602.55"},{"v":0.61,"d":"61.00%"}]
[null,"Helmets","Handgun Protection","Survival Armor-SA-MICHMIL Standard Helmet High-Cut (Advance Harness/7 Pads) Level IIIA NIJ 0106.01 Sizes: Small, Medium, Large, or Xlarge  ","HA-SA-MICHADV-HC","n/a",{"v":1545,"d":"$1,545.00"},{"v":602.5500000000001,"d":"$602.55"},{"v":0.61,"d":"61.00%"}]
[null,"Helmets","Handgun Protection","Survival Armor-SA-501 ACH Standard-Cut Helmet (w/4 Point ACH H Suspension w/7 Pads) Level IIIA NIJ 0106.01 Sizes: Small, Medium, Large or XLarge  ","HA-SA-501 SC","n/a",{"v":1434,"d":"$1,434.00"},{"v":559.26,"d":"$559.26"},{"v":0.61,"d":"61.00%"}]
[null,"Helmets","Handgun Protection","Survival Armor-SA-501 ACHMC Mid-Cut Helmet (4 Point H Harness w/7 Pads) Level IIIA NIJ 0106.01 Sizes: Small, Medium, Large or XLarge  ","HA-SA-501 MC","n/a",{"v":1444,"d":"$1,444.00"},{"v":563.16,"d":"$563.16"},{"v":0.61,"d":"61.00%"}]
[null,"Helmets","Handgun Protection","Survival Armor-SA-501 ACHHC High-Cut Helmet (4 Point H Harness w/7 Pads) Level IIIA NIJ 0106.01 Sizes: Small, Medium, Large or XLarge  ","HA-SA-501 HC","n/a",{"v":1454,"d":"$1,454.00"},{"v":567.0600000000001,"d":"$567.06"},{"v":0.61,"d":"61.00%"}]
[null,"Helmets","Handgun Protection","Survival Armor-SA-501 ACH Standard-Cut Helmet Kit (w/ Ratchet Dial Liner Harness) Level IIIA NIJ 0106.01, Includes Rails, Shroud, Dial Ratchet, Velcro Kit and Bungees; Sizes: Small, Medium, Large or XLarge  ","HA-SA-501SC-KIT","n/a",{"v":2246,"d":"$2,246.00"},{"v":875.94,"d":"$875.94"},{"v":0.61,"d":"61.00%"}]
[null,"Helmets","Handgun Protection","Survival Armor-SA-501 ACHMC Mid-Cut Helmet Kit (w/ Ratchet Dial Liner Harness) Level IIIA NIJ 0106.01, Includes Rails, Shroud, Dial Ratchet, Velcro Kit and Bungees; Sizes: Small, Medium, Large or XLarge  ","HA-SA-501MC-KIT","n/a",{"v":2300,"d":"$2,300.00"},{"v":897,"d":"$897.00"},{"v":0.61,"d":"61.00%"}]
[null,"Helmets","Handgun Protection","Survival Armor-SA-501 ACHHC High-Cut Helmet Kit (w/ Ratchet Dial Liner Harness) Level IIIA NIJ 0106.01, Includes Rails, Shroud, Dial Ratchet, Velcro Kit and Bungees; Sizes: Small, Medium, Large or XLarge  ","HA-SA-501HC-KIT","n/a",{"v":2300,"d":"$2,300.00"},{"v":897,"d":"$897.00"},{"v":0.61,"d":"61.00%"}]
[null,"Helmets","Handgun Protection","Survival Armor-SA-501 ULACH Standard Full-Cut Helmet (Ultra Lightweight ACH)  Level IIIA NIJ 0106.01 Sizes: Small, Medium, Large or XLarge  ","HA-SA-ULACH","n/a",{"v":3095,"d":"$3,095.00"},{"v":1207.05,"d":"$1,207.05"},{"v":0.61,"d":"61.00%"}]
[null,"Helmets","Handgun Protection","Survival Armor-SA-501 ULACHMC Mid-Cut Helmet (Ultra Lightweight ACH) Level IIIA NIJ 0106.01 Sizes: Small, Medium, Large or XLarge  ","HA-SA-ULACHMC","n/a",{"v":3196,"d":"$3,196.00"},{"v":1246.44,"d":"$1,246.44"},{"v":0.61,"d":"61.00%"}]
[null,"Helmets","Handgun Protection","Survival Armor-SA-501 ULACHHC High-Cut Helmet (Ultra Lightweight ACH) Level IIIA NIJ 0106.01 Sizes: Small, Medium, Large or XLarge  ","HA-SA-ULACHHC","n/a",{"v":3391,"d":"$3,391.00"},{"v":1322.49,"d":"$1,322.49"},{"v":0.6100000000000001,"d":"61.00%"}]
[null,"Helmets","Handgun Protection","Survival Armor-SA-501 HPACH Standard Full-Cut Helmet (High Performance ACH) Level IIIA NIJ 0106.01 Sizes: Small, Medium, Large or XLarge  ","HA-SA-HPACH","n/a",{"v":2901,"d":"$2,901.00"},{"v":1131.39,"d":"$1,131.39"},{"v":0.61,"d":"61.00%"}]
[null,"Helmets","Handgun Protection","Survival Armor-SA-501 HPACHMC Mid-Cut Helmet (High Performance ACH) Level IIIA NIJ 0106.01 Sizes: Small, Medium, Large or XLarge  ","HA-SA-HPACHMC","n/a",{"v":2889,"d":"$2,889.00"},{"v":1126.71,"d":"$1,126.71"},{"v":0.61,"d":"61.00%"}]
[null,"Helmets","Handgun Protection","Survival Armor-SA-501 HPACHHC High-Cut Helmet (High Performance ACH) Level IIIA NIJ 0106.01 Sizes: Small, Medium, Large or XLarge  ","HA-SA-HPACHHC","n/a",{"v":2895,"d":"$2,895.00"},{"v":1129.05,"d":"$1,129.05"},{"v":0.61,"d":"61.00%"}]
[null,"Helmets","Handgun Protection","Survival Armor-SA-WLWBH ACH Standard-Cut Level IIIA Helmet Sizes: S, M, L, XL  ","HA-SA-WLWBH-STD","n/a",{"v":3643,"d":"$3,643.00"},{"v":1420.77,"d":"$1,420.77"},{"v":0.61,"d":"61.00%"}]
[null,"Helmets","Handgun Protection","Survival Armor-SA-WLWBH ACH Mid-Cut Level IIIA Helmet Sizes: S, M, L, XL  ","HA-SA-WLWBH-MID","n/a",{"v":3643,"d":"$3,643.00"},{"v":1420.77,"d":"$1,420.77"},{"v":0.61,"d":"61.00%"}]
[null,"Helmets","Handgun Protection","Survival Armor-SA-WLWBH ACH High-Cut Level IIIA Helmet Sizes: S, M, L, XL  ","HA-SA-WLWBH-HIGH","n/a",{"v":3643,"d":"$3,643.00"},{"v":1420.77,"d":"$1,420.77"},{"v":0.61,"d":"61.00%"}]
[null,"Helmets","Handgun Protection","Survival Armor-SA-Bushwacker Level IIIA Helmet Sizes (S/M), (L), (XL)  ","HA-SA-BUSHWACKER","n/a",{"v":5671,"d":"$5,671.00"},{"v":2211.69,"d":"$2,211.69"},{"v":0.61,"d":"61.00%"}]
[{"$nulls":6},{"v":0,"d":"$0.00"},{"v":0,"d":"$0.00"},{"$f":"(G96-H96)/G96*100%","v":{"$error":"#DIV/0!"}}]
[{"$nulls":6},{"v":0,"d":"$0.00"},{"v":0,"d":"$0.00"},{"$error":"#DIV/0!"}]
[{"$nulls":6},{"v":0,"d":"$0.00"},{"v":0,"d":"$0.00"},{"$error":"#DIV/0!"}]
[]
[null,"Helmet Accessories"]
[null,"Nonballistic face shield",{"$nulls":4},{"v":0,"d":"$0.00"},{"v":0,"d":"$0.00"},{"$f":"(G101-H101)/G101*100%","v":{"$error":"#DIV/0!"}}]
[null,"Nonballistic face shield","n/a","Survival Armor-Polycarbonate Face Shield 6\", 0.150\" thick - Field-mount riot face shield designed to fit most PASGT style combat helmets w/ front brim.","DK5-H.150S","n/a",{"v":411,"d":"$411.00"},{"v":160.29,"d":"$160.29"},{"$f":"(G102-H102)/G102*100%","v":{"v":0.61,"d":"61.00%"}}]
[null,"Nonballistic face shield","n/a","Survival Armor-Polycarbonate Face Shield 8\", 0.150\" thick - Field-mount riot face shield designed to fit most PASGT combat helmets with front-brim.","DK5-H.150","n/a",{"v":357,"d":"$357.00"},{"v":139.23000000000002,"d":"$139.23"},{"$f":"(G103-H103)/G103*100%","v":{"v":0.61,"d":"61.00%"}}]
[null,"Nonballistic face shield","n/a","Survival Armor-Polycarbonate Face Shield 6\", 0.250\" thick, Field-mount riot face shield designed to fit most PASGT style combat helmets w/ front brim.","DK5-X.250AFS","n/a",{"v":502,"d":"$502.00"},{"v":195.78,"d":"$195.78"},{"v":0.6100000000000001,"d":"61.00%"}]
[null,"Nonballistic face shield","n/a","Survival Armor-Polycarbonate Face Shield 8\", 0.250\" thick, Field-mount riot face shield designed to fit most PASGT style combat helmets w/ front brim.","DK5-X.250AF","n/a",{"v":543,"d":"$543.00"},{"v":211.77,"d":"$211.77"},{"v":0.61,"d":"61.00%"}]
[null,"Nonballistic face shield","n/a","Survival Armor-Polycarbonate Face Shield 6\", 0.150\" thick, Hard-mount riot face shield designed to fit most PASGT style combat helmets w/ front brim. Mounting hardware included.","DK5-H.150SHM","n/a",{"v":413,"d":"$413.00"},{"v":161.07,"d":"$161.07"},{"v":0.61,"d":"61.00%"}]
[null,"Nonballistic face shield","n/a","Survival Armor-Polycarbonate Face Shield 8\", 0.150\" thick, Anti Fog, Anti-Abrasion - Hard Mount; Fits Most PASGT Style Helmets with Front Brim. Mounting hardware included.","DK5-H.150HM","n/a",{"v":377,"d":"$377.00"},{"v":147.03,"d":"$147.03"},{"v":0.61,"d":"61.00%"}]
[null,"Nonballistic face shield","n/a","Survival Armor-Polycarbonate Face Shield 6\", 0.250\" thick, Hard-mount riot face shield designed to fit most PASGT style combat helmets w/ front brim. Mounting hardware included.","DK5-X.250AFHM","n/a",{"v":558,"d":"$558.00"},{"v":217.62,"d":"$217.62"},{"v":0.61,"d":"61.00%"}]
[null,"Nonballistic face shield","n/a","Survival Armor-Polycarbonate Face Shield 6\", 0.150\" thick - Universal field-mount riot face shield designed to fit most PASGT & ACH/MICH style combat helmets.","DK6-H.150S","n/a",{"v":405,"d":"$405.00"},{"v":157.95000000000002,"d":"$157.95"},{"v":0.61,"d":"61.00%"}]
[null,"Nonballistic face shield","n/a","Survival Armor-Polycarbonate Face Shield 8\", 0.150\" thick - Universal field-mount riot face shield designed to fit most PASGT & ACH/MICH style combat helmet.","DK6-H.150","n/a",{"v":383,"d":"$383.00"},{"v":149.37,"d":"$149.37"},{"v":0.61,"d":"61.00%"}]
[null,"Nonballistic face shield","n/a","Survival Armor-Polycarbonate Face Shield 6\", 0.250\" thick, Universal field-mount riot face shield designed to fit most PASGT & ACH/MICH style combat helmets.","DK6-X.250AFS","n/a",{"v":610,"d":"$610.00"},{"v":237.9,"d":"$237.90"},{"v":0.61,"d":"61.00%"}]
[null,"Nonballistic face shield","n/a","Survival Armor-Polycarbonate Face Shield 8\", 0.250\" thick, Universal field-mount riot face shield designed to fit most PASGT & ACH/MICH style combat helmet. V-50 rating for fragmentation.","DK6-X.250AF","n/a",{"v":603,"d":"$603.00"},{"v":235.17000000000002,"d":"$235.17"},{"v":0.61,"d":"61.00%"}]
[null,"Nonballistic face shield","n/a","Survival Armor-Polycarbonate Rail-Mount Face Shield 6\", 0.150\" thick, Rail-Mount tactical face shield system designed to fit the Ops-Core® side rail system. ","DK7-H.150-RC","n/a",{"v":521,"d":"$521.00"},{"v":203.19,"d":"$203.19"},{"v":0.61,"d":"61.00%"}]
[null,"Nonballistic face shield","n/a","Survival Armor-Polycarbonate Rail-Mount Face Shield 6\", 0.150\" thick, Rail-Mount tactical face shield system designed to fit the Ops-Core® side rail system.","DK7-H.150-RCLE","n/a",{"v":551,"d":"$551.00"},{"v":214.89000000000001,"d":"$214.89"},{"v":0.61,"d":"61.00%"}]
[null,"Nonballistic face shield","n/a","Survival Armor-Polycarbonate Rail-Mount Face Shield 6\", 0.150\" thick, Rail-Mount tactical face shield system designed to fit United Shield® combat helmets w/ side rail systems.","DK7-H.150-RU","n/a",{"v":472,"d":"$472.00"},{"v":184.08,"d":"$184.08"},{"v":0.6099999999999999,"d":"61.00%"}]
[null,"Nonballistic face shield","n/a","Survival Armor-Polycarbonate Rail-Mount Face Shield 6\", 0.150\" thick, Rail-Mount tactical face shield system designed to fit United Shield® combat helmets w/ side rail systems","DK7-H.150-RULE","n/a",{"v":551,"d":"$551.00"},{"v":214.89000000000001,"d":"$214.89"},{"v":0.61,"d":"61.00%"}]
[null,"Nonballistic face shield","n/a","Survival Armor-Polycarbonate Rail-Mount Face Shield 6\", 0.250\" thick, Rail-Mount tactical face shield system designed to fit combat helmets with the Ops-Core® side rail system.","DK7-X.250AF-RC","n/a",{"v":628,"d":"$628.00"},{"v":244.92000000000002,"d":"$244.92"},{"v":0.61,"d":"61.00%"}]
[null,"Nonballistic face shield","n/a","Survival Armor-Polycarbonate Rail-Mount Face Shield 6\", 0.250\" thick, Rail-Mount tactical face shield system designed to fit United Shield® combat helmets w/ side rail systems.","DK7-X.250AF-RU","n/a",{"v":628,"d":"$628.00"},{"v":244.92000000000002,"d":"$244.92"},{"v":0.61,"d":"61.00%"}]
[null,"Nonballistic face shield","n/a","Survival Armor-Polycarbonate Face Shield 6\", 0.250\" thick, Universal field-mount tactical face shield designed to fit most PASGT & ACH/MICH style combat helmets (not including helmets w/ rails). ","DK7-X.250AF","n/a",{"v":759,"d":"$759.00"},{"v":296.01,"d":"$296.01"},{"v":0.61,"d":"61.00%"}]
[null,"Nonballistic face shield","n/a","Survival Armor-Polycarbonate Rail-Mount Face Shield 6\", 0.250\" thick, Rail-mount tactical face shield system designed to fit Ops Core® combat helmets with side rail systems. NOTE: Shield will NOT fit helmets with night vision goggle (NVG) mounts. Shield is designed for helmets without NVG mount.","DK7-X.250AF- RCLE","n/a",{"v":727,"d":"$727.00"},{"v":283.53000000000003,"d":"$283.53"},{"v":0.61,"d":"61.00%"}]
[null,"Nonballistic face shield","n/a","Survival Armor-Polycarbonate Rail-Mount Face Shield 6\", 0.250\" thick, Rail-mount tactical face shield system designed to fit United Shield® combat helmets with side rail systems.  NOTE: Shield will NOT fit helmets with night vision goggle (NVG) mounts. Shield is designed for helmets without NVG mount.","DK7-X.250AF- RULE","n/a",{"v":727,"d":"$727.00"},{"v":283.53000000000003,"d":"$283.53"},{"v":0.61,"d":"61.00%"}]
[null,"Nonballistic face shield","n/a","Survival Armor-Polycarbonate Clear/Shade 5 Green Rail-Mount Face Shield 8\", 0.250\" thick, Rail-mount tactical face shield with 4” shade 5 green strip for exothermic cutting & breaching operations. Designed to fit helmets with the Ops-Core® side rail system. V-50 rating for fragmentation. System","DK7-X.250AF-RC- S5","n/a",{"v":816,"d":"$816.00"},{"v":318.24,"d":"$318.24"},{"v":0.61,"d":"61.00%"}]
[null,"Helmet Accessories","n/a","Survival Armor-SA Series Rail for Ballistic Helmet Medium/Large Size Only ACH/MICH (For accessory color options refer to the MSRP List)","HA-SA-RAIL M/L","n/a",{"v":342,"d":"$342.00"},{"v":133.38,"d":"$133.38"},{"v":0.61,"d":"61.00%"}]
[null,"Helmet Accessories","n/a","Survival Armor-SA Series Enhanced Shroud for Ballistic Helmet any Size ACH/MICH (For accessory color options refer to the MSRP List)","HA-SA-SHROUD-E","n/a",{"v":404,"d":"$404.00"},{"v":157.56,"d":"$157.56"},{"v":0.61,"d":"61.00%"}]
[null,"Helmet Accessories","n/a","Survival Armor-SA Series Bungee any Size ACH/MICH (For accessory color options refer to the MSRP List)","HA-SA-BUNGEE","n/a",{"v":56,"d":"$56.00"},{"v":21.84,"d":"$21.84"},{"v":0.61,"d":"61.00%"}]
[null,"Helmet Accessories","n/a","Survival Armor-7 Piece Helmet Pad System (Improved) (Black)","HA-SA-7PAD-I","n/a",{"v":180,"d":"$180.00"},{"v":70.2,"d":"$70.20"},{"v":0.61,"d":"61.00%"}]
[null,"Helmet Accessories","n/a","Survival Armor-Enhanced - 4 PT H-Harness for Ballistic Helmets (Black)","HA-SA-4PT-H-HARN-E","n/a",{"v":190,"d":"$190.00"},{"v":74.10000000000001,"d":"$74.10"},{"v":0.61,"d":"61.00%"}]
[null,"Helmet Accessories","n/a","Survival Armor-SA-Series Velcro for Ballistic Helmet any Size ACH/MICH (Black)","HA-SA-VELCRO","n/a",{"v":54,"d":"$54.00"},{"v":21.060000000000002,"d":"$21.06"},{"v":0.61,"d":"61.00%"}]
[null,"Helmet Accessories","n/a","Survival Armor-SA Series Dial Ratchet Harness for Ballistic Helmet any Size any Cut or Shape; (Colors: Black, Tan, OD Green)","HA-SA-RTCH-HARNESS","n/a",{"v":320,"d":"$320.00"},{"v":124.80000000000001,"d":"$124.80"},{"v":0.61,"d":"61.00%"}]
[null,"Helmet Accessories","n/a","Survival Armor-SA Series Cover for Ballistic Helmet N/A Size ACH HIGH Cut (Contact for available colors)","HA-SA-COV ACHHC","n/a",{"v":207,"d":"$207.00"},{"v":80.73,"d":"$80.73"},{"v":0.61,"d":"61.00%"}]
[null,"Helmet Accessories","n/a","Survival Armor-SA Series Cover for Ballistic Helmet N/A Size ACH MID Cut (Contact for available colors)","HA-SA-COV ACHMC","n/a",{"v":207,"d":"$207.00"},{"v":80.73,"d":"$80.73"},{"v":0.61,"d":"61.00%"}]
[null,"Helmet Accessories","n/a","Survival Armor-SA Series Cover for Ballistic Helmet N/A Size ACH Standard Cut (Contact for available colors)","HA-SA-COV ACHSC","n/a",{"v":207,"d":"$207.00"},{"v":80.73,"d":"$80.73"},{"v":0.61,"d":"61.00%"}]
[null,"Helmet Accessories","n/a","Survival Armor-SA Series Cover for Ballistic Helmet N/A Size PASGT (Contact for available colors)","HA-SA-COV PASGT","n/a",{"v":207,"d":"$207.00"},{"v":80.73,"d":"$80.73"},{"v":0.61,"d":"61.00%"}]
[null,"Helmet Accessories","n/a","Survival Armor-SA Series Visor for Ballistic Helmet Level IIIA","HA-SAVISORLIIIA","n/a",{"v":1816,"d":"$1,816.00"},{"v":708.24,"d":"$708.24"},{"v":0.61,"d":"61.00%"}]
[null,"Helmet Accessories","n/a","Survival Armor-LED Light 1000 Lumens of Constant Light for Horizontal Handle System / Level IIIA Shields - Includes CR123 batteries","SHD-LT-HHS-IIIA","n/a",{"v":3519,"d":"$3,519.00"},{"v":1372.41,"d":"$1,372.41"},{"v":0.61,"d":"61.00%"}]
[null,"Helmet Accessories","n/a","Survival Armor-LED Light 1000 Lumens of Constant Light for Horizontal Handle System / Level III Shields - Includes CR123 batteries","SHD-LT-HHS-III","n/a",{"v":3519,"d":"$3,519.00"},{"v":1372.41,"d":"$1,372.41"},{"v":0.61,"d":"61.00%"}]
[null,"Other Accessories (Face Shield)","n/a","Survival Armor-Protective black nylon fabric cover for all 8\" models of the DK5 and DK6 riot face shields (except for wire grid enhanced models). 0.09 LBS.","DK5/6-COV","n/a",{"v":81,"d":"$81.00"},{"v":31.59,"d":"$31.59"},{"v":0.61,"d":"61.00%"}]
[null,"Other Accessories (Face Shield)","n/a","Survival Armor-Protective black nylon fabric cover for all 6\" models of the DK5 and DK6 riot face shields (except for wire grid enhanced models). 0.09 LBS.","DK5/6-COVS","n/a",{"v":81,"d":"$81.00"},{"v":31.59,"d":"$31.59"},{"v":0.61,"d":"61.00%"}]
[null,"Other Accessories (Face Shield)","n/a","Survival Armor-Hard-mount kit for attaching the DK5 Hard-Mount Riot Face Shield to most PASGT style combat helmets w/ front brim (not including helmets w/ rails). Includes mounting hardware.","DK5HM-KIT","n/a",{"v":32,"d":"$32.00"},{"v":12.48,"d":"$12.48"},{"v":0.61,"d":"61.00%"}]
[null,"Other Accessories (Face Shield)","n/a","Survival Armor-Laser & high intensity light protection Dark Grey shield designed to be field mounted without tools to the front of the DK5 and DK6 riot face shields. Designed to reduce the dazzle effect of red, green, blue, violet and other colors of laser pointers up to a rating of 3R for an exposure time of 1/4th of a second. ","TLS-F56","n/a",{"v":297,"d":"$297.00"},{"v":115.83,"d":"$115.83"},{"v":0.6100000000000001,"d":"61.00%"}]
[null,"Other Accessories (Face Shield)","n/a","Survival Armor-Laser & high intensity light protection Dark Grey shield designed to be field mounted without tools to the front of the DK7 riot face shields. Designed to reduce the dazzle effect of red, green, blue, violet and other colors of laser pointers","TLS-F7","n/a",{"v":297,"d":"$297.00"},{"v":115.83,"d":"$115.83"},{"v":0.6100000000000001,"d":"61.00%"}]
[null,"Other Accessories (Face Shield)","n/a","Survival Armor-Protective goggle; with elastic strap for tactical and military operations. Optically-corrected dual lens. Mounting clips for PASGT combat helmets included. Fits over most prescription glasses.","510-T","n/a",{"v":176,"d":"$176.00"},{"v":68.64,"d":"$68.64"},{"v":0.61,"d":"61.00%"}]
[null,"Other Accessories (Face Shield)","n/a","Survival Armor-Protective goggle; with nose shield & elastic strap for tactical and military operations. Optically-corrected dual lens. Mounting clips for PASGT combat helmets included. Fits over most prescription glasses.","510-TN","n/a",{"v":191,"d":"$191.00"},{"v":74.49000000000001,"d":"$74.49"},{"v":0.61,"d":"61.00%"}]
[null,"Other Accessories (Face Shield)","n/a","Survival Armor-Protective FRAG goggle; with elastic strap for tactical and military operations. Optically-corrected triple lens. Optically-corrected triple lens. Mounting clips for PASGT combat helmets included. Fits over most prescription glasses. ","510-TF","n/a",{"v":251,"d":"$251.00"},{"v":97.89,"d":"$97.89"},{"v":0.6100000000000001,"d":"61.00%"}]
[null,"Other Accessories (Face Shield)","n/a","Survival Armor-Protective FRAG goggle with elastic strap for tactical and military operations. Optically-corrected triple lens. Mounting clips for PASGT combat helmets included. Fits over most prescription glasses.","510-TFN","n/a",{"v":275,"d":"$275.00"},{"v":107.25,"d":"$107.25"},{"v":0.61,"d":"61.00%"}]
[null,"Other Accessories (Face Shield)","n/a","Survival Armor-Replacement Optically-corrected triple lens for the 510-TF Triple lens Goggle","510-TF-RL","n/a",{"v":156,"d":"$156.00"},{"v":60.84,"d":"$60.84"},{"v":0.61,"d":"61.00%"}]
[null,"Other Accessories (Face Shield)","n/a","Survival Armor-Clear disposable self-adhesive cover lens for all models of the A-TAC® tactical goggle. Package of 5. 0.42 lbs, Mylar","A-GLCC","n/a",{"v":55,"d":"$55.00"},{"v":21.45,"d":"$21.45"},{"v":0.61,"d":"61.00%"}]
[]
[null,"Shield Accessories"]
[null,"Shield Accessories",{"$nulls":4},{"v":0,"d":"$0.00"},{"v":0,"d":"$0.00"},{"$f":"(G150-H150)/G150*100%","v":{"$error":"#DIV/0!"}}]
[null,"Other Accessories",{"$nulls":4},{"v":0,"d":"$0.00"},{"v":0,"d":"$0.00"},{"$f":"(G151-H151)/G151*100%","v":{"$error":"#DIV/0!"}}]
[null,"Other Accessories",{"$nulls":4},{"v":0,"d":"$0.00"},{"v":0,"d":"$0.00"},{"$error":"#DIV/0!"}]
[null,"Other Accessories",{"$nulls":4},{"v":0,"d":"$0.00"},{"v":0,"d":"$0.00"},{"$error":"#DIV/0!"}]

{"sheet":"Non-Market Basket","index":2,"n_rows":211,"n_cols":9,"rows_kept":211}
[null,"Non-Market Basket (Not Including Helmets & Shields):  Items that do not have Verified Products List or Certified Products List. Products are not verified or certified. "]
[]
[null,"Contractor Name: Survival Armor"]
[null,"Product","Type","Manufacturer (Brand and Series) ","Manufactuere Catalog #","Gender\n(M = Male, \nN = Neutral, \nF = Female)","MSRP","BID Price","% Discount"]
[null,"Body Armor"]
[null,"Trauma Pack","Soft","Survival Armor-5\" x 8\" Soft Trauma Pac (STP)","TRAUMA-5X8","n/a",{"v":163,"d":"$163.00"},{"v":63.57,"d":"$63.57"},{"$f":"(G6-H6)/G6*100%","v":{"v":0.61,"d":"61.00%"}}]
[null,"Trauma Plate","Soft","Survival Armor-7\" x 9\" Soft Trauma Pac (STP)","TRAUMA-7X9","n/a",{"v":174,"d":"$174.00"},{"v":67.86,"d":"$67.86"},{"$f":"(G7-H7)/G7*100%","v":{"v":0.61,"d":"61.00%"}}]
[null,"Trauma Plate","Soft","Survival Armor-5\" x 8\" Light Weight Steel Plate","STEEL-5X8","n/a",{"v":114,"d":"$114.00"},{"v":44.46,"d":"$44.46"},{"v":0.6099999999999999,"d":"61.00%"}]
[null,"Trauma Plate","Simi-Rigid","Survival Armor-5\" x 8\" SA-71  Semi-Rigid, Special Threat Plate (Black) ","HA-SA71-5X8","n/a",{"v":252,"d":"$252.00"},{"v":98.28,"d":"$98.28"},{"v":0.61,"d":"61.00%"}]
[null,"Trauma Plate","Simi-Rigid","Survival Armor-5\" x 8\" SA-71  Semi-Rigid, Female Special Threat Plate (Black) ","HA-SAF71-5X8","n/a",{"v":252,"d":"$252.00"},{"v":98.28,"d":"$98.28"},{"v":0.61,"d":"61.00%"}]
[null,"Trauma Plate","Simi-Rigid","Survival Armor-7\" x 9\" SA-71  Semi-Rigid,  Special Threat Plate (Black) ","HA-SA71-7X9","n/a",{"v":356,"d":"$356.00"},{"v":138.84,"d":"$138.84"},{"v":0.61,"d":"61.00%"}]
[null,"Trauma Plate","Simi-Rigid","Survival Armor-7\" x 9\" SA-71   Semi-Rigid, Female Special Threat Plate (Black)","HA-SAF71-7X9","n/a",{"v":356,"d":"$356.00"},{"v":138.84,"d":"$138.84"},{"v":0.61,"d":"61.00%"}]
[null,"Trauma Plate","Simi-Rigid","Survival Armor-10\" x 12\" SA-71  Semi-Rigid, Special Threat Plate (Black) ","HA-SA71-10X12","n/a",{"v":528,"d":"$528.00"},{"v":205.92000000000002,"d":"$205.92"},{"v":0.61,"d":"61.00%"}]
[null,"Trauma Plate","Simi-Rigid","Survival Armor-10\" x 12\" SA-71  Semi-Rigid, Female Special Threat Plate (Black)","HA-SAF71-10X12","n/a",{"v":528,"d":"$528.00"},{"v":205.92000000000002,"d":"$205.92"},{"v":0.61,"d":"61.00%"}]
[null,"Insert","Hard","Survival Armor-TOPz 5\" x 7\" Level III Rifle Special Threat Tested; NIJ , Knife/Spike 3 Plate.  Made of Composite materials, Full Cut / Single Curve Not intended to be worn as a Stand-alone plate","TOPZ-5X7-FS","n/a",{"v":626,"d":"$626.00"},{"v":244.14000000000001,"d":"$244.14"},{"v":0.61,"d":"61.00%"}]
[null,"Insert","Hard","Survival Armor-TOPz 5\" x 8\" Level III Rifle Special Threat Tested; NIJ , Knife/Spike 3 Plate.  Made of Composite materials, Full Cut / Single Curve Not intended to be worn as a Stand-alone plate","TOPZ-5X8-FS","n/a",{"v":635,"d":"$635.00"},{"v":247.65,"d":"$247.65"},{"v":0.61,"d":"61.00%"}]
[null,"Insert","Hard","Survival Armor-TOPz 6\" x 6\" Level III Rifle Special Threat Tested; NIJ , Knife/Spike 3 Plate.  Made of Composite materials, Full Cut / Single Curve Not intended to be worn as a Stand-alone plate","TOPZ-6X6-FS","n/a",{"v":661,"d":"$661.00"},{"v":257.79,"d":"$257.79"},{"v":0.61,"d":"61.00%"}]
[null,"Insert","Hard","Survival Armor-TOPz 6\" x 8\" Level III Rifle Special Threat Tested; NIJ , Knife/Spike 3 Plate.  Made of Composite materials, Full Cut / Single Curve Not intended to be worn as a Stand-alone plate","TOPZ-6X8-FS","n/a",{"v":687,"d":"$687.00"},{"v":267.93,"d":"$267.93"},{"v":0.61,"d":"61.00%"}]
[null,"Insert","Hard","Survival Armor-TOPz 7\" x 9\" Level III Rifle Special Threat Tested; NIJ , Knife/Spike 3 Plate.  Made of Composite materials, Full Cut / Single Curve Not intended to be worn as a Stand-alone plate","TOPZ-7X9-FS","n/a",{"v":819,"d":"$819.00"},{"v":319.41,"d":"$319.41"},{"v":0.61,"d":"61.00%"}]
[null,"Insert","Hard","Survival Armor-TOPz 8\" x 10\" Level III Rifle Special Threat Tested; NIJ , Knife/Spike 3 Plate.  Made of Composite materials, Shooters Cut / Multi Curve Not intended to be worn as a Stand-alone plate","TOPZ-8X10-SH-MC","n/a",{"v":918,"d":"$918.00"},{"v":358.02000000000004,"d":"$358.02"},{"v":0.61,"d":"61.00%"}]
[null,"Insert","Hard","Survival Armor-TOPz 10\" x 12\" Level III Rifle Special Threat Tested; NIJ , Knife/Spike 3 Plate.  Made of Composite materials, Shooters Cut / Multi Curve Not intended to be worn as a Stand-alone plate","TOPZ-10X12-SH-MC","n/a",{"v":1060,"d":"$1,060.00"},{"v":413.40000000000003,"d":"$413.40"},{"v":0.6099999999999999,"d":"61.00%"}]
[null,"Insert","Hard","Survival Armor-TOPz SAPI 8.75\" x 11.75\" Level III Rifle Special Threat Tested; NIJ , Knife/Spike 3 Plate.  Made of Composite materials, SAPI Cut / Multi Curve Not intended to be worn as a Stand-alone plate","TOPZ-SAPI-8.75X11.75-SM","n/a",{"v":1079,"d":"$1,079.00"},{"v":420.81,"d":"$420.81"},{"v":0.6100000000000001,"d":"61.00%"}]
[null,"Insert","Hard","Survival Armor-TOPz 9.5\" x 12.5\" Level III Rifle Special Threat Tested; NIJ , Knife/Spike 3 Plate.  Made of Composite materials, SAPI Cut / Multi Curve Not intended to be worn as a Stand-alone plate","TOPZ-SAPI-9.5X12.5-MM","n/a",{"v":1206,"d":"$1,206.00"},{"v":470.34000000000003,"d":"$470.34"},{"v":0.61,"d":"61.00%"}]
[null,"Insert","Hard","Survival Armor-TOPz 10.125\" x 13.25\" Level III Rifle Special Threat Tested; NIJ , Knife/Spike 3 Plate.  Made of Composite materials, SAPI Cut / Multi Curve Not intended to be worn as a Stand-alone plate","TOPZ-SAPI-10.125X13.25-LM","n/a",{"v":1352,"d":"$1,352.00"},{"v":527.28,"d":"$527.28"},{"v":0.61,"d":"61.00%"}]
[null,"Insert","Hard","Survival Armor-TOPz 11\" x 14\" Level III Rifle Special Threat Tested; NIJ , Knife/Spike 3 Plate.  Made of Composite materials, SAPI Cut / Multi Curve Not intended to be worn as a Stand-alone plate","TOPZ-SAPI-11X14-XLM","n/a",{"v":1530,"d":"$1,530.00"},{"v":596.7,"d":"$596.70"},{"v":0.61,"d":"61.00%"}]
[null,"Insert","Hard","Survival Armor-TOPz-GT 5.5\" x 7.48\" Level III Rifle Special Threat Tested including Green Tip; NIJ , Knife/Spike 3 Plate.  Made of Composite materials, Full Cut / Single Curve with a Thinness of .75” (19mm). Not intended to be worn as a Stand-alone plate","TOPZGT-5.5X7.48-FS","n/a",{"v":681,"d":"$681.00"},{"v":265.59000000000003,"d":"$265.59"},{"v":0.61,"d":"61.00%"}]
[null,"Insert","Hard","Survival Armor-TOPz-GT 7\" x 9\" Level III Rifle Special Threat Tested including Green Tip; NIJ , Knife/Spike 3 Plate.  Made of Composite materials, Full Cut / Multi Curve with a Thinness of .75” (19mm). Not intended to be worn as a Stand-alone plate","TOPZGT-7X9-FM","n/a",{"v":944,"d":"$944.00"},{"v":368.16,"d":"$368.16"},{"v":0.6099999999999999,"d":"61.00%"}]
[null,"Insert","Hard","Survival Armor-TOPz-GT 8\" x 10\" Level III Rifle Special Threat Tested including Green Tip; NIJ , Knife/Spike 3 Plate.  Made of Composite materials, Shooters Cut / Multi Curve with a Thinness of .75” (19mm). Not intended to be worn as a Stand-alone plate","TOPZGT-8X10-SM","n/a",{"v":1011,"d":"$1,011.00"},{"v":394.29,"d":"$394.29"},{"v":0.61,"d":"61.00%"}]
[null,"Insert","Hard","Survival Armor-TOPz-GT 10\" x 12\" Level III Rifle Special Threat Tested including Green Tip; NIJ , Knife/Spike 3 Plate.  Made of Composite materials, Shooters Cut / Multi Curve with a Thinness of .75” (19mm). Not intended to be worn as a Stand-alone plate","TOPZGT-10X12-SH-MC","n/a",{"v":1263,"d":"$1,263.00"},{"v":492.57,"d":"$492.57"},{"v":0.6100000000000001,"d":"61.00%"}]
[null,"Insert","Hard","Survival Armor-TOPz-GT SAPI 7.95\" x 11.4\", Level III Rifle Special Threat Tested including Green Tip; NIJ , Knife/Spike 3 Plate.  Made of Composite materials, SAPI Cut (XSmall) / Multi Curve with a Thinness of .75” (19mm). Not intended to be worn as a Stand-alone plate","TOPZGT-7.95X11.4-SAPIM-XS","n/a",{"v":958,"d":"$958.00"},{"v":373.62,"d":"$373.62"},{"v":0.61,"d":"61.00%"}]
[null,"Insert","Hard","Survival Armor-TOPz-GT SAPI 8.75\" x 11.75\", Level III Rifle Special Threat Tested including Green Tip; NIJ , Knife/Spike 3 Plate.  Made of Composite materials, SAPI Cut (Small)/ Multi Curve with a Thinness of .75” (19mm). Not intended to be worn as a Stand-alone plate","TOPZGT-8.75X11.75-SAPIM-S","n/a",{"v":1088,"d":"$1,088.00"},{"v":424.32,"d":"$424.32"},{"v":0.6100000000000001,"d":"61.00%"}]
[null,"Insert","Hard","Survival Armor-TOPz-GT SAPI 10.25\" x 12.8\", Level III Rifle Special Threat Tested including Green Tip; NIJ , Knife/Spike 3 Plate.  Made of Composite materials, SAPI Cut (Large)/ Multi Curve with a Thinness of .75” (19mm). Not intended to be worn as a Stand-alone plate","TOPZGT-10.25X12.8-SAPIM-L","n/a",{"v":1348,"d":"$1,348.00"},{"v":525.72,"d":"$525.72"},{"v":0.61,"d":"61.00%"}]
[null,"Insert","Hard","Survival Armor-TOPz-GT SAPI 11\" x 14\" Level III Rifle Special Threat Tested including Green Tip; NIJ , Knife/Spike 3 Plate.  Made of Composite materials, SAPI Cut (Xlarge)/Multi Curve with a Thinness of .75” (19mm). Not intended to be worn as a Stand-alone plate","TOPZGT-11X14-SAPIM-XL","n/a",{"v":1519,"d":"$1,519.00"},{"v":592.41,"d":"$592.41"},{"v":0.61,"d":"61.00%"}]
[null,"Insert","Soft","Survival Armor-5\"x7\" Spall Sleeve for Riffle Armor Inserts-Full Cut","SPALL-FC-57","n/a",{"v":252,"d":"$252.00"},{"v":98.28,"d":"$98.28"},{"v":0.61,"d":"61.00%"}]
[null,"Insert","Soft","Survival Armor-5\"x8\" Spall Sleeve for Riffle Armor Inserts-Full Cut","SPALL-FC-58","n/a",{"v":252,"d":"$252.00"},{"v":98.28,"d":"$98.28"},{"v":0.61,"d":"61.00%"}]
[null,"Insert","Soft","Survival Armor-6\"x6\" Spall Sleeve for Riffle Armor Inserts-Full Cut","SPALL-FC-66","n/a",{"v":252,"d":"$252.00"},{"v":98.28,"d":"$98.28"},{"v":0.61,"d":"61.00%"}]
[null,"Insert","Soft","Survival Armor-6\"x8\" Spall Sleeve for Riffle Armor Inserts-Full Cut","SPALL-FC-68","n/a",{"v":252,"d":"$252.00"},{"v":98.28,"d":"$98.28"},{"v":0.61,"d":"61.00%"}]
[null,"Insert","Soft","Survival Armor-8\"x10\" Spall Sleeve for Riffle Armor Inserts-Full Cut","SPALL-FC-810","n/a",{"v":324,"d":"$324.00"},{"v":126.36,"d":"$126.36"},{"v":0.61,"d":"61.00%"}]
[null,"Insert","Soft","Survival Armor-8\"x10\" Spall Sleeve for Riffle Armor Inserts-Shooters Cut","SPALL-SC-810","n/a",{"v":324,"d":"$324.00"},{"v":126.36,"d":"$126.36"},{"v":0.61,"d":"61.00%"}]
[null,"Insert","Soft","Survival Armor-10\"x12\" Spall Sleeve for Riffle Armor Inserts-Full Cut","SPALL-FC-1012","n/a",{"v":423,"d":"$423.00"},{"v":164.97,"d":"$164.97"},{"v":0.61,"d":"61.00%"}]
[null,"Insert","Soft","Survival Armor-10\"x12\" Spall Sleeve for Riffle Armor Inserts-Shooters Cut","SPALL-SC-1012","n/a",{"v":423,"d":"$423.00"},{"v":164.97,"d":"$164.97"},{"v":0.61,"d":"61.00%"}]
[null,"Insert","Soft","Survival Armor-10\"x12\" Spall Sleeve for Riffle Armor Inserts-Swimmers Cut","SPALL-ASC-1012","n/a",{"v":423,"d":"$423.00"},{"v":164.97,"d":"$164.97"},{"v":0.61,"d":"61.00%"}]
[null,"Insert","Soft","Survival Armor-SAPI-XS - 7.25\" x 11.5\"- Spall Sleeve for Riffle Armor Inserts","SPALL-SAPI-XS","n/a",{"v":338,"d":"$338.00"},{"v":131.82,"d":"$131.82"},{"v":0.61,"d":"61.00%"}]
[null,"Insert","Soft","Survival Armor-SAPI-S - 8.75\" x 11.75\"- Spall Sleeve for Riffle Armor Inserts","SPALL-SAPI-S","n/a",{"v":367,"d":"$367.00"},{"v":143.13,"d":"$143.13"},{"v":0.61,"d":"61.00%"}]
[null,"Insert","Soft","Survival Armor-SAPI-M - 9.5\" x 12.5\"-  Spall Sleeve for Riffle Armor Inserts","SPALL-SAPI-M","n/a",{"v":398,"d":"$398.00"},{"v":155.22,"d":"$155.22"},{"v":0.61,"d":"61.00%"}]
[null,"Insert","Soft","Survival Armor-SAPI-L - 10.125\" x 13.25\"-  Spall Sleeve for Riffle Armor Inserts","SPALL-SAPI-L","n/a",{"v":440,"d":"$440.00"},{"v":171.6,"d":"$171.60"},{"v":0.61,"d":"61.00%"}]
[null,"Insert","Soft","Survival Armor-SAPI-XL - 11\" x 14\"-  Spall Sleeve for Riffle Armor Inserts","SPALL-SAPI-XL","n/a",{"v":472,"d":"$472.00"},{"v":184.08,"d":"$184.08"},{"v":0.6099999999999999,"d":"61.00%"}]
[null,"Insert","Soft","Survival Armor-10\" x 12\" Plate Backer ULW-II Level II Ballistic Package","ULW-II-PLB-1012","n/a",{"v":887,"d":"$887.00"},{"v":345.93,"d":"$345.93"},{"v":0.6099999999999999,"d":"61.00%"}]
[null,"Insert","Soft","Survival Armor-10\" x 12\" Plate Backer ULW-IIIA Level IIIA Ballistic Package","ULW-IIIA-PLB-1012","n/a",{"v":1124,"d":"$1,124.00"},{"v":438.36,"d":"$438.36"},{"v":0.61,"d":"61.00%"}]
[null,"Insert","Soft","Survival Armor-10\" x 12\" Plate Backer BAV-II Level II Ballistic Package","BAV-II-PLB-1012","n/a",{"v":616,"d":"$616.00"},{"v":240.24,"d":"$240.24"},{"v":0.61,"d":"61.00%"}]
[null,"Insert","Soft","Survival Armor-10\" x 12\" Plate Backer BAV-IIIA Level IIIA Ballistic Package","BAV-IIIA-PLB-1012","n/a",{"v":906,"d":"$906.00"},{"v":353.34000000000003,"d":"$353.34"},{"v":0.61,"d":"61.00%"}]
[null,"Insert","Soft","Survival Armor-10\" x 12\" Plate Backer LWX-II Level II Ballistic Package","LWX-II-PLB-1012","n/a",{"v":797,"d":"$797.00"},{"v":310.83,"d":"$310.83"},{"v":0.61,"d":"61.00%"}]
[null,"Insert","Soft","Survival Armor-10\" x 12\" Plate Backer LWX-IIIA Level IIIA Ballistic Package","LWX-IIIA-PLB-1012","n/a",{"v":960,"d":"$960.00"},{"v":374.40000000000003,"d":"$374.40"},{"v":0.6099999999999999,"d":"61.00%"}]
[null,"Insert","Soft","Survival Armor-10\" x 12\" Plate Backer ML3000-II Level II Ballistic Package","ML-II-PLB-1012","n/a",{"v":507,"d":"$507.00"},{"v":197.73000000000002,"d":"$197.73"},{"v":0.61,"d":"61.00%"}]
[null,"Insert","Soft","Survival Armor-10\" x 12\" Plate Backer HML-IIIA Level IIIA Ballistic Package","HML-IIIA-PLB-1012","n/a",{"v":797,"d":"$797.00"},{"v":310.83,"d":"$310.83"},{"v":0.61,"d":"61.00%"}]
[null,"Protector","Soft or Hard","n/a",null,"n/a",{"v":0,"d":"$0.00"},{"v":0,"d":"$0.00"},{"$error":"#DIV/0!"}]
[null,"Carrier","Concealable, Under uniform","Survival Armor-Vertex7 Male-Premium Concealable Carrier ","MVT7","n/a",{"v":386,"d":"$386.00"},{"v":150.54,"d":"$150.54"},{"v":0.61,"d":"61.00%"}]
[null,"Carrier","Concealable, Under uniform","Survival Armor-Vantage7-Female-Premium Concealable Carrier ","FVA7","n/a",{"v":386,"d":"$386.00"},{"v":150.54,"d":"$150.54"},{"v":0.61,"d":"61.00%"}]
[null,"Carrier","Concealable, Under uniform","Survival Armor-POLY ELITE™ Premier Concealable Carrier - Male ","MPE","n/a",{"v":462,"d":"$462.00"},{"v":180.18,"d":"$180.18"},{"v":0.61,"d":"61.00%"}]
[null,"Carrier","Concealable, Under uniform","Survival Armor-POLY ELITE™ Premier Concealable Carrier - Female ","FPE","n/a",{"v":462,"d":"$462.00"},{"v":180.18,"d":"$180.18"},{"v":0.61,"d":"61.00%"}]
[null,"Carrier","Concealable, Under uniform","Survival Armor-Vertex6 Concealable Carrier - Male  ","MVT","n/a",{"v":386,"d":"$386.00"},{"v":150.54,"d":"$150.54"},{"v":0.61,"d":"61.00%"}]
[null,"Carrier","Concealable, Under uniform","Survival Armor-Vantage6 Concealable Carrier - Female ","FVA","n/a",{"v":386,"d":"$386.00"},{"v":150.54,"d":"$150.54"},{"v":0.61,"d":"61.00%"}]
[null,"Carrier","Concealable, Under uniform","Survival Armor-Under Cover Style Carrier ","UC","n/a",{"v":290,"d":"$290.00"},{"v":113.10000000000001,"d":"$113.10"},{"v":0.6099999999999999,"d":"61.00%"}]
[null,"Carrier","Concealable, Under uniform","Survival Armor-Vertex⁷ Concealable Carrier with Premium Shock Shield ","SS-VER-7","n/a",{"v":536,"d":"$536.00"},{"v":209.04000000000002,"d":"$209.04"},{"v":0.61,"d":"61.00%"}]
[null,"Carrier","Concealable, Under uniform","Survival Armor-Vantage⁷ Female Concealable Carrier with Premium Shock Shield ","SS-VAN-7","n/a",{"v":536,"d":"$536.00"},{"v":209.04000000000002,"d":"$209.04"},{"v":0.61,"d":"61.00%"}]
[null,"Carrier","External/Overt, Over Uniform","Survival Armor-Concealable Tactical Carrier ","CTC","n/a",{"v":278,"d":"$278.00"},{"v":108.42,"d":"$108.42"},{"v":0.61,"d":"61.00%"}]
[null,"Carrier","External/Overt, Over Uniform","Survival Armor-Concealable Tactical Carrier with MOLLE Attachment System ","CTC-M","n/a",{"v":452,"d":"$452.00"},{"v":176.28,"d":"$176.28"},{"v":0.6100000000000001,"d":"61.00%"}]
[null,"Carrier","External/Overt, Over Uniform","Survival Armor-RAID⁷ Side Opening Carrier with Standard 4 Sewn on Pockets; new ergonomic patterns.","RAID7-STD","n/a",{"v":761,"d":"$761.00"},{"v":296.79,"d":"$296.79"},{"v":0.61,"d":"61.00%"}]
[null,"Carrier","External/Overt, Over Uniform","Survival Armor-RAID Side Opening  Carrier with standard 4 sewn on pockets. ","RAID-STD","n/a",{"v":658,"d":"$658.00"},{"v":256.62,"d":"$256.62"},{"v":0.61,"d":"61.00%"}]
[null,"Carrier","External/Overt, Over Uniform","Survival Armor-RAID⁷ Front Opening Carrier with Standard 4 Sewn on Pockets; new ergonomic patterns.","FORAID7- STD","n/a",{"v":839,"d":"$839.00"},{"v":327.21000000000004,"d":"$327.21"},{"v":0.61,"d":"61.00%"}]
[null,"Carrier","External/Overt, Over Uniform","Survival Armor-RAID Front Opening  Carrier with standard 4 sewn on pockets ","FORAID-STD","n/a",{"v":731,"d":"$731.00"},{"v":285.09000000000003,"d":"$285.09"},{"v":0.61,"d":"61.00%"}]
[null,"Carrier","External/Overt, Over Uniform","Survival Armor-RAID⁷ Side Opening Carrier with MOLLE Attachment System; no pockets; new ergonomic patterns.","RAID7-M","n/a",{"v":761,"d":"$761.00"},{"v":296.79,"d":"$296.79"},{"v":0.61,"d":"61.00%"}]
[null,"Carrier","External/Overt, Over Uniform","Survival Armor-RAID Side Opening  Carrier with MOLLE Attachment System - No Pockets ","RAID-M","n/a",{"v":658,"d":"$658.00"},{"v":256.62,"d":"$256.62"},{"v":0.61,"d":"61.00%"}]
[null,"Carrier","External/Overt, Over Uniform","Survival Armor-RAID Side Opening  Carrier with LASER CUT  System - No Pockets ","RAID-LC","n/a",{"v":816,"d":"$816.00"},{"v":318.24,"d":"$318.24"},{"v":0.61,"d":"61.00%"}]
[null,"Carrier","External/Overt, Over Uniform","Survival Armor-RAID⁷ Front Opening Carrier with MOLLE Attachment System; no pockets; new ergonomic patterns.","FORAID7-M","n/a",{"v":839,"d":"$839.00"},{"v":327.21000000000004,"d":"$327.21"},{"v":0.61,"d":"61.00%"}]
[null,"Carrier","External/Overt, Over Uniform","Survival Armor-RAID Front Opening  Carrier with MOLLE Attachment System -No Pockets ","FORAID-M","n/a",{"v":731,"d":"$731.00"},{"v":285.09000000000003,"d":"$285.09"},{"v":0.61,"d":"61.00%"}]
[null,"Carrier","External/Overt, Over Uniform","Survival Armor-RAID Front Opening  Carrier with LASER CUT  System -No Pockets ","FORAID-LC","n/a",{"v":877,"d":"$877.00"},{"v":342.03000000000003,"d":"$342.03"},{"v":0.61,"d":"61.00%"}]
[null,"Carrier","External/Overt, Over Uniform","Survival Armor-RAID⁷ Side Opening Carrier with MOLLE Attachment System; 4 standard MOLLE pockets; new ergonomic patterns.","RAID7-M+4P","n/a",{"v":958,"d":"$958.00"},{"v":373.62,"d":"$373.62"},{"v":0.61,"d":"61.00%"}]
[null,"Carrier","External/Overt, Over Uniform","Survival Armor-RAID Side Opening  Carrier with MOLLE Attachment System - 4 standard pockets ","RAID-M+4P","n/a",{"v":821,"d":"$821.00"},{"v":320.19,"d":"$320.19"},{"v":0.61,"d":"61.00%"}]
[null,"Carrier","External/Overt, Over Uniform","Survival Armor-RAID⁷ Front Opening Carrier with MOLLE Attachment System; 4 standard pockets; new ergonomic patterns","FORAID7-M+4P","n/a",{"v":1037,"d":"$1,037.00"},{"v":404.43,"d":"$404.43"},{"v":0.61,"d":"61.00%"}]
[null,"Carrier","External/Overt, Over Uniform","Survival Armor-RAID Front Opening  Carrier with MOLLE Attachment System - 4 standard Pockets ","FORAID-M+4P","n/a",{"v":905,"d":"$905.00"},{"v":352.95,"d":"$352.95"},{"v":0.61,"d":"61.00%"}]
[null,"Carrier","External/Overt, Over Uniform","Survival Armor-RAID TAC⁷ Side Opening Carrier with Standard 4 Sewn on Pockets; new ergonomic patterns","RAID-TAC7-STD","n/a",{"v":847,"d":"$847.00"},{"v":330.33,"d":"$330.33"},{"v":0.6100000000000001,"d":"61.00%"}]
[null,"Carrier","External/Overt, Over Uniform","Survival Armor-RAID TAC Side Opening   with standard 4 sew on pockets ","RAID-TAC-STD","n/a",{"v":689,"d":"$689.00"},{"v":268.71000000000004,"d":"$268.71"},{"v":0.61,"d":"61.00%"}]
[null,"Carrier","External/Overt, Over Uniform","Survival Armor-RAID TAC⁷ Side Opening Carrier with MOLLE Attachment System; no pockets; new ergonomic patterns.","RAID-TAC7-M","n/a",{"v":847,"d":"$847.00"},{"v":330.33,"d":"$330.33"},{"v":0.6100000000000001,"d":"61.00%"}]
[null,"Carrier","External/Overt, Over Uniform","Survival Armor-RAID TAC Side Opening   with MOLLE Attachment System - No Pockets ","RAID-TAC-M","n/a",{"v":689,"d":"$689.00"},{"v":268.71000000000004,"d":"$268.71"},{"v":0.61,"d":"61.00%"}]
[null,"Carrier","External/Overt, Over Uniform","Survival Armor- RAID TAC Side Opening   with LASER CUT  System - No Pockets ","RAID-TAC-LC","n/a",{"v":835,"d":"$835.00"},{"v":325.65000000000003,"d":"$325.65"},{"v":0.61,"d":"61.00%"}]
[null,"Carrier","External/Overt, Over Uniform","Survival Armor-RAID TAC⁷ Side Opening Carrier with MOLLE Attachment System; 4 standard MOLLE pockets.","RAID-TAC7-M+4P","n/a",{"v":1053,"d":"$1,053.00"},{"v":410.67,"d":"$410.67"},{"v":0.6099999999999999,"d":"61.00%"}]
[null,"Carrier","External/Overt, Over Uniform","Survival Armor-RAID TAC Side Opening   with MOLLE Attachment System - 4 standard  pockets ","RAID-TAC-M+4P","n/a",{"v":872,"d":"$872.00"},{"v":340.08,"d":"$340.08"},{"v":0.6100000000000001,"d":"61.00%"}]
[null,"Carrier","External/Overt, Over Uniform","Survival Armor-RAID TAC Side Opening   with LASER CUT  System - 4 standard  pockets ","RAID-TAC-LC+4P","n/a",{"v":1034,"d":"$1,034.00"},{"v":403.26,"d":"$403.26"},{"v":0.61,"d":"61.00%"}]
[null,"Carrier","External/Overt, Over Uniform","Survival Armor-HI-VIZ RAID Side Opening   with standard 4 sewn on pockets ","HVRAID-STD","n/a",{"v":715,"d":"$715.00"},{"v":278.85,"d":"$278.85"},{"v":0.61,"d":"61.00%"}]
[null,"Carrier","External/Overt, Over Uniform","Survival Armor-HI-VIZ RAID Front Opening   with standard 4 sewn on pockets ","FOHVRAID-STD","n/a",{"v":777,"d":"$777.00"},{"v":303.03000000000003,"d":"$303.03"},{"v":0.61,"d":"61.00%"}]
[null,"Carrier","External/Overt, Over Uniform","Survival Armor-HI-VIZ RAID Side Opening   with MOLLE Attachment System - No Pockets ","HVRAID-M","n/a",{"v":715,"d":"$715.00"},{"v":278.85,"d":"$278.85"},{"v":0.61,"d":"61.00%"}]
[null,"Carrier","External/Overt, Over Uniform","Survival Armor-HI-VIZ RAID Side Opening   with LASER CUT  System - No Pockets ","HVRAID-LC","n/a",{"v":864,"d":"$864.00"},{"v":336.96000000000004,"d":"$336.96"},{"v":0.61,"d":"61.00%"}]
[null,"Carrier","External/Overt, Over Uniform","Survival Armor-HI-VIZ RAID Front Opening   with MOLLE Attachment System - No Pockets ","FOHVRAID-M","n/a",{"v":777,"d":"$777.00"},{"v":303.03000000000003,"d":"$303.03"},{"v":0.61,"d":"61.00%"}]
[null,"Carrier","External/Overt, Over Uniform","Survival Armor-HI-VIZ RAID Front Opening   with LASER CUT  System - No Pockets ","FOHVRAID-LC","n/a",{"v":927,"d":"$927.00"},{"v":361.53000000000003,"d":"$361.53"},{"v":0.61,"d":"61.00%"}]
[null,"Carrier","External/Overt, Over Uniform","Survival Armor- HI-VIZ RAID Front Opening   with LASER CUT  System - 4 Standard Pockets ","FOHVRAID-LC+4P","n/a",{"v":1126,"d":"$1,126.00"},{"v":439.14000000000004,"d":"$439.14"},{"v":0.6099999999999999,"d":"61.00%"}]
[null,"Carrier","External/Overt, Over Uniform","Survival Armor-RAID-EMS-STD  - Side Opening Standard EMS Sewn on Pockets ","RAID-EMS-STD","n/a",{"v":715,"d":"$715.00"},{"v":278.85,"d":"$278.85"},{"v":0.61,"d":"61.00%"}]
[null,"Carrier","External/Overt, Over Uniform","Survival Armor-RAID-EMS-STD - Front Opening Standard EMS Sewn on Pockets ","FORAID-EMS-STD","n/a",{"v":777,"d":"$777.00"},{"v":303.03000000000003,"d":"$303.03"},{"v":0.61,"d":"61.00%"}]
[null,"Carrier","External/Overt, Over Uniform","Survival Armor-RAID EMS Side Opening  MOLLE Attachment System - No Pockets ","RAID-EMS-M","n/a",{"v":715,"d":"$715.00"},{"v":278.85,"d":"$278.85"},{"v":0.61,"d":"61.00%"}]
[null,"Carrier","External/Overt, Over Uniform","Survival Armor-RAID EMS Side Opening  LASER CUT  System - No Pockets ","RAID-EMS-LC","n/a",{"v":864,"d":"$864.00"},{"v":336.96000000000004,"d":"$336.96"},{"v":0.61,"d":"61.00%"}]
[null,"Carrier","External/Overt, Over Uniform","Survival Armor-RAID EMS Front Opening  MOLLE  Attachment System -No Pockets ","FORAID-EMS-M","n/a",{"v":777,"d":"$777.00"},{"v":303.03000000000003,"d":"$303.03"},{"v":0.61,"d":"61.00%"}]
[null,"Carrier","External/Overt, Over Uniform","Survival Armor-RAID EMS Front Opening  Laser Cut System -No Pockets ","FORAID-EMS-LC","n/a",{"v":933,"d":"$933.00"},{"v":363.87,"d":"$363.87"},{"v":0.61,"d":"61.00%"}]
[null,"Carrier","External/Overt, Over Uniform","Survival Armor-CLASS A⁷  Side Opening Carrier is a Dress Uniform Shirt look with a false 1” button placket, narrow reverse shoulder design, Side Flap closure, bellowed 10”x12” plate pocket, front hidden pockets.","CLASS-A7","n/a",{"v":843,"d":"$843.00"},{"v":328.77000000000004,"d":"$328.77"},{"v":0.61,"d":"61.00%"}]
[null,"Carrier","External/Overt, Over Uniform","Survival Armor-CLASS A DUSC Side Opening  Uniform Shirt Carrier ","CLASS-A-UNIF","n/a",{"v":754,"d":"$754.00"},{"v":294.06,"d":"$294.06"},{"v":0.61,"d":"61.00%"}]
[null,"Carrier","External/Overt, Over Uniform","Survival Armor-CLASS A⁷  Front Opening Carrier is a Dress Uniform Shirt look with a false 2” button placket, narrow reverse shoulder design, Side Flap closure, front hidden pockets.","FO-CLASS-A7","n/a",{"v":926,"d":"$926.00"},{"v":361.14,"d":"$361.14"},{"v":0.61,"d":"61.00%"}]
[null,"Carrier","External/Overt, Over Uniform","Survival Armor-CLASS A DUSC Front Opening  Uniform Shirt Carrier ","FO-CLASS-A-UNIF","n/a",{"v":794,"d":"$794.00"},{"v":309.66,"d":"$309.66"},{"v":0.61,"d":"61.00%"}]
[null,"Carrier","External/Overt, Over Uniform","Survival Armor-CLASS A⁷  Side Opening Dress Uniform Carrier with MOLLE Attachment System; no pockets, false 1” button placket, Top Uniform Pockets, and MOLLE at the bottom and sides. Narrow reverse shoulder design, Side Flap closure with MOLLE, bellowed 10”x12” plate pocket, front hidden pockets.","CLASS-A7-M","n/a",{"v":942,"d":"$942.00"},{"v":367.38,"d":"$367.38"},{"v":0.61,"d":"61.00%"}]
[null,"Carrier","External/Overt, Over Uniform","Survival Armor-CLASS A DUSC Side Opening  Uniform Shirt Carrier with MOLLE  ","CLASS-A-UNIF-M","n/a",{"v":788,"d":"$788.00"},{"v":307.32,"d":"$307.32"},{"v":0.61,"d":"61.00%"}]
[null,"Carrier","External/Overt, Over Uniform","Survival Armor-CLASS A DUSC Side Opening  Uniform Shirt Carrier with LASER CUT  System  ","CLASS-A-UNIF-LC","n/a",{"v":950,"d":"$950.00"},{"v":370.5,"d":"$370.50"},{"v":0.61,"d":"61.00%"}]
[null,"Carrier","External/Overt, Over Uniform","Survival Armor-CLASS A⁷ Front Opening Dress Uniform Carrier with MOLLE Attachment System; no pockets; false 2” button placket, Top Uniform Pockets, and 360º MOLLE bottom front, back, and sides. Narrow reverse shoulder design, Side Flap closure with MOLLE, front hidden pockets.","FO-CLASS-A7-M","n/a",{"v":1026,"d":"$1,026.00"},{"v":400.14,"d":"$400.14"},{"v":0.61,"d":"61.00%"}]
[null,"Carrier","External/Overt, Over Uniform","Survival Armor-CLASS A DUSC Front Opening  Uniform Shirt Carrier with MOLLE ","FO-CLASS-A-UNIF-M","n/a",{"v":847,"d":"$847.00"},{"v":330.33,"d":"$330.33"},{"v":0.6100000000000001,"d":"61.00%"}]
[null,"Carrier","External/Overt, Over Uniform","Survival Armor-CLASS A DUSC Front Opening  Uniform Shirt Carrier with LASER CUT  System ","FO-CLASS-A-UNIF-LC","n/a",{"v":967,"d":"$967.00"},{"v":377.13,"d":"$377.13"},{"v":0.61,"d":"61.00%"}]
[null,"Carrier","External/Overt, Over Uniform","Survival Armor-CLASS A⁷  Side Opening Dress Uniform Carrier with MOLLE Attachment System; 4 Standard MOLLE Pockets. False 1” button placket, Top Uniform Pockets, MOLLE at the bottom and sides. Narrow reverse shoulder design, Side Flap closure with MOLLE, bellowed 10”x12” plate pocket, front hidden pockets","CLASS-A7-M+4P","n/a",{"v":1232,"d":"$1,232.00"},{"v":480.48,"d":"$480.48"},{"v":0.61,"d":"61.00%"}]
[null,"Carrier","External/Overt, Over Uniform","Survival Armor-CLASS A DUSC Side Opening  Uniform Shirt Carrier with MOLLE - 4 Standard Pockets  ","CLASS-A-UNIF-M+4P","n/a",{"v":1031,"d":"$1,031.00"},{"v":402.09000000000003,"d":"$402.09"},{"v":0.61,"d":"61.00%"}]
[null,"Carrier","External/Overt, Over Uniform","Survival Armor-CLASS A⁷ Front Opening Dress Uniform Carrier with MOLLE Attachment System; 4 Standard MOLLE Pockets. False 2” button placket, Top Uniform Pockets, 360º MOLLE bottom front, back, and sides, narrow reverse shoulder design, Side Flap closure with MOLLE, front hidden pockets. ","FO-CLASS-A7-M+4P","n/a",{"v":1319,"d":"$1,319.00"},{"v":514.41,"d":"$514.41"},{"v":0.61,"d":"61.00%"}]
[null,"Carrier","External/Overt, Over Uniform","Survival Armor-CLASS A DUSC Front Opening  Uniform Shirt Carrie with MOLLE - 4 Standard Pockets ","FO-CLASS-A-UNIF-M+4P","n/a",{"v":1133,"d":"$1,133.00"},{"v":441.87,"d":"$441.87"},{"v":0.61,"d":"61.00%"}]
[null,"Carrier","External/Overt, Over Uniform","Survival Armor-Rangemaster-STD-Side Opening Carrier for Concealable pads with standard 4 Red sewn on Pockets (For size, and/or accessory options refer to the MSRP List)","RANG-STD","n/a",{"v":666,"d":"$666.00"},{"v":259.74,"d":"$259.74"},{"v":0.61,"d":"61.00%"}]
[null,"Carrier","External/Overt, Over Uniform","Survival Armor-Rangemaster-STD -Front Opening Carrier for Concealable pads with standard 4 Red sewn on Pockets (For size, and/or accessory options refer to the MSRP List)","FO-RANG-STD","n/a",{"v":721,"d":"$721.00"},{"v":281.19,"d":"$281.19"},{"v":0.61,"d":"61.00%"}]
[null,"Carrier","External/Overt, Over Uniform","Survival Armor-Rangemaster Side Opening Carrier for Concealable pads with Black MOLLE Attachment System - No pockets ","RANG-M","n/a",{"v":666,"d":"$666.00"},{"v":259.74,"d":"$259.74"},{"v":0.61,"d":"61.00%"}]
[null,"Carrier","External/Overt, Over Uniform","Survival Armor-Rangemaster Front Opening Carrier for Concealable pads with Black MOLLE Attachment System - No pockets ","FO-RANG-M","n/a",{"v":721,"d":"$721.00"},{"v":281.19,"d":"$281.19"},{"v":0.61,"d":"61.00%"}]
[null,"Carrier","External/Overt, Over Uniform","Survival Armor-Rangemaster Front Opening Carrier with Black LASER CUT  System - No pockets ","FO-RANG-LC","n/a",{"v":838,"d":"$838.00"},{"v":326.82,"d":"$326.82"},{"v":0.61,"d":"61.00%"}]
[null,"Carrier","External/Overt, Over Uniform","Survival Armor-Rangemaster Side Opening Carrier with Black MOLLE Attachment System - 4 Standard Black Pockets ","RANG-M+4P","n/a",{"v":846,"d":"$846.00"},{"v":329.94,"d":"$329.94"},{"v":0.61,"d":"61.00%"}]
[null,"Carrier","External/Overt, Over Uniform","Survival Armor-Rangemaster Front Opening  Carrier with MOLLE Attachment System - 4 Standard Black Pockets ","FO-RANG-M+4P","n/a",{"v":905,"d":"$905.00"},{"v":352.95,"d":"$352.95"},{"v":0.61,"d":"61.00%"}]
[null,"Carrier","External/Overt, Over Uniform","Rangemaster Front Opening Carrier with LASER CUT  System - 4 Standard Black Pockets ","FO-RANG-LC+4P","n/a",{"v":1021,"d":"$1,021.00"},{"v":398.19,"d":"$398.19"},{"v":0.61,"d":"61.00%"}]
[null,"Carrier","External/Overt, Over Uniform","DHS Side Opening  Carrier with MOLLE Attachment System - No pockets ","DHS-M","n/a",{"v":587,"d":"$587.00"},{"v":228.93,"d":"$228.93"},{"v":0.61,"d":"61.00%"}]
[null,"Carrier","External/Overt, Over Uniform","DHS Side Opening  Carrier for Concealable pads with MOLLE Attachment System - 4  Standard Pockets ","DHS-M+4P","n/a",{"v":765,"d":"$765.00"},{"v":298.35,"d":"$298.35"},{"v":0.61,"d":"61.00%"}]
[null,"Carrier","External/Overt, Over Uniform","Patrol Elite Carrier with a shoulder strap internal tunnel adjustment system, internal drag strap, redesigned shoulder pads offering a more comfortable fit. Custom measured for your Survival Armor concealable ballistic panels.","TC-PTRL-ELTE-SD","n/a",{"v":1097,"d":"$1,097.00"},{"v":427.83000000000004,"d":"$427.83"},{"v":0.61,"d":"61.00%"}]
[null,"Carrier","External/Overt, Over Uniform","IDOC Side Opening-Department of Corrections Carrier Front Opening with MOLLE - No Pockets . This is a custom carrier and requires additional time to produce.","IDOC-CUST","n/a",{"v":938,"d":"$938.00"},{"v":365.82,"d":"$365.82"},{"v":0.6100000000000001,"d":"61.00%"}]
[null,"Carrier","External/Overt, Over Uniform","Salem Front Opening Tactical Carrier with MOLLE (No Pockets)  This is a custom carrier and requires additional time to produce.","SA-Salem-FOT-M-CUST ","n/a",{"v":975,"d":"$975.00"},{"v":380.25,"d":"$380.25"},{"v":0.61,"d":"61.00%"}]
[null,"Carrier","External/Overt, Over Uniform","Oregon Front Opening Tactical Carrier with MOLLE (No Pockets)  This is a custom carrier and requires additional time to produce.","SA-Oregon-FOT-M-CUST ","n/a",{"v":1003,"d":"$1,003.00"},{"v":391.17,"d":"$391.17"},{"v":0.6099999999999999,"d":"61.00%"}]
[null,"Carrier","Tactical","Survival Armor Quick Release Plate Carrier ","SA-QRPC","n/a",{"v":721,"d":"$721.00"},{"v":281.19,"d":"$281.19"},{"v":0.61,"d":"61.00%"}]
[null,"Carrier","Tactical","Survival Armor-Modular Rifle Plate Carrier System with Standard Shoulders ","MRPC","n/a",{"v":360,"d":"$360.00"},{"v":140.4,"d":"$140.40"},{"v":0.61,"d":"61.00%"}]
[null,"Carrier","Tactical","Survival Armor-Modular Rifle Plate Carrier System Padded Shoulder Pads (Set of 2) ","TA-PCSHLDPAD-MRPC","n/a",{"v":61,"d":"$61.00"},{"v":23.79,"d":"$23.79"},{"v":0.61,"d":"61.00%"}]
[null,"Carrier","Tactical","Survival Armor-Modular Rifle Plate Carrier System Side Ballistic Plate Pockets (Set of 2) ","TA-PC VAS-SP-MRPC","n/a",{"v":110,"d":"$110.00"},{"v":42.9,"d":"$42.90"},{"v":0.61,"d":"61.00%"}]
[null,"Carrier","Tactical","Survival Armor-International MOLLE Plate Carrier System ","IMPC","n/a",{"v":299,"d":"$299.00"},{"v":116.61,"d":"$116.61"},{"v":0.61,"d":"61.00%"}]
[null,"Carrier","Tactical","Survival Armor MOLLE Plate Carrier System ","SAPC","n/a",{"v":348,"d":"$348.00"},{"v":135.72,"d":"$135.72"},{"v":0.61,"d":"61.00%"}]
[null,"Carrier","K-9","n/a",null,"n/a",{"v":0,"d":"$0.00"},{"v":0,"d":"$0.00"},{"$error":"#DIV/0!"}]
[null,"Pouches",null,"Survival Armor-Additional Standard Pockets for Tactical Carriers (Choice of Lg. Utility 3 1/4 x 6 x 2, Sm. Utility 3 3/4 x 4 x 2, flashlight, radio or handcuff)","PKT-STD","n/a",{"v":88,"d":"$88.00"},{"v":34.32,"d":"$34.32"},{"v":0.61,"d":"61.00%"}]
[null,"Pouches",null,"Survival Armor-Custom Pockets for Tactical Carriers (Contact Dealer with requested Description)","PKT-CUST","n/a",{"v":176,"d":"$176.00"},{"v":68.64,"d":"$68.64"},{"v":0.61,"d":"61.00%"}]
[null,"Pouches",null,"Survival Armor-HSGI Stun Gun TACO MOLLE Pouch","TA-11SG00","n/a",{"v":178,"d":"$178.00"},{"v":69.42,"d":"$69.42"},{"v":0.61,"d":"61.00%"}]
[null,"Pouches",null,"Survival Armor-HSGI Patrol Pouch Pack (One each, Mini Map V2 MOLLE Pouch, Multi Access Comm TACO U-Mount Pouch and Duty Leo Platform TACO MOLLE Pouch","TA-H-PAT-PAC","n/a",{"v":628,"d":"$628.00"},{"v":244.92000000000002,"d":"$244.92"},{"v":0.61,"d":"61.00%"}]
[null,"Pouches",null,"Survival Armor-HSGI SWAT/Tactical Pouch Pack (One each, Bleeder/Blowout MOLLE Pouch, Multi Access Comm MOLLE Pouch and POEGY GP MOLLE Pouch) and (Two Double Decker TACO MOLLE Pouches)","TA-H-SWATPAC","n/a",{"v":852,"d":"$852.00"},{"v":332.28000000000003,"d":"$332.28"},{"v":0.61,"d":"61.00%"}]
[null,"Replacement Vest Straps",null,"Survival Armor-LDSS-Replacement 6 Piece Standard Strap Set (Specify Color)","LDSS-6pc-Male","n/a",{"v":81,"d":"$81.00"},{"v":31.59,"d":"$31.59"},{"v":0.61,"d":"61.00%"}]
[null,"Replacement Vest Straps",null,"Survival Armor-LDSS-Replacement 4 Piece Female Strap Set (Specify color)","LDSS-4pc-Female","n/a",{"v":81,"d":"$81.00"},{"v":31.59,"d":"$31.59"},{"v":0.61,"d":"61.00%"}]
[null,"ID Patches",null,"Survival Armor-Custom ID Flaps for Outer Carriers, Embroidered Lettering (Set)","ID-FLAPS-EMB","n/a",{"v":130,"d":"$130.00"},{"v":50.7,"d":"$50.70"},{"v":0.61,"d":"61.00%"}]
[null,"ID Patches",null,"Survival Armor-Custom ID Flaps for Outer Carriers, Vinyl Lettering (Set)","ID-FLAPS-VINYL","n/a",{"v":82,"d":"$82.00"},{"v":31.98,"d":"$31.98"},{"v":0.61,"d":"61.00%"}]
[null,"ID Patches",null,"Survival Armor-Embroidered Name Tab for front of Outer Carrier. Standard colors include: White, White Reflective, Black, Gold, and Silver (other colors available upon request).","ID-NAME-TAB-EMB","n/a",{"v":43,"d":"$43.00"},{"v":16.77,"d":"$16.77"},{"v":0.61,"d":"61.00%"}]
[null,"ID Patches",null,"Survival Armor-Vinyl Lettering Name Tab for front of Outer Carrier. Colors include: White, Black, Gold, Silver Reflective, Grey and Red","ID-NAME-TAB-VINYL","n/a",{"v":33,"d":"$33.00"},{"v":12.870000000000001,"d":"$12.87"},{"v":0.61,"d":"61.00%"}]
[null,"Carry Bags",null,"Survival Armor-Concealable Vest Carry Bag-2nd GEN","T-CONCAR-BAG-2","n/a",{"v":211,"d":"$211.00"},{"v":82.29,"d":"$82.29"},{"v":0.6099999999999999,"d":"61.00%"}]
[null,"Carry Bags",null,"Survival Armor-Tactical Vest Carry Bag","T-TACVEST-BAG","n/a",{"v":371,"d":"$371.00"},{"v":144.69,"d":"$144.69"},{"v":0.61,"d":"61.00%"}]
[null,"Carry Bags",null,"Survival Armor-SA Series Helmet Bag, Improved, any Size, Cut or Shape; (Black)","SA-HELMET-BAG-I","n/a",{"v":301,"d":"$301.00"},{"v":117.39,"d":"$117.39"},{"v":0.6100000000000001,"d":"61.00%"}]
[null,"Carry Bags",null,"Survival Armor-Survival Armor Helmet Bag-Gen 2 with stronger materials and reinforcements; holds a Helmet with face shield attached; Size: 15” x 11”; Color: Black (helmet and face shield not included)","SAI-HELMET-BAG-2","n/a",{"v":231,"d":"$231.00"},{"v":90.09,"d":"$90.09"},{"v":0.61,"d":"61.00%"}]
[null,"Other Accessories",{"$nulls":3},"n/a",{"v":0,"d":"$0.00"},{"v":0,"d":"$0.00"},{"$error":"#DIV/0!"}]
[null,"K-9 Vest","Ballistic, Stab, or Comb. ","Survival Armor-K-9 Armor for Police Dogs in Paladin II Ballistics  ","K9AD-ULW-II","n/a",{"v":2407,"d":"$2,407.00"},{"v":938.73,"d":"$938.73"},{"v":0.61,"d":"61.00%"}]
[null,"K-9 Vest","Ballistic, Stab, or Comb. ","Survival Armor-K-9 Armor for Police Dogs in FALCONflex II Ballistics  ","K9AD-FC-II","n/a",{"v":2250,"d":"$2,250.00"},{"v":877.5,"d":"$877.50"},{"v":0.61,"d":"61.00%"}]
[null,"K-9 Vest","Ballistic, Stab, or Comb. ","Survival Armor-K-9 Armor for Police Dogs in Plexus II Ballistics  ","K9AD-BAV-II","n/a",{"v":2107,"d":"$2,107.00"},{"v":821.73,"d":"$821.73"},{"v":0.61,"d":"61.00%"}]
[null,"K-9 Vest","Ballistic, Stab, or Comb. ","Survival Armor-K-9 Armor for Police Dogs in Phoenix6 II Ballistics  ","K9AD-LC-II","n/a",{"v":1813,"d":"$1,813.00"},{"v":707.07,"d":"$707.07"},{"v":0.6099999999999999,"d":"61.00%"}]
[null,"K-9 Vest","Ballistic, Stab, or Comb. ","Survival Armor-K-9 Armor for Police Dogs in Performance6 II Ballistics  ","K9AD-ML-II","n/a",{"v":1532,"d":"$1,532.00"},{"v":597.48,"d":"$597.48"},{"v":0.61,"d":"61.00%"}]
[null,"K-9 Vest","Ballistic, Stab, or Comb. ","Survival Armor-K-9 Armor for Police Dogs in Paladin IIIA Ballistics IIIA Ballistics  ","K9AD-ULW-IIIA","n/a",{"v":2813,"d":"$2,813.00"},{"v":1097.07,"d":"$1,097.07"},{"v":0.61,"d":"61.00%"}]
[null,"K-9 Vest","Ballistic, Stab, or Comb. ","Survival Armor-K-9 Armor for Police Dogs in FALCONflex IIIA Ballistics  ","K9AD-FC-IIIA","n/a",{"v":2563,"d":"$2,563.00"},{"v":999.57,"d":"$999.57"},{"v":0.61,"d":"61.00%"}]
[null,"K-9 Vest","Ballistic, Stab, or Comb. ","Survival Armor-K-9 Armor for Police Dogs in Plexus IIIA Ballistics  ","K9AD-BAV-IIIA","n/a",{"v":2532,"d":"$2,532.00"},{"v":987.48,"d":"$987.48"},{"v":0.61,"d":"61.00%"}]
[null,"K-9 Vest","Ballistic, Stab, or Comb. ","Survival Armor-K-9 Armor for Police Dogs in Phoenix6 IIIA Ballistics  ","K9AD-LT-3A","n/a",{"v":2313,"d":"$2,313.00"},{"v":902.07,"d":"$902.07"},{"v":0.6099999999999999,"d":"61.00%"}]
[null,"K-9 Vest","Ballistic, Stab, or Comb. ","Survival Armor-K-9 Armor for Police Dogs in Performance6 IIIA Ballistics  ","K9AD-HML-IIIA","n/a",{"v":1822,"d":"$1,822.00"},{"v":710.58,"d":"$710.58"},{"v":0.61,"d":"61.00%"}]
[null,"Other Accessories","Tactical Vest Ballistic Accessories","Survival Armor-Throat Protector Tactical Carrier With Paladin IIIA Ballistics (One Size)","THRTP-ULW-IIIA","n/a",{"v":157,"d":"$157.00"},{"v":61.230000000000004,"d":"$61.23"},{"v":0.61,"d":"61.00%"}]
[null,"Other Accessories","Tactical Vest Ballistic Accessories","Survival Armor-Throat Protector Tactical Carrier With FALCONflex IIIA Ballistics (One Size)","THRTP-FC-IIIA","n/a",{"v":144,"d":"$144.00"},{"v":56.160000000000004,"d":"$56.16"},{"v":0.61,"d":"61.00%"}]
[null,"Other Accessories","Tactical Vest Ballistic Accessories","Survival Armor-Throat Protector Tactical Carrier With Plexus IIIA Ballistics (One Size)","THRTP-BAV-IIIA","n/a",{"v":110,"d":"$110.00"},{"v":42.9,"d":"$42.90"},{"v":0.61,"d":"61.00%"}]
[null,"Other Accessories","Tactical Vest Ballistic Accessories","Survival Armor-Throat Protector Tactical Carrier With Phoenix6 IIIA Ballistics (One Size)","THRTP-LT-3A","n/a",{"v":96,"d":"$96.00"},{"v":37.44,"d":"$37.44"},{"v":0.61,"d":"61.00%"}]
[null,"Other Accessories","Tactical Vest Ballistic Accessories","Survival Armor-Throat Protector Tactical Carrier With Performance6 IIIA Ballistics (One Size)","THRTP-HML-3A","n/a",{"v":78,"d":"$78.00"},{"v":30.42,"d":"$30.42"},{"v":0.61,"d":"61.00%"}]
[null,"Other Accessories","Tactical Vest Ballistic Accessories","Survival Armor-Throat Protector Tactical Carrier for X50 and X50P Carriers With Paladin IIIA Ballistics (One Size)","THRTP-X50-ULW-IIIA","n/a",{"v":232,"d":"$232.00"},{"v":90.48,"d":"$90.48"},{"v":0.6099999999999999,"d":"61.00%"}]
[null,"Other Accessories","Tactical Vest Ballistic Accessories","Survival Armor-Throat Protector Tactical Carrier for X50 and X50P Carriers With FALCONflex IIIA Ballistics (One Size)","THRTP-X50-FC-IIIA","n/a",{"v":212,"d":"$212.00"},{"v":82.68,"d":"$82.68"},{"$f":"(G170-H170)/G170*100%","v":{"v":0.61,"d":"61.00%"}}]
[null,"Other Accessories","Tactical Vest Ballistic Accessories","Survival Armor-Throat Protector Tactical Carrier for X50 and X50P Carriers With Plexus IIIA Ballistics (One Size)","THRTP-X50-BAV-IIIA","n/a",{"v":185,"d":"$185.00"},{"v":72.15,"d":"$72.15"},{"v":0.61,"d":"61.00%"}]
[null,"Other Accessories","Tactical Vest Ballistic Accessories","Survival Armor-Throat Protector Tactical Carrier for X50 and X50P Carriers With Phoenix6 IIIA Ballistics (One Size)","THRTP-X50-LT-3A","n/a",{"v":170,"d":"$170.00"},{"v":66.3,"d":"$66.30"},{"v":0.61,"d":"61.00%"}]
[null,"Other Accessories","Tactical Vest Ballistic Accessories","Survival Armor-Throat Protector Tactical Carrier for X50 and X50P Carriers With Performance6 IIIA Ballistics (One Size)","THRTP-X50-HML-3A","n/a",{"v":153,"d":"$153.00"},{"v":59.67,"d":"$59.67"},{"v":0.61,"d":"61.00%"}]
[null,"Other Accessories","Tactical Vest Ballistic Accessories","Survival Armor-Collar/Yoke Protector Tactical Carrier With Paladin IIIA Ballistics (One Size)","COLYK-ULW-IIIA","n/a",{"v":903,"d":"$903.00"},{"v":352.17,"d":"$352.17"},{"v":0.6099999999999999,"d":"61.00%"}]
[null,"Other Accessories","Tactical Vest Ballistic Accessories","Survival Armor-Collar/Yoke Protector Tactical Carrier With FALCONflex IIIA Ballistics (One Size)","COLYK-FC-IIIA","n/a",{"v":851,"d":"$851.00"},{"v":331.89,"d":"$331.89"},{"v":0.61,"d":"61.00%"}]
[null,"Other Accessories","Tactical Vest Ballistic Accessories","Survival Armor-Collar/Yoke Protector Tactical Carrier With Plexus IIIA Ballistics (One Size)","COLYK-BAV-IIIA","n/a",{"v":782,"d":"$782.00"},{"v":304.98,"d":"$304.98"},{"v":0.61,"d":"61.00%"}]
[null,"Other Accessories","Tactical Vest Ballistic Accessories","Survival Armor-Collar/Yoke Tactical Carrier With Phoenix6 IIIA Ballistics (One Size)","COLYK-LT-3A","n/a",{"v":726,"d":"$726.00"},{"v":283.14,"d":"$283.14"},{"v":0.61,"d":"61.00%"}]
[null,"Other Accessories","Tactical Vest Ballistic Accessories","Survival Armor-Collar/Yoke Tactical Carrier With Performance6 IIIA Ballistics (One Size)","COLYK-HML-3A","n/a",{"v":588,"d":"$588.00"},{"v":229.32000000000002,"d":"$229.32"},{"v":0.6099999999999999,"d":"61.00%"}]
[null,"Other Accessories","Tactical Vest Ballistic Accessories","Survival Armor-Groin Guard Tactical Carrier With Paladin IIIA Ballistics (One Size)","GG-ULW-IIIA","n/a",{"v":543,"d":"$543.00"},{"v":211.77,"d":"$211.77"},{"v":0.61,"d":"61.00%"}]
[null,"Other Accessories","Tactical Vest Ballistic Accessories","Survival Armor-Groin Guard Tactical Carrier With FALCONflex IIIA Ballistics (One Size)","GG-FC-IIIA","n/a",{"v":511,"d":"$511.00"},{"v":199.29000000000002,"d":"$199.29"},{"v":0.61,"d":"61.00%"}]
[null,"Other Accessories","Tactical Vest Ballistic Accessories","Survival Armor-Groin Guard Tactical Carrier With Plexus IIIA Ballistics (One Size)","GG-BAV-IIIA","n/a",{"v":473,"d":"$473.00"},{"v":184.47,"d":"$184.47"},{"v":0.61,"d":"61.00%"}]
[null,"Other Accessories","Tactical Vest Ballistic Accessories","Survival Armor-Groin Guard Tactical Carrier With Phoenix6 IIIA Ballistics (One Size)","GG-LT-3A","n/a",{"v":406,"d":"$406.00"},{"v":158.34,"d":"$158.34"},{"v":0.61,"d":"61.00%"}]
[null,"Other Accessories","Tactical Vest Ballistic Accessories","Survival Armor-Groin Guard Tactical Carrier With Performance6 IIIA Ballistics (One Size)","GG-HML-3A","n/a",{"v":341,"d":"$341.00"},{"v":132.99,"d":"$132.99"},{"v":0.61,"d":"61.00%"}]
[null,"Other Accessories","Tactical Vest Ballistic Accessories","Survival Armor-Advanced Sleeve Tactical Carrier System With Paladin IIIA Ballistics (One Size)","ADSLV-ULW-IIIA","n/a",{"v":1285,"d":"$1,285.00"},{"v":501.15000000000003,"d":"$501.15"},{"v":0.6099999999999999,"d":"61.00%"}]
[null,"Other Accessories","Tactical Vest Ballistic Accessories","Survival Armor-Advanced Sleeve Tactical Carrier System With FALCONflex IIIA Ballistics (One Size)","ADSLV-FC-IIIA","n/a",{"v":1223,"d":"$1,223.00"},{"v":476.97,"d":"$476.97"},{"v":0.61,"d":"61.00%"}]
[null,"Other Accessories","Tactical Vest Ballistic Accessories","Survival Armor-Advanced Sleeve Tactical Carrier System With Plexus IIIA Ballistics (One Size)","ADSLV-BAV-IIIA","n/a",{"v":1161,"d":"$1,161.00"},{"v":452.79,"d":"$452.79"},{"v":0.61,"d":"61.00%"}]
[null,"Other Accessories","Tactical Vest Ballistic Accessories","Survival Armor-Advanced Sleeve Tactical Carrier System With Phoenix6 IIIA Ballistics (One Size)","ADSLV-LT-3A","n/a",{"v":1022,"d":"$1,022.00"},{"v":398.58000000000004,"d":"$398.58"},{"v":0.61,"d":"61.00%"}]
[null,"Other Accessories","Tactical Vest Ballistic Accessories","Survival Armor-Sleeve Tactical Carrier System With Paladin IIIA Ballistics (One Size)","SLV-ULW-IIIA","n/a",{"v":1114,"d":"$1,114.00"},{"v":434.46000000000004,"d":"$434.46"},{"v":0.61,"d":"61.00%"}]
[null,"Other Accessories","Tactical Vest Ballistic Accessories","Survival Armor-Sleeve Tactical Carrier System With FALCONflex IIIA Ballistics (One Size)","SLV-FC-IIIA","n/a",{"v":1077,"d":"$1,077.00"},{"v":420.03000000000003,"d":"$420.03"},{"v":0.61,"d":"61.00%"}]
[null,"Other Accessories","Tactical Vest Ballistic Accessories","Survival Armor-Sleeve Tactical Carrier System With Plexus IIIA Ballistics (One Size)","SLV-BAV-IIIA","n/a",{"v":1007,"d":"$1,007.00"},{"v":392.73,"d":"$392.73"},{"v":0.61,"d":"61.00%"}]
[null,"Other Accessories","Tactical Vest Ballistic Accessories","Survival Armor-Sleeve Tactical Carrier System With Phoenix6 IIIA Ballistics (One Size)","SLV-LT-3A","n/a",{"v":891,"d":"$891.00"},{"v":347.49,"d":"$347.49"},{"v":0.61,"d":"61.00%"}]
[null,"Other Accessories","Tactical Vest Ballistic Accessories","Survival Armor-Sleeve Tactical Carrier System With Performance6 IIIA Ballistics (One Size)","SLV-HML-3A","n/a",{"v":782,"d":"$782.00"},{"v":304.98,"d":"$304.98"},{"v":0.61,"d":"61.00%"}]
[null,"Other Accessories","Riot Shields","Polycarbonate \"Clear\" Handheld Riot Body Shield measuring 20” x 36”, 0.150\" thick ","BS-2-ND","n/a",{"v":800,"d":"$800.00"},{"v":312,"d":"$312.00"},{"v":0.61,"d":"61.00%"}]
[null,"Other Accessories","Riot Shields","Polycarbonate \"Clear\" Handheld Riot Body Shield measuring 24” x 48”, 0.150\" thick","BS-3-ND","n/a",{"v":853,"d":"$853.00"},{"v":332.67,"d":"$332.67"},{"v":0.6099999999999999,"d":"61.00%"}]
[null,"Other Accessories","Riot Shields","Polycarbonate \"Clear\" Handheld Round Riot Body Shield measuring 24”, 0.150\" thic","BS-7-ND","n/a",{"v":782,"d":"$782.00"},{"v":304.98,"d":"$304.98"},{"v":0.61,"d":"61.00%"}]
[null,"Other Accessories","Riot Shields","Polycarbonate \"Clear\" Handheld Riot Body Shield measuring 24” x 48”, 0.250\" thick","BS-9-ND","n/a",{"v":1204,"d":"$1,204.00"},{"v":469.56,"d":"$469.56"},{"v":0.6100000000000001,"d":"61.00%"}]
[null,"Other Accessories","Riot Shields","Polycarbonate \"Clear\" Handheld capture shield measuring 24\" x 48\" x 0.150 \" thick ","CS-4-ND","n/a",{"v":823,"d":"$823.00"},{"v":320.97,"d":"$320.97"},{"v":0.61,"d":"61.00%"}]
[null,"Other Accessories","Riot Shields","Polycarbonate \"Clear\" Handheld capture shield measuring 20\" x 36\" x .250\" thick, ","CS-5-ND","n/a",{"v":1203,"d":"$1,203.00"},{"v":469.17,"d":"$469.17"},{"v":0.61,"d":"61.00%"}]
[null,"Other Accessories","Riot Shields","Polycarbonate \"Clear\" Handheld capture shield measuring 20\" x 36\" x .150\" thick","CS-8","n/a",{"v":722,"d":"$722.00"},{"v":281.58,"d":"$281.58"},{"v":0.61,"d":"61.00%"}]
[null,"Other Accessories","Clear Ballistic Shield","Transparent 12 x 24 x 1.25 \", Level IIIA ballistic handheld shield. 16 lbs. ","TA-1224","n/a",{"v":3056,"d":"$3,056.00"},{"v":1191.8400000000001,"d":"$1,191.84"},{"v":0.61,"d":"61.00%"}]
[null,"Other Accessories","Riot Shield Accessories","Protective black nylon fabric cover for riot/capture shields that measure 20” x 36”.0.40 lbs. ","BS-2036-COV","n/a",{"v":261,"d":"$261.00"},{"v":101.79,"d":"$101.79"},{"v":0.6099999999999999,"d":"61.00%"}]
[null,"Other Accessories","Riot Shield Accessories","Protective black nylon fabric cover for riot/capture shields that measure 24” x 48”. 0.50 lbs.","BS-2448-COV","n/a",{"v":281,"d":"$281.00"},{"v":109.59,"d":"$109.59"},{"v":0.61,"d":"61.00%"}]
[null,"Other Accessories","Riot Shield Accessories","Protective black nylon fabric cover for round riot shields with a diameter of 24”. 0.30 lbs. \n","BS-24R-COV","n/a",{"v":254,"d":"$254.00"},{"v":99.06,"d":"$99.06"},{"v":0.61,"d":"61.00%"}]
[null,"Other Accessories","Riot Shield Accessories","Replacement 10\" handle, strap & parts for all models of Paulson riot body shields. Dielectric handle & strap prevent electrical pass through.","BS-HK","n/a",{"v":178,"d":"$178.00"},{"v":69.42,"d":"$69.42"},{"v":0.61,"d":"61.00%"}]
[null,"Other Accessories","Riot Shield Accessories","Replacement 10\" handles & parts for all models of Paulson capture shields. Dielectric handles prevent electrical pass through. ","CS-HK","n/a",{"v":186,"d":"$186.00"},{"v":72.54,"d":"$72.54"},{"v":0.61,"d":"61.00%"}]
[null,"Other Accessories","Riot Shield Accessories","Riot body shield/capture shield label with POLICE decal.6\", Black with White Letters, Mylar 0.25 lbs. (handles not included)","BS-LAB-P","n/a",{"v":65,"d":"$65.00"},{"v":25.35,"d":"$25.35"},{"v":0.61,"d":"61.00%"}]
[null,"Other Accessories","Riot Shield Accessories","Riot body shield/capture shield label with SHERIFF decal.6\", Black with White Letters, Mylar 0.25 lbs. (handles not included)","BS-LAB-S","n/a",{"v":65,"d":"$65.00"},{"v":25.35,"d":"$25.35"},{"v":0.61,"d":"61.00%"}]
[null,"Other Accessories","Riot Shield Accessories","Riot body shield/capture shield label with CORRECTIONS decal.6\", Black with White Letters, Mylar 0.25 lbs. (handles not included)","BS-LAB-C","n/a",{"v":65,"d":"$65.00"},{"v":25.35,"d":"$25.35"},{"v":0.61,"d":"61.00%"}]
[null,"Other Accessories","Tactical Knee Pads","Tactical Knee Shield With Articulated Rigid Shell Protective knee shield and foam pad. Heavy elastic adjustment feature. Designed for cell extraction or riot control. Sold as a pair.","1010-EB","n/a",{"v":166,"d":"$166.00"},{"v":64.74000000000001,"d":"$64.74"},{"v":0.61,"d":"61.00%"}]
[null,"Other Accessories","Tactical Knee Pads","Tactical Protective knee shield with articulated rigid shell and foam pad. Heavy elastic and a Velcro® adjustment feature. Designed for cell extraction or riot control. Sold as a pair.","1010-ET","n/a",{"v":367,"d":"$367.00"},{"v":143.13,"d":"$143.13"},{"v":0.61,"d":"61.00%"}]
[null,"Other Accessories","Customization","Customization “will be billed actual cost based on customization, but not to exceed listed contract price” * (Customization price is in addition to the base price)","CUSTOM-RATE","n/a",{"v":300,"d":"$300.00"},{"v":150,"d":"$150.00"},{"v":0.5,"d":"50.00%"}]

{"sheet":"Market Basket 0101.07","index":3,"n_rows":144,"n_cols":13,"rows_kept":144}
[null,null,"Market Basket Products Listed on the NIJ CPL 0101.07 - Certified.  Verified on the ASTM. Required to be Active on the NIJ CPL or Active on the verified ASTM product list."]
[null,"Contractor Name: Survival Armor"," "]
[null,"Product","Type","Manufacturer (Brand and Series)","Manufacturer Catalog #","NIJ-CPL Model Designation/ASTM Model Designation","Gender\n(M = Male, \nN = Neutral, \nF = Female)","NIJ Standard(s) / ASTM Standard","Threat Level","Ballistic Protection Warranty Period","MSRP","BID Price","% Discount"]
[null,"Ballistic-resistant Vest (including carrier)","Handgun Protection",{"$nulls":3},"M or N","NIJ 0101.07","HG2",null,{"v":0,"d":"$0.00"},{"v":0,"d":"$0.00"},{"$f":"(K4-L4)/K4*100%","v":{"$error":"#DIV/0!"}}]
[null,"Ballistic-resistant Vest (including 2 carriers)","Handgun Protection",{"$nulls":3},"M or N","NIJ 0101.07","HG2",null,{"v":0,"d":"$0.00"},{"v":0,"d":"$0.00"},{"$f":"(K5-L5)/K5*100%","v":{"$error":"#DIV/0!"}}]
[null,"Ballistic-resistant Vest (including carrier)","Handgun Protection",{"$nulls":3},"M or N","NIJ 0101.07","HG1",null,{"v":0,"d":"$0.00"},{"v":0,"d":"$0.00"},{"$error":"#DIV/0!"}]
[null,"Ballistic-resistant Vest (including 2 carriers)","Handgun Protection",{"$nulls":3},"M or N","NIJ 0101.07","HG1",null,{"v":0,"d":"$0.00"},{"v":0,"d":"$0.00"},{"$error":"#DIV/0!"}]
[null,"Ballistic-resistant Vest (including carrier)","Handgun Protection",{"$nulls":3},"F","NIJ 0101.07","HG2",null,{"v":0,"d":"$0.00"},{"v":0,"d":"$0.00"},{"$error":"#DIV/0!"}]
[null,"Ballistic-resistant Vest (including 2 carriers)","Handgun Protection",{"$nulls":3},"F","NIJ 0101.07","HG2",null,{"v":0,"d":"$0.00"},{"v":0,"d":"$0.00"},{"$error":"#DIV/0!"}]
[null,"Ballistic-resistant Vest (including carrier)","Handgun Protection",{"$nulls":3},"F","NIJ 0101.07","HG1",null,{"v":0,"d":"$0.00"},{"v":0,"d":"$0.00"},{"$error":"#DIV/0!"}]
[null,"Ballistic-resistant Vest (including 2 carriers)","Handgun Protection",{"$nulls":3},"F","NIJ 0101.07","HG1",null,{"v":0,"d":"$0.00"},{"v":0,"d":"$0.00"},{"$error":"#DIV/0!"}]
[null,"Ballistic-resistant rifle plate(s) (including carrier)","Rifle Protection",{"$nulls":3},"M or N","NIJ 0101.07","RF1",null,{"v":0,"d":"$0.00"},{"v":0,"d":"$0.00"},{"$error":"#DIV/0!"}]
[null,"Ballistic-resistant rifle plate(s) (including 2 carriers)","Rifle Protection",{"$nulls":3},"M or N","NIJ 0101.07","RF1",null,{"v":0,"d":"$0.00"},{"v":0,"d":"$0.00"},{"$error":"#DIV/0!"}]
[null,"Ballistic-resistant rifle plate(s) (including carrier)","Rifle Protection",{"$nulls":3},"M or N","NIJ 0101.07","RF2",null,{"v":0,"d":"$0.00"},{"v":0,"d":"$0.00"},{"$error":"#DIV/0!"}]
[null,"Ballistic-resistant rifle plate(s) (including 2 carriers)","Rifle Protection",{"$nulls":3},"M or N","NIJ 0101.07","RF2",null,{"v":0,"d":"$0.00"},{"v":0,"d":"$0.00"},{"$error":"#DIV/0!"}]
[null,"Ballistic-resistant rifle plate(s) (including carrier)","Rifle Protection",{"$nulls":3},"M or N","NIJ 0101.07","RF3",null,{"v":0,"d":"$0.00"},{"v":0,"d":"$0.00"},{"$error":"#DIV/0!"}]
[null,"Ballistic-resistant rifle plate(s) (including 2 carriers)","Rifle Protection",{"$nulls":3},"M or N","NIJ 0101.07","RF3",null,{"v":0,"d":"$0.00"},{"v":0,"d":"$0.00"},{"$error":"#DIV/0!"}]
[null,"Ballistic-resistant rifle plate(s) (including carrier)","Rifle Protection",{"$nulls":3},"F","NIJ 0101.07","RF1",null,{"v":0,"d":"$0.00"},{"v":0,"d":"$0.00"},{"$error":"#DIV/0!"}]
[null,"Ballistic-resistant rifle plate(s) (including 2 carriers)","Rifle Protection",{"$nulls":3},"F","NIJ 0101.07","RF1",null,{"v":0,"d":"$0.00"},{"v":0,"d":"$0.00"},{"$error":"#DIV/0!"}]
[null,"Ballistic-resistant rifle plate(s) (including carrier)","Rifle Protection",{"$nulls":3},"F","NIJ 0101.07","RF2",null,{"v":0,"d":"$0.00"},{"v":0,"d":"$0.00"},{"$error":"#DIV/0!"}]
[null,"Ballistic-resistant rifle plate(s) (including 2 carriers)","Rifle Protection",{"$nulls":3},"F","NIJ 0101.07","RF2",null,{"v":0,"d":"$0.00"},{"v":0,"d":"$0.00"},{"$error":"#DIV/0!"}]
[null,"Ballistic-resistant rifle plate(s) (including carrier)","Rifle Protection",{"$nulls":3},"F","NIJ 0101.07","RF3",null,{"v":0,"d":"$0.00"},{"v":0,"d":"$0.00"},{"$error":"#DIV/0!"}]
[null,"Ballistic-resistant rifle plate(s) (including 2 carriers)","Rifle Protection",{"$nulls":3},"F","NIJ 0101.07","RF3",null,{"v":0,"d":"$0.00"},{"v":0,"d":"$0.00"},{"$error":"#DIV/0!"}]
[null,"Ballistic-resistant Stand-alone Plate","Rifle Protection",{"$nulls":3},"M or N","NIJ 0101.07","RF1",null,{"v":0,"d":"$0.00"},{"v":0,"d":"$0.00"},{"$error":"#DIV/0!"}]
[null,"Ballistic-resistant Stand-alone Plate","Rifle Protection",{"$nulls":3},"M or N","NIJ 0101.07","RF2",null,{"v":0,"d":"$0.00"},{"v":0,"d":"$0.00"},{"$error":"#DIV/0!"}]
[null,"Ballistic-resistant Stand-alone Plate","Rifle Protection",{"$nulls":3},"M or N","NIJ 0101.07","RF3",null,{"v":0,"d":"$0.00"},{"v":0,"d":"$0.00"},{"$error":"#DIV/0!"}]
[null,"Ballistic-resistant Stand-alone Plate","Rifle Protection",{"$nulls":3},"F","NIJ 0101.07","RF1",null,{"v":0,"d":"$0.00"},{"v":0,"d":"$0.00"},{"$error":"#DIV/0!"}]
[null,"Ballistic-resistant Stand-alone Plate","Rifle Protection",{"$nulls":3},"F","NIJ 0101.07","RF2",null,{"v":0,"d":"$0.00"},{"v":0,"d":"$0.00"},{"$error":"#DIV/0!"}]
[null,"Ballistic-resistant Stand-alone Plate","Rifle Protection",{"$nulls":3},"F","NIJ 0101.07","RF3",null,{"v":0,"d":"$0.00"},{"v":0,"d":"$0.00"},{"$error":"#DIV/0!"}]
[null,"In Conjunction With (ICW) Armor (soft armor and ICW plate)","Rifle Protection",{"$nulls":3},"M or N","NIJ 0101.07","HG1 ICW RF1",null,{"v":0,"d":"$0.00"},{"v":0,"d":"$0.00"},{"$error":"#DIV/0!"}]
[null,"In Conjunction With (ICW) Armor (soft armor and ICW plate)","Rifle Protection",{"$nulls":3},"M or N","NIJ 0101.07","HG1 ICW RF2",null,{"v":0,"d":"$0.00"},{"v":0,"d":"$0.00"},{"$error":"#DIV/0!"}]
[null,"In Conjunction With (ICW) Armor (soft armor and ICW plate)","Rifle Protection",{"$nulls":3},"M or N","NIJ 0101.07","HG1 ICW RF3",null,{"v":0,"d":"$0.00"},{"v":0,"d":"$0.00"},{"$error":"#DIV/0!"}]
[null,"In Conjunction With (ICW) Armor (soft armor and ICW plate)","Rifle Protection",{"$nulls":3},"M or N","NIJ 0101.07","HG2 ICW RF1",null,{"v":0,"d":"$0.00"},{"v":0,"d":"$0.00"},{"$error":"#DIV/0!"}]
[null,"In Conjunction With (ICW) Armor (soft armor and ICW plate)","Rifle Protection",{"$nulls":3},"M or N","NIJ 0101.07","HG2 ICW RF2",null,{"v":0,"d":"$0.00"},{"v":0,"d":"$0.00"},{"$error":"#DIV/0!"}]
[null,"In Conjunction With (ICW) Armor (soft armor and ICW plate)","Rifle Protection",{"$nulls":3},"M or N","NIJ 0101.07","HG2 ICW RF3",null,{"v":0,"d":"$0.00"},{"v":0,"d":"$0.00"},{"$error":"#DIV/0!"}]
[null,"In Conjunction With (ICW) Armor (soft armor and ICW plate)","Rifle Protection",{"$nulls":3},"F","NIJ 0101.07","HG1 ICW RF1",null,{"v":0,"d":"$0.00"},{"v":0,"d":"$0.00"},{"$error":"#DIV/0!"}]
[null,"In Conjunction With (ICW) Armor (soft armor and ICW plate)","Rifle Protection",{"$nulls":3},"F","NIJ 0101.07","HG1 ICW RF2",null,{"v":0,"d":"$0.00"},{"v":0,"d":"$0.00"},{"$error":"#DIV/0!"}]
[null,"In Conjunction With (ICW) Armor (soft armor and ICW plate)","Rifle Protection",{"$nulls":3},"F","NIJ 0101.07","HG1 ICW RF3",null,{"v":0,"d":"$0.00"},{"v":0,"d":"$0.00"},{"$error":"#DIV/0!"}]
[null,"In Conjunction With (ICW) Armor (soft armor and ICW plate)","Rifle Protection",{"$nulls":3},"F","NIJ 0101.07","HG2 ICW RF1",null,{"v":0,"d":"$0.00"},{"v":0,"d":"$0.00"},{"$error":"#DIV/0!"}]
[null,"In Conjunction With (ICW) Armor (soft armor and ICW plate)","Rifle Protection",{"$nulls":3},"F","NIJ 0101.07","HG2 ICW RF2",null,{"v":0,"d":"$0.00"},{"v":0,"d":"$0.00"},{"$error":"#DIV/0!"}]
[null,"In Conjunction With (ICW) Armor (soft armor and ICW plate)","Rifle Protection",{"$nulls":3},"F","NIJ 0101.07","HG2 ICW RF3",null,{"v":0,"d":"$0.00"},{"v":0,"d":"$0.00"},{"$error":"#DIV/0!"}]
[null,"Stab-resistant Vest (including carrier)","Spike Protection",{"$nulls":3},"M or N","NIJ 0115.01","1/Spike",null,{"v":0,"d":"$0.00"},{"v":0,"d":"$0.00"},{"$error":"#DIV/0!"}]
[null,"Stab-resistant Vest (including 2 carriers)","Spike Protection",{"$nulls":3},"M or N","NIJ 0115.01","1/Spike",null,{"v":0,"d":"$0.00"},{"v":0,"d":"$0.00"},{"$error":"#DIV/0!"}]
[null,"Stab-resistant Vest (including carrier)","Spike Protection",{"$nulls":3},"F","NIJ 0115.01","1/Spike",null,{"v":0,"d":"$0.00"},{"v":0,"d":"$0.00"},{"$error":"#DIV/0!"}]
[null,"Stab-resistant Vest (including 2 carriers)","Spike Protection",{"$nulls":3},"F","NIJ 0115.01","1/Spike",null,{"v":0,"d":"$0.00"},{"v":0,"d":"$0.00"},{"$error":"#DIV/0!"}]
[null,"Stab-resistant Vest (including carrier)","Spike Protection",{"$nulls":3},"M or N","NIJ 0115.01","2/Spike",null,{"v":0,"d":"$0.00"},{"v":0,"d":"$0.00"},{"$error":"#DIV/0!"}]
[null,"Stab-resistant Vest (including 2 carriers)","Spike Protection",{"$nulls":3},"M or N","NIJ 0115.01","2/Spike",null,{"v":0,"d":"$0.00"},{"v":0,"d":"$0.00"},{"$error":"#DIV/0!"}]
[null,"Stab-resistant Vest (including carrier)","Spike Protection",{"$nulls":3},"F","NIJ 0115.01","2/Spike",null,{"v":0,"d":"$0.00"},{"v":0,"d":"$0.00"},{"$error":"#DIV/0!"}]
[null,"Stab-resistant Vest (including 2 carriers)","Spike Protection",{"$nulls":3},"F","NIJ 0115.01","2/Spike",null,{"v":0,"d":"$0.00"},{"v":0,"d":"$0.00"},{"$error":"#DIV/0!"}]
[null,"Stab-resistant Vest (including carrier)","Spike Protection",{"$nulls":3},"M or N","NIJ 0115.01","3/Spike",null,{"v":0,"d":"$0.00"},{"v":0,"d":"$0.00"},{"$error":"#DIV/0!"}]
[null,"Stab-resistant Vest (including 2 carriers)","Spike Protection",{"$nulls":3},"M or N","NIJ 0115.01","3/Spike",null,{"v":0,"d":"$0.00"},{"v":0,"d":"$0.00"},{"$error":"#DIV/0!"}]
[null,"Stab-resistant Vest (including carrier)","Spike Protection",{"$nulls":3},"F","NIJ 0115.01","3/Spike",null,{"v":0,"d":"$0.00"},{"v":0,"d":"$0.00"},{"$error":"#DIV/0!"}]
[null,"Stab-resistant Vest (including 2 carriers)","Spike Protection",{"$nulls":3},"F","NIJ 0115.01","3/Spike",null,{"v":0,"d":"$0.00"},{"v":0,"d":"$0.00"},{"$error":"#DIV/0!"}]
[null,"Stab-resistant Vest (including carrier)","Edged Blade Protection",{"$nulls":3},"M or N","NIJ 0115.01","1/Edged Blade",null,{"v":0,"d":"$0.00"},{"v":0,"d":"$0.00"},{"$error":"#DIV/0!"}]
[null,"Stab-resistant Vest (including 2 carriers)","Edged Blade Protection",{"$nulls":3},"M or N","NIJ 0115.01","1/Edged Blade",null,{"v":0,"d":"$0.00"},{"v":0,"d":"$0.00"},{"$error":"#DIV/0!"}]
[null,"Stab-resistant Vest (including carrier)","Edged Blade Protection",{"$nulls":3},"F","NIJ 0115.01","1/Edged Blade",null,{"v":0,"d":"$0.00"},{"v":0,"d":"$0.00"},{"$error":"#DIV/0!"}]
[null,"Stab-resistant Vest (including 2 carriers)","Edged Blade Protection",{"$nulls":3},"F","NIJ 0115.01","1/Edged Blade",null,{"v":0,"d":"$0.00"},{"v":0,"d":"$0.00"},{"$error":"#DIV/0!"}]
[null,"Stab-resistant Vest (including carrier)","Edged Blade Protection",{"$nulls":3},"M or N","NIJ 0115.01","2/Edged Blade",null,{"v":0,"d":"$0.00"},{"v":0,"d":"$0.00"},{"$error":"#DIV/0!"}]
[null,"Stab-resistant Vest (including 2 carriers)","Edged Blade Protection",{"$nulls":3},"M or N","NIJ 0115.01","2/Edged Blade",null,{"v":0,"d":"$0.00"},{"v":0,"d":"$0.00"},{"$error":"#DIV/0!"}]
[null,"Stab-resistant Vest (including carrier)","Edged Blade Protection",{"$nulls":3},"F","NIJ 0115.01","2/Edged Blade",null,{"v":0,"d":"$0.00"},{"v":0,"d":"$0.00"},{"$error":"#DIV/0!"}]
[null,"Stab-resistant Vest (including 2 carriers)","Edged Blade Protection",{"$nulls":3},"F","NIJ 0115.01","2/Edged Blade",null,{"v":0,"d":"$0.00"},{"v":0,"d":"$0.00"},{"$error":"#DIV/0!"}]
[null,"Stab-resistant Vest (including carrier)","Edged Blade Protection",{"$nulls":3},"M or N","NIJ 0115.01","3/Edged Blade",null,{"v":0,"d":"$0.00"},{"v":0,"d":"$0.00"},{"$error":"#DIV/0!"}]
[null,"Stab-resistant Vest (including 2 carriers)","Edged Blade Protection",{"$nulls":3},"M or N","NIJ 0115.01","3/Edged Blade",null,{"v":0,"d":"$0.00"},{"v":0,"d":"$0.00"},{"$error":"#DIV/0!"}]
[null,"Stab-resistant Vest (including carrier)","Edged Blade Protection",{"$nulls":3},"F","NIJ 0115.01","3/Edged Blade",null,{"v":0,"d":"$0.00"},{"v":0,"d":"$0.00"},{"$error":"#DIV/0!"}]
[null,"Stab-resistant Vest (including 2 carriers)","Edged Blade Protection",{"$nulls":3},"F","NIJ 0115.01","3/Edged Blade",null,{"v":0,"d":"$0.00"},{"v":0,"d":"$0.00"},{"$error":"#DIV/0!"}]
[null,"Stab-resistant Vest (including carrier)","Spike-Edged Blade",{"$nulls":3},"M or N","NIJ 0115.01","1/Spike-1/Edged Blade",null,{"v":0,"d":"$0.00"},{"v":0,"d":"$0.00"},{"$error":"#DIV/0!"}]
[null,"Stab-resistant Vest (including 2 carriers)","Spike-Edged Blade",{"$nulls":3},"M or N","NIJ 0115.01","1/Spike-1/Edged Blade",null,{"v":0,"d":"$0.00"},{"v":0,"d":"$0.00"},{"$error":"#DIV/0!"}]
[null,"Stab-resistant Vest (including carrier)","Spike-Edged Blade",{"$nulls":3},"F","NIJ 0115.01","1/Spike-1/Edged Blade",null,{"v":0,"d":"$0.00"},{"v":0,"d":"$0.00"},{"$error":"#DIV/0!"}]
[null,"Stab-resistant Vest (including 2 carriers)","Spike-Edged Blade",{"$nulls":3},"F","NIJ 0115.01","1/Spike-1/Edged Blade",null,{"v":0,"d":"$0.00"},{"v":0,"d":"$0.00"},{"$f":"(K69-L69)/K69*100%","v":{"$error":"#DIV/0!"}}]
[null,"Stab-resistant Vest (including carrier)","Spike-Edged Blade",{"$nulls":3},"M or N","NIJ 0115.01","1/Spike- 2/Edged Blade",null,{"v":0,"d":"$0.00"},{"v":0,"d":"$0.00"},{"$error":"#DIV/0!"}]
[null,"Stab-resistant Vest (including 2 carriers)","Spike-Edged Blade",{"$nulls":3},"M or N","NIJ 0115.01","1/Spike- 2/Edged Blade",null,{"v":0,"d":"$0.00"},{"v":0,"d":"$0.00"},{"$error":"#DIV/0!"}]
[null,"Stab-resistant Vest (including carrier)","Spike-Edged Blade",{"$nulls":3},"F","NIJ 0115.01","1/Spike- 2/Edged Blade",null,{"v":0,"d":"$0.00"},{"v":0,"d":"$0.00"},{"$error":"#DIV/0!"}]
[null,"Stab-resistant Vest (including 2 carriers)","Spike-Edged Blade",{"$nulls":3},"F","NIJ 0115.01","1/Spike- 2/Edged Blade",null,{"v":0,"d":"$0.00"},{"v":0,"d":"$0.00"},{"$error":"#DIV/0!"}]
[null,"Stab-resistant Vest (including carrier)","Spike-Edged Blade",{"$nulls":3},"M or N","NIJ 0115.01","1/Spike- 3/Edged Blade",null,{"v":0,"d":"$0.00"},{"v":0,"d":"$0.00"},{"$error":"#DIV/0!"}]
[null,"Stab-resistant Vest (including 2 carriers)","Spike-Edged Blade",{"$nulls":3},"M or N","NIJ 0115.01","1/Spike- 3/Edged Blade",null,{"v":0,"d":"$0.00"},{"v":0,"d":"$0.00"},{"$error":"#DIV/0!"}]
[null,"Stab-resistant Vest (including carrier)","Spike-Edged Blade",{"$nulls":3},"F","NIJ 0115.01","1/Spike- 3/Edged Blade",null,{"v":0,"d":"$0.00"},{"v":0,"d":"$0.00"},{"$error":"#DIV/0!"}]
[null,"Stab-resistant Vest (including 2 carriers)","Spike-Edged Blade",{"$nulls":3},"F","NIJ 0115.01","1/Spike- 3/Edged Blade",null,{"v":0,"d":"$0.00"},{"v":0,"d":"$0.00"},{"$error":"#DIV/0!"}]
[null,"Stab-resistant Vest (including carrier)","Spike-Edged Blade",{"$nulls":3},"M or N","NIJ 0115.01","2/Spike - 1/Edged Blade",null,{"v":0,"d":"$0.00"},{"v":0,"d":"$0.00"},{"$error":"#DIV/0!"}]
[null,"Stab-resistant Vest (including 2 carriers)","Spike-Edged Blade",{"$nulls":3},"M or N","NIJ 0115.01","2/Spike - 1/Edged Blade",null,{"v":0,"d":"$0.00"},{"v":0,"d":"$0.00"},{"$error":"#DIV/0!"}]
[null,"Stab-resistant Vest (including carrier)","Spike-Edged Blade",{"$nulls":3},"F","NIJ 0115.01","2/Spike - 1/Edged Blade",null,{"v":0,"d":"$0.00"},{"v":0,"d":"$0.00"},{"$error":"#DIV/0!"}]
[null,"Stab-resistant Vest (including 2 carriers)","Spike-Edged Blade",{"$nulls":3},"F","NIJ 0115.01","2/Spike - 1/Edged Blade",null,{"v":0,"d":"$0.00"},{"v":0,"d":"$0.00"},{"$error":"#DIV/0!"}]
[null,"Stab-resistant Vest (including carrier)","Spike-Edged Blade",{"$nulls":3},"M or N","NIJ 0115.01","2/Spike - 2/Edged Blade",null,{"v":0,"d":"$0.00"},{"v":0,"d":"$0.00"},{"$error":"#DIV/0!"}]
[null,"Stab-resistant Vest (including 2 carriers)","Spike-Edged Blade",{"$nulls":3},"M or N","NIJ 0115.01","2/Spike - 2/Edged Blade",null,{"v":0,"d":"$0.00"},{"v":0,"d":"$0.00"},{"$error":"#DIV/0!"}]
[null,"Stab-resistant Vest (including carrier)","Spike-Edged Blade",{"$nulls":3},"F","NIJ 0115.01","2/Spike - 2/Edged Blade",null,{"v":0,"d":"$0.00"},{"v":0,"d":"$0.00"},{"$error":"#DIV/0!"}]
[null,"Stab-resistant Vest (including 2 carriers)","Spike-Edged Blade",{"$nulls":3},"F","NIJ 0115.01","2/Spike - 2/Edged Blade",null,{"v":0,"d":"$0.00"},{"v":0,"d":"$0.00"},{"$error":"#DIV/0!"}]
[null,"Stab-resistant Vest (including carrier)","Spike-Edged Blade",{"$nulls":3},"M or N","NIJ 0115.01","2/Spike - 3/Edged Blade",null,{"v":0,"d":"$0.00"},{"v":0,"d":"$0.00"},{"$error":"#DIV/0!"}]
[null,"Stab-resistant Vest (including 2 carriers)","Spike-Edged Blade",{"$nulls":3},"M or N","NIJ 0115.01","2/Spike - 3/Edged Blade",null,{"v":0,"d":"$0.00"},{"v":0,"d":"$0.00"},{"$error":"#DIV/0!"}]
[null,"Stab-resistant Vest (including carrier)","Spike-Edged Blade",{"$nulls":3},"F","NIJ 0115.01","2/Spike - 3/Edged Blade",null,{"v":0,"d":"$0.00"},{"v":0,"d":"$0.00"},{"$error":"#DIV/0!"}]
[null,"Stab-resistant Vest (including 2 carriers)","Spike-Edged Blade",{"$nulls":3},"F","NIJ 0115.01","2/Spike - 3/Edged Blade",null,{"v":0,"d":"$0.00"},{"v":0,"d":"$0.00"},{"$error":"#DIV/0!"}]
[null,"Stab-resistant Vest (including carrier)","Spike-Edged Blade",{"$nulls":3},"M or N","NIJ 0115.01","3/Spike - 1/Edged Blade",null,{"v":0,"d":"$0.00"},{"v":0,"d":"$0.00"},{"$error":"#DIV/0!"}]
[null,"Stab-resistant Vest (including 2 carriers)","Spike-Edged Blade",{"$nulls":3},"M or N","NIJ 0115.01","3/Spike - 1/Edged Blade",null,{"v":0,"d":"$0.00"},{"v":0,"d":"$0.00"},{"$error":"#DIV/0!"}]
[null,"Stab-resistant Vest (including carrier)","Spike-Edged Blade",{"$nulls":3},"F","NIJ 0115.01","3/Spike - 1/Edged Blade",null,{"v":0,"d":"$0.00"},{"v":0,"d":"$0.00"},{"$error":"#DIV/0!"}]
[null,"Stab-resistant Vest (including 2 carriers)","Spike-Edged Blade",{"$nulls":3},"F","NIJ 0115.01","3/Spike - 1/Edged Blade",null,{"v":0,"d":"$0.00"},{"v":0,"d":"$0.00"},{"$error":"#DIV/0!"}]
[null,"Stab-resistant Vest (including carrier)","Spike-Edged Blade",{"$nulls":3},"M or N","NIJ 0115.01","3/Spike - 2/Edged Blade",null,{"v":0,"d":"$0.00"},{"v":0,"d":"$0.00"},{"$error":"#DIV/0!"}]
[null,"Stab-resistant Vest (including 2 carriers)","Spike-Edged Blade",{"$nulls":3},"M or N","NIJ 0115.01","3/Spike - 2/Edged Blade",null,{"v":0,"d":"$0.00"},{"v":0,"d":"$0.00"},{"$error":"#DIV/0!"}]
[null,"Stab-resistant Vest (including carrier)","Spike-Edged Blade",{"$nulls":3},"F","NIJ 0115.01","3/Spike - 2/Edged Blade",null,{"v":0,"d":"$0.00"},{"v":0,"d":"$0.00"},{"$error":"#DIV/0!"}]
[null,"Stab-resistant Vest (including 2 carriers)","Spike-Edged Blade",{"$nulls":3},"F","NIJ 0115.01","3/Spike - 2/Edged Blade",null,{"v":0,"d":"$0.00"},{"v":0,"d":"$0.00"},{"$error":"#DIV/0!"}]
[null,"Stab-resistant Vest (including carrier)","Spike-Edged Blade",{"$nulls":3},"M or N","NIJ 0115.01","3/Spike - 3/Edged Blade",null,{"v":0,"d":"$0.00"},{"v":0,"d":"$0.00"},{"$error":"#DIV/0!"}]
[null,"Stab-resistant Vest (including 2 carriers)","Spike-Edged Blade",{"$nulls":3},"M or N","NIJ 0115.01","3/Spike - 3/Edged Blade",null,{"v":0,"d":"$0.00"},{"v":0,"d":"$0.00"},{"$error":"#DIV/0!"}]
[null,"Stab-resistant Vest (including carrier)","Spike-Edged Blade",{"$nulls":3},"F","NIJ 0115.01","3/Spike - 3/Edged Blade",null,{"v":0,"d":"$0.00"},{"v":0,"d":"$0.00"},{"$error":"#DIV/0!"}]
[null,"Stab-resistant Vest (including 2 carriers)","Spike-Edged Blade",{"$nulls":3},"F","NIJ 0115.01","3/Spike - 3/Edged Blade",null,{"v":0,"d":"$0.00"},{"v":0,"d":"$0.00"},{"$error":"#DIV/0!"}]
[null,"Combination Vest (including carrier)","Handgun-Spike",{"$nulls":3},"M or N","NIJ  0101.07-0115.01","HG1-1/Spike",null,{"v":0,"d":"$0.00"},{"v":0,"d":"$0.00"},{"$error":"#DIV/0!"}]
[null,"Combination Vest (Including 2 carriers)","Handgun-Spike",{"$nulls":3},"M or N","NIJ  0101.07-0115.01","HG1-1/Spike",null,{"v":0,"d":"$0.00"},{"v":0,"d":"$0.00"},{"$error":"#DIV/0!"}]
[null,"Combination Vest (including carrier)","Handgun-Spike",{"$nulls":3},"F","NIJ  0101.07-0115.01","HG1-1/Spike",null,{"v":0,"d":"$0.00"},{"v":0,"d":"$0.00"},{"$error":"#DIV/0!"}]
[null,"Combination Vest (Including 2 carriers)","Handgun-Spike",{"$nulls":3},"F","NIJ  0101.07-0115.01","HG1-1/Spike",null,{"v":0,"d":"$0.00"},{"v":0,"d":"$0.00"},{"$error":"#DIV/0!"}]
[null,"Combination Vest (including carrier)","Handgun-Spike",{"$nulls":3},"M or N","NIJ  0101.07-0115.01","HG2-1/Spike",null,{"v":0,"d":"$0.00"},{"v":0,"d":"$0.00"},{"$error":"#DIV/0!"}]
[null,"Combination Vest (Including 2 carriers)","Handgun-Spike",{"$nulls":3},"M or N","NIJ  0101.07-0115.01","HG2-1/Spike",null,{"v":0,"d":"$0.00"},{"v":0,"d":"$0.00"},{"$error":"#DIV/0!"}]
[null,"Combination Vest (including carrier)","Handgun-Spike",{"$nulls":3},"F","NIJ  0101.07-0115.01","HG2-1/Spike",null,{"v":0,"d":"$0.00"},{"v":0,"d":"$0.00"},{"$error":"#DIV/0!"}]
[null,"Combination Vest (Including 2 carriers)","Handgun-Spike",{"$nulls":3},"F","NIJ  0101.07-0115.01","HG2-1/Spike",null,{"v":0,"d":"$0.00"},{"v":0,"d":"$0.00"},{"$error":"#DIV/0!"}]
[null,"Combination Vest (including carrier)","Handgun-Spike",{"$nulls":3},"M or N","NIJ  0101.07-0115.01","HG1-2/Spike",null,{"v":0,"d":"$0.00"},{"v":0,"d":"$0.00"},{"$error":"#DIV/0!"}]
[null,"Combination Vest (Including 2 carriers)","Handgun-Spike",{"$nulls":3},"M or N","NIJ  0101.07-0115.01","HG1-2/Spike",null,{"v":0,"d":"$0.00"},{"v":0,"d":"$0.00"},{"$error":"#DIV/0!"}]
[null,"Combination Vest (including carrier)","Handgun-Spike",{"$nulls":3},"F","NIJ  0101.07-0115.01","HG1-2/Spike",null,{"v":0,"d":"$0.00"},{"v":0,"d":"$0.00"},{"$error":"#DIV/0!"}]
[null,"Combination Vest (Including 2 carriers)","Handgun-Spike",{"$nulls":3},"F","NIJ  0101.07-0115.01","HG1-2/Spike",null,{"v":0,"d":"$0.00"},{"v":0,"d":"$0.00"},{"$error":"#DIV/0!"}]
[null,"Combination Vest (including carrier)","Handgun-Spike",{"$nulls":3},"M or N","NIJ  0101.07-0115.01","HG2-2/Spike",null,{"v":0,"d":"$0.00"},{"v":0,"d":"$0.00"},{"$error":"#DIV/0!"}]
[null,"Combination Vest (Including 2 carriers)","Handgun-Spike",{"$nulls":3},"M or N","NIJ  0101.07-0115.01","HG2-2/Spike",null,{"v":0,"d":"$0.00"},{"v":0,"d":"$0.00"},{"$error":"#DIV/0!"}]
[null,"Combination Vest (including carrier)","Handgun-Spike",{"$nulls":3},"F","NIJ  0101.07-0115.01","HG2-2/Spike",null,{"v":0,"d":"$0.00"},{"v":0,"d":"$0.00"},{"$error":"#DIV/0!"}]
[null,"Combination Vest (Including 2 carriers)","Handgun-Spike",{"$nulls":3},"F","NIJ  0101.07-0115.01","HG2-2/Spike",null,{"v":0,"d":"$0.00"},{"v":0,"d":"$0.00"},{"$error":"#DIV/0!"}]
[null,"Combination Vest (including carrier)","Handgun-Spike",{"$nulls":3},"M or N","NIJ  0101.07-0115.01","HG1-3/Spike",null,{"v":0,"d":"$0.00"},{"v":0,"d":"$0.00"},{"$error":"#DIV/0!"}]
[null,"Combination Vest (Including 2 carriers)","Handgun-Spike",{"$nulls":3},"M or N","NIJ  0101.07-0115.01","HG1-3/Spike",null,{"v":0,"d":"$0.00"},{"v":0,"d":"$0.00"},{"$error":"#DIV/0!"}]
[null,"Combination Vest (including carrier)","Handgun-Spike",{"$nulls":3},"F","NIJ  0101.07-0115.01","HG1-3/Spike",null,{"v":0,"d":"$0.00"},{"v":0,"d":"$0.00"},{"$error":"#DIV/0!"}]
[null,"Combination Vest (Including 2 carriers)","Handgun-Spike",{"$nulls":3},"F","NIJ  0101.07-0115.01","HG1-3/Spike",null,{"v":0,"d":"$0.00"},{"v":0,"d":"$0.00"},{"$error":"#DIV/0!"}]
[null,"Combination Vest (including carrier)","Handgun-Spike",{"$nulls":3},"M or N","NIJ  0101.07-0115.01","HG2-3/Spike",null,{"v":0,"d":"$0.00"},{"v":0,"d":"$0.00"},{"$error":"#DIV/0!"}]
[null,"Combination Vest (Including 2 carriers)","Handgun-Spike",{"$nulls":3},"M or N","NIJ  0101.07-0115.01","HG2-3/Spike",null,{"v":0,"d":"$0.00"},{"v":0,"d":"$0.00"},{"$error":"#DIV/0!"}]
[null,"Combination Vest (including carrier)","Handgun-Spike",{"$nulls":3},"F","NIJ  0101.07-0115.01","HG2-3/Spike",null,{"v":0,"d":"$0.00"},{"v":0,"d":"$0.00"},{"$error":"#DIV/0!"}]
[null,"Combination Vest (Including 2 carriers)","Handgun-Spike",{"$nulls":3},"F","NIJ  0101.07-0115.01","HG2-3/Spike",null,{"v":0,"d":"$0.00"},{"v":0,"d":"$0.00"},{"$error":"#DIV/0!"}]
[null,"Combination Vest (including carrier)","Handgun -Spike-Edged Blade",{"$nulls":3},"M or N","NIJ  0101.07-0115.01","HG1-2/Spike-2/Edged Blade",null,{"v":0,"d":"$0.00"},{"v":0,"d":"$0.00"},{"$error":"#DIV/0!"}]
[null,"Combination Vest (Including 2 carriers)","Handgun -Spike-Edged Blade",{"$nulls":3},"M or N","NIJ  0101.07-0115.01","HG1-2/Spike-2/Edged Blade",null,{"v":0,"d":"$0.00"},{"v":0,"d":"$0.00"},{"$error":"#DIV/0!"}]
[null,"Combination Vest (including carrier)","Handgun -Spike-Edged Blade",{"$nulls":3},"F","NIJ  0101.07-0115.01","HG1-2/Spike-2/Edged Blade",null,{"v":0,"d":"$0.00"},{"v":0,"d":"$0.00"},{"$error":"#DIV/0!"}]
[null,"Combination Vest (Including 2 carriers)","Handgun -Spike-Edged Blade",{"$nulls":3},"F","NIJ  0101.07-0115.01","HG1-2/Spike-2/Edged Blade",null,{"v":0,"d":"$0.00"},{"v":0,"d":"$0.00"},{"$error":"#DIV/0!"}]
[null,"Combination Vest (including carrier)","Handgun -Spike-Edged Blade",{"$nulls":3},"M or N","NIJ  0101.07-0115.01","HG2-2/Spike-2/Edged Blade",null,{"v":0,"d":"$0.00"},{"v":0,"d":"$0.00"},{"$error":"#DIV/0!"}]
[null,"Combination Vest (Including 2 carriers)","Handgun -Spike-Edged Blade",{"$nulls":3},"M or N","NIJ  0101.07-0115.01","HG2-2/Spike-2/Edged Blade",null,{"v":0,"d":"$0.00"},{"v":0,"d":"$0.00"},{"$error":"#DIV/0!"}]
[null,"Combination Vest (including carrier)","Handgun -Spike-Edged Blade",{"$nulls":3},"F","NIJ  0101.07-0115.01","HG2-2/Spike-2/Edged Blade",null,{"v":0,"d":"$0.00"},{"v":0,"d":"$0.00"},{"$error":"#DIV/0!"}]
[null,"Combination Vest (Including 2 carriers)","Handgun -Spike-Edged Blade",{"$nulls":3},"F","NIJ  0101.07-0115.01","HG2-2/Spike-2/Edged Blade",null,{"v":0,"d":"$0.00"},{"v":0,"d":"$0.00"},{"$f":"(K133-L133)/K133*100%","v":{"$error":"#DIV/0!"}}]
[]
[null,"Ballistic Resistant Accessory","Handgun",{"$nulls":3},"N/A","ASTM E3453/E3453M","ASTM-ACC-HG1",null,{"v":0,"d":"$0.00"},{"v":0,"d":"$0.00"},{"$f":"(K135-L135)/K135*100%","v":{"$error":"#DIV/0!"}}]
[null,"Ballistic Resistant Accessory","Handgun",{"$nulls":3},"N/A","ASTM E3453/E3453M","ASTM-ACC-HG1",null,{"v":0,"d":"$0.00"},{"v":0,"d":"$0.00"},{"$f":"(K136-L136)/K136*100%","v":{"$error":"#DIV/0!"}}]
[null,"Ballistic Resistant Accessory","Handgun",{"$nulls":3},"N/A","ASTM E3453/E3453M","ASTM-ACC-HG2",null,{"v":0,"d":"$0.00"},{"v":0,"d":"$0.00"},{"$error":"#DIV/0!"}]
[null,"Ballistic Resistant Accessory","Handgun",{"$nulls":3},"N/A","ASTM E3453/E3453M","ASTM-ACC-HG2",null,{"v":0,"d":"$0.00"},{"v":0,"d":"$0.00"},{"$error":"#DIV/0!"}]
[null,"Ballistic Resistant Accessory","Rifle",{"$nulls":3},"N/A","ASTM E3453/E3453M","ASTM-ACC-RF1",null,{"v":0,"d":"$0.00"},{"v":0,"d":"$0.00"},{"$error":"#DIV/0!"}]
[null,"Ballistic Resistant Accessory","Rifle",{"$nulls":3},"N/A","ASTM E3453/E3453M","ASTM-ACC-RF1",null,{"v":0,"d":"$0.00"},{"v":0,"d":"$0.00"},{"$error":"#DIV/0!"}]
[null,"Ballistic Resistant Accessory","Rifle",{"$nulls":3},"N/A","ASTM E3453/E3453M","ASTM-ACC-RF2",null,{"v":0,"d":"$0.00"},{"v":0,"d":"$0.00"},{"$error":"#DIV/0!"}]
[null,"Ballistic Resistant Accessory","Rifle",{"$nulls":3},"N/A","ASTM E3453/E3453M","ASTM-ACC-RF2",null,{"v":0,"d":"$0.00"},{"v":0,"d":"$0.00"},{"$error":"#DIV/0!"}]
[null,"Ballistic Resistant Accessory","Rifle",{"$nulls":3},"N/A","ASTM E3453/E3453M","ASTM-ACC-RF3",null,{"v":0,"d":"$0.00"},{"v":0,"d":"$0.00"},{"$error":"#DIV/0!"}]
[null,"Ballistic Resistant Accessory","Rifle",{"$nulls":3},"N/A","ASTM E3453/E3453M","ASTM-ACC-RF3",null,{"v":0,"d":"$0.00"},{"v":0,"d":"$0.00"},{"$error":"#DIV/0!"}]

{"sheet":"MB ASTM Helmets & Shields","index":4,"n_rows":42,"n_cols":14,"rows_kept":42}
[null,null,"Market Basket ASTM Helmets & Shields:  Items that are verified to meet standards. Active on the ASTM Verified Product List"]
[null,"Contractor Name: Survival Armor"]
[null,"Product","Type","Manufacturer (Brand and Series)","Manufacturer Catalog #","ASTM Model Designation","Gender\n(M = Male, \nN = Neutral, \nF = Female)","NIJ Standard(s) / ASTM Standard","Threat Level","Backface deformation measurement in mm (if  tested)","Ballistic Protection Warranty Period","MSRP","BID Price","% Discount"]
[null,"Ballistic Shields"]
[null,"Ballistic Shields","Handgun Protection",{"$nulls":3},"N/A","ASTM E3347/E3347M","ASTM-Shield-HG1","Not applicable",null,{"v":0,"d":"$0.00"},{"v":0,"d":"$0.00"},{"$f":"(L5-M5)/L5*100%","v":{"$error":"#DIV/0!"}}]
[null,"Ballistic Shields","Handgun Protection",{"$nulls":3},"N/A","ASTM E3347/E3347M","ASTM-Shield-HG1","Not applicable",null,{"v":0,"d":"$0.00"},{"v":0,"d":"$0.00"},{"$f":"(L6-M6)/L6*100%","v":{"$error":"#DIV/0!"}}]
[null,"Ballistic Shields","Handgun Protection",{"$nulls":3},"N/A","ASTM E3347/E3347M","ASTM-Shield-HG1 and ASTM-Shield-SG","Not applicable",null,{"v":0,"d":"$0.00"},{"v":0,"d":"$0.00"},{"$f":"(L7-M7)/L7*100%","v":{"$error":"#DIV/0!"}}]
[null,"Ballistic Shields","Handgun Protection",{"$nulls":3},"N/A","ASTM E3347/E3347M","ASTM-Shield-HG2","Not applicable",null,{"v":0,"d":"$0.00"},{"v":0,"d":"$0.00"},{"$error":"#DIV/0!"}]
[null,"Ballistic Shields","Handgun Protection",{"$nulls":3},"N/A","ASTM E3347/E3347M","ASTM-Shield-HG2","Not applicable",null,{"v":0,"d":"$0.00"},{"v":0,"d":"$0.00"},{"$error":"#DIV/0!"}]
[null,"Ballistic Shields","Handgun Protection",{"$nulls":3},"N/A","ASTM E3347/E3347M","ASTM-Shield-HG2 and ASTM-Shield-SG","Not applicable",null,{"v":0,"d":"$0.00"},{"v":0,"d":"$0.00"},{"$error":"#DIV/0!"}]
[null,"Ballistic Shields","Rifle Protection",{"$nulls":3},"N/A","ASTM E3347/E3347M","ASTM-Shield-RF1","Not applicable",null,{"v":0,"d":"$0.00"},{"v":0,"d":"$0.00"},{"$error":"#DIV/0!"}]
[null,"Ballistic Shields","Rifle Protection",{"$nulls":3},"N/A","ASTM E3347/E3347M","ASTM-Shield-RF1","Not applicable",null,{"v":0,"d":"$0.00"},{"v":0,"d":"$0.00"},{"$error":"#DIV/0!"}]
[null,"Ballistic Shields","Handgun Protection",{"$nulls":3},"N/A","ASTM E3347/E3347M","ASTM-Shield-RF1 and ASTM-Shield-SG","Not applicable",null,{"v":0,"d":"$0.00"},{"v":0,"d":"$0.00"},{"$f":"(L13-M13)/L13*100%","v":{"$error":"#DIV/0!"}}]
[null,"Ballistic Shields","Rifle Protection",{"$nulls":3},"N/A","ASTM E3347/E3347M","ASTM-Shield-RF2","Not applicable",null,{"v":0,"d":"$0.00"},{"v":0,"d":"$0.00"},{"$error":"#DIV/0!"}]
[null,"Ballistic Shields","Rifle Protection",{"$nulls":3},"N/A","ASTM E3347/E3347M","ASTM-Shield-RF2","Not applicable",null,{"v":0,"d":"$0.00"},{"v":0,"d":"$0.00"},{"$error":"#DIV/0!"}]
[null,"Ballistic Shields","Handgun Protection",{"$nulls":3},"N/A","ASTM E3347/E3347M","ASTM-Shield-RF2 and ASTM-Shield-SG","Not applicable",null,{"v":0,"d":"$0.00"},{"v":0,"d":"$0.00"},{"$error":"#DIV/0!"}]
[null,"Ballistic Shields","Rifle Protection",{"$nulls":3},"N/A","ASTM E3347/E3347M","ASTM-Shield-RF3","Not applicable",null,{"v":0,"d":"$0.00"},{"v":0,"d":"$0.00"},{"$error":"#DIV/0!"}]
[null,"Ballistic Shields","Rifle Protection",{"$nulls":3},"N/A","ASTM E3347/E3347M","ASTM-Shield-RF3","Not applicable",null,{"v":0,"d":"$0.00"},{"v":0,"d":"$0.00"},{"$error":"#DIV/0!"}]
[null,"Ballistic Shields","Handgun Protection",{"$nulls":3},"N/A","ASTM E3347/E3347M","ASTM-Shield-RF3 and ASTM-Shield-SG","Not applicable",null,{"v":0,"d":"$0.00"},{"v":0,"d":"$0.00"},{"$f":"(L19-M19)/L19*100%","v":{"$error":"#DIV/0!"}}]
[]
[]
[null,"Ballistic Helmets"]
[null,"Ballistic Helmet","Handgun Protection",{"$nulls":3},"N/A","ASTM E3368/E3368M","ASTM-Helmet-HG1",null,null,{"v":0,"d":"$0.00"},{"v":0,"d":"$0.00"},{"$f":"(L23-M23)/L23*100%","v":{"$error":"#DIV/0!"}}]
[null,"Ballistic Helmet","Handgun Protection",{"$nulls":3},"N/A","ASTM E3368/E3368M","ASTM-Helmet-HG1",null,null,{"v":0,"d":"$0.00"},{"v":0,"d":"$0.00"},{"$f":"(L24-M24)/L24*100%","v":{"$error":"#DIV/0!"}}]
[null,"Ballistic Helmet with ballistic face shield","Handgun Protection",{"$nulls":3},"N/A","ASTM E3368/E3368M","ASTM-Helmet-HG1",null,null,{"v":0,"d":"$0.00"},{"v":0,"d":"$0.00"},{"$error":"#DIV/0!"}]
[null,"Ballistic Helmet with ballistic face shield","Handgun Protection",{"$nulls":3},"N/A","ASTM E3368/E3368M","ASTM-Helmet-HG1",null,null,{"v":0,"d":"$0.00"},{"v":0,"d":"$0.00"},{"$error":"#DIV/0!"}]
[null,"Ballistic Helmet","Handgun Protection",{"$nulls":3},"N/A","ASTM E3368/E3368M","ASTM-Helmet-HG2",null,null,{"v":0,"d":"$0.00"},{"v":0,"d":"$0.00"},{"$error":"#DIV/0!"}]
[null,"Ballistic Helmet","Handgun Protection",{"$nulls":3},"N/A","ASTM E3368/E3368M","ASTM-Helmet-HG2",null,null,{"v":0,"d":"$0.00"},{"v":0,"d":"$0.00"},{"$error":"#DIV/0!"}]
[null,"Ballistic Helmet with ballistic face shield","Handgun Protection",{"$nulls":3},"N/A","ASTM E3368/E3368M","ASTM-Helmet-HG2",null,null,{"v":0,"d":"$0.00"},{"v":0,"d":"$0.00"},{"$error":"#DIV/0!"}]
[null,"Ballistic Helmet with ballistic face shield","Handgun Protection",{"$nulls":3},"N/A","ASTM E3368/E3368M","ASTM-Helmet-HG2",null,null,{"v":0,"d":"$0.00"},{"v":0,"d":"$0.00"},{"$error":"#DIV/0!"}]
[null,"Ballistic Helmet","Rifle Protection",{"$nulls":3},"N/A","ASTM E3368/E3368M","ASTM-Helmet-RF1",null,null,{"v":0,"d":"$0.00"},{"v":0,"d":"$0.00"},{"$error":"#DIV/0!"}]
[null,"Ballistic Helmet","Rifle Protection",{"$nulls":3},"N/A","ASTM E3368/E3368M","ASTM-Helmet-RF1",null,null,{"v":0,"d":"$0.00"},{"v":0,"d":"$0.00"},{"$error":"#DIV/0!"}]
[null,"Ballistic Helmet with ballistic face shield","Rifle Protection",{"$nulls":3},"N/A","ASTM E3368/E3368M","ASTM-Helmet-RF1",null,null,{"v":0,"d":"$0.00"},{"v":0,"d":"$0.00"},{"$error":"#DIV/0!"}]
[null,"Ballistic Helmet with ballistic face shield","Rifle Protection",{"$nulls":3},"N/A","ASTM E3368/E3368M","ASTM-Helmet-RF1",null,null,{"v":0,"d":"$0.00"},{"v":0,"d":"$0.00"},{"$error":"#DIV/0!"}]
[null,"Ballistic Helmet","Rifle Protection",{"$nulls":3},"N/A","ASTM E3368/E3368M","ASTM-Helmet-RF2",null,null,{"v":0,"d":"$0.00"},{"v":0,"d":"$0.00"},{"$error":"#DIV/0!"}]
[null,"Ballistic Helmet","Rifle Protection",{"$nulls":3},"N/A","ASTM E3368/E3368M","ASTM-Helmet-RF2",null,null,{"v":0,"d":"$0.00"},{"v":0,"d":"$0.00"},{"$error":"#DIV/0!"}]
[null,"Ballistic Helmet with ballistic face shield","Rifle Protection",{"$nulls":3},"N/A","ASTM E3368/E3368M","ASTM-Helmet-RF2",null,null,{"v":0,"d":"$0.00"},{"v":0,"d":"$0.00"},{"$error":"#DIV/0!"}]
[null,"Ballistic Helmet with ballistic face shield","Rifle Protection",{"$nulls":3},"N/A","ASTM E3368/E3368M","ASTM-Helmet-RF2",null,null,{"v":0,"d":"$0.00"},{"v":0,"d":"$0.00"},{"$error":"#DIV/0!"}]
[null,"Ballistic Helmet","Rifle Protection",{"$nulls":3},"N/A","ASTM E3368/E3368M","ASTM-Helmet-RF3",null,null,{"v":0,"d":"$0.00"},{"v":0,"d":"$0.00"},{"$error":"#DIV/0!"}]
[null,"Ballistic Helmet","Rifle Protection",{"$nulls":3},"N/A","ASTM E3368/E3368M","ASTM-Helmet-RF3",null,null,{"v":0,"d":"$0.00"},{"v":0,"d":"$0.00"},{"$error":"#DIV/0!"}]
[null,"Ballistic Helmet with ballistic face shield","Rifle Protection",{"$nulls":3},"N/A","ASTM E3368/E3368M","ASTM-Helmet-RF3",null,null,{"v":0,"d":"$0.00"},{"v":0,"d":"$0.00"},{"$error":"#DIV/0!"}]
[null,"Ballistic Helmet with ballistic face shield","Rifle Protection",{"$nulls":3},"N/A","ASTM E3368/E3368M","ASTM-Helmet-RF3",null,null,{"v":0,"d":"$0.00"},{"v":0,"d":"$0.00"},{"$error":"#DIV/0!"}]